Workbook

Sheet Instructions
B2: =CONCATENATE(dms_Sector," ",dms_Segment," ", "Network Service Provider") -> Electricity Distribution Network Service Provider
B3: =IF(dms_Model="Reset","Regulatory Proposal RIN Template","Annual Reporting RIN") -> Regulatory Proposal RIN Template
B4: =CONCATENATE("This template is to be used by ",INDEX(dms_TradingNameFull_List,MATCH(dms_TradingName,dms_TradingName_List))," to fulfil its reporting obligations to the AER.") -> This template is to be used by Evoenergy Distribution to fulfil its reporting obligations to the AER.
B5: INSTRUCTIONS
B6: GENERAL | C6: Complete the Business & other details worksheet before entering data or values in any other worksheets. The Business & other details worksheet is linked to other worksheets within the workbook and automatically generates certain column headings and conditional formatting.
B8: CONFIDENTIAL INFORMATION | C8: Please use the macro at the top of each worksheet to identify confidential information in the confidential workbook.
C9: -Do this by selecting the cell or cells that contain confidential information and then run the Mark selection as CONFIDENTIAL macro. This will format the cells a specific colour that is identified by the AER's database which in turn marks that information as confidential. -To reverse this, select the cell or cells and run the Return selection to NON-CONFIDENTIAL macro.
B11: RESPONSES | C11: Please return two (2) files to the AER: 1. A confidential version which must contain a complete set of all responses with confidential information marked using the Mark selection CONFIDENTIAL macro and which has been completed using the locked template file provided by the AER. 2. A public version with confidential information either removed completely or aggregated in some form together with writtten consent to disclose the public version of the response. Use the drop down box on the Business and other details worksheet to identify the file as either confidential ('consolidated') or public.
B13: AMENDMENTS | C13: If an NSP wishes to correct data previously submitted to the AER it should resubmit that data using the original completed submission as the starting point. Please make any necessary changes to the data. Data that is not being amended should be left unchanged. NSPs must identify the reason for the amendments in the Amendment Reason box on the Business and other details worksheet. NSPs may provide further details regarding any amendments in the Amendments worksheet. .
C14: NSP may use Amended Data macro to highlight cells that contain amended data. NB: if data is also CONFIDENTIAL, re-apply the Confidentiality macro after applying the Amended macro
C15: Please resubmit two (2) files - a confidential version and a public version of the amended submission to the AER
B17: UNITS OF MEASURE | C17: All amounts are to be unrounded and reported on a one for one basis: that is 1000 is to be entered as '1000'. Applicable units of measure may be identified in the table column headings or row descriptors.
B19: INPUT / NON-INPUT CELLS
D20: Yellow = Input cell (mandatory)
D21: Darker yellow = input cell (mandatory)
D22: Orange = input cell (if data available)
D23: Grey = Not applicable/No inputs required
D24: PLEASE DO NOT ENTER TEXT into cells that are to contain numbers (including 'numbers stored as text')
B27: NAVIGATION | C27: Many tables in the worksheets have been "grouped" to allow for easy navigation. To ungroup or group data use the outline symbols in the left margin (for Row groupings) or above the columns (for column groupings).

Sheet CONTENTS
C1: =IF(dms_MultiYear_ResponseFlag="Yes","REGULATORY REPORTING STATEMENT - HISTORICAL INFORMATION",INDEX(dms_Worksheet_List,MATCH(dms_Model,dms_Model_List))) -> REGULATORY REPORTING STATEMENT
C2: =INDEX(dms_TradingNameFull_List,MATCH(dms_TradingName,dms_TradingName_List)) -> Evoenergy Distribution
C3: =CONCATENATE("REGULATORY PERIOD FROM ", FRCP_y1," TO ",dms_MultiYear_FinalYear_Result) -> REGULATORY PERIOD FROM 2024-25 TO 2028-29
D7: CONTENTS
D9: TEMPLATE | E9: FINAL RIN OCTOBER 2022
D11: SUBMISSION | E11: Business & other details
D13: EXPENDITURE | E13: 2.1 Expenditure summary
E14: 2.2 Repex
E15: 2.3 Augex (b)
E16: 2.5 Connections
E17: 2.6 Non-network
E18: 2.10 Overheads
E19: 2.11 Labour
E20: 2.14 Forecast price changes
E21: 2.16 Opex Summary
E22: 2.17 Step Changes
D24: ECONOMIC BENCHMARKING | E24: 3.1 Revenue
E25: 3.2 Operating expenditure
E26: 3.3 Assets (RAB)
E27: 3.4 Operational data
E28: 3.5 Physical assets
E29: 3.6 Quality of service
E30: 3.7 Operating Environment
D32: ALTERNATIVE CONTROL | E32: 4.1 Public lighting
D34: NETWORK | E34: 5.4 MD & utilisation-Spatial
D36: SERVICE | E36: 6.2 Reliability & Cust serv
D38: OTHER | E38: 7.1 Policies and Procedures
E39: 7.2 Contingent projects
E40: 7.3 Obligations
E41: 7.4 Shared Assets
E42: 7.7 TSS-LRMC
E43: 7.8 Export Services

Sheet Business & other details
V1: =INDEX(dms_Worksheet_List,MATCH(dms_Model,dms_Model_List)) -> REGULATORY REPORTING STATEMENT
V2: =INDEX(dms_TradingNameFull_List,MATCH(dms_TradingName,dms_TradingName_List)) -> Evoenergy Distribution
V3: =CONCATENATE("REGULATORY PERIOD FROM ", FRCP_y1," TO ",dms_MultiYear_FinalYear_Result) -> REGULATORY PERIOD FROM 2024-25 TO 2028-29
V4: BUSINESS & OTHER DETAILS
V6: INSTRUCTIONS
V7: Complete the following business details regulatory template before entering data or values in any other regulatory template. This regulatory template is linked to other cells within the spreadsheet and automatically generates column headings and conditional formatting to distinguish business specific input and non-input cells.
Q9: SUBMISSION PARTICULARS INPUT SHEET
V12: ENTITY DETAILS
V14: Business Name
V16: Short name | AL16: Evoenergy Distribution
V17: ACN/ABN | AL17: =INDEX(dms_ABN_List,MATCH(dms_TradingName,dms_TradingName_List)) -> 76670568688
V21: Business Address | BQ21: Postal Address
V23: Address 1 | AL23: =INDEX(dms_Addr1_List,MATCH(dms_TradingName,dms_TradingName_List)) -> 40 Bunda Street | BI23: Address 1 | BQ23: =INDEX(dms_PAddr1_List,MATCH(dms_TradingName,dms_TradingName_List)) -> GPO BOX 366
V24: Address 2 | AL24: =IF(ISBLANK(INDEX(dms_Addr2_List,MATCH(dms_TradingName,dms_TradingName_List))),"",(INDEX(dms_Addr2_List,MATCH(dms_TradingName,dms_TradingName_List)))) ->  | BI24: Address 2 | BQ24: =IF(ISBLANK(INDEX(dms_PAddr2_List,MATCH(dms_TradingName,dms_TradingName_List))),"",(INDEX(dms_PAddr2_List,MATCH(dms_TradingName,dms_TradingName_List)))) -> 
V25: Suburb | AL25: =INDEX(dms_Suburb_List,MATCH(dms_TradingName,dms_TradingName_List)) -> CANBERRA | BI25: Suburb | BQ25: =INDEX(dms_PSuburb_List,MATCH(dms_TradingName,dms_TradingName_List)) -> CANBERRA
V26: State | AL26: =INDEX(dms_State_List,MATCH(dms_TradingName,dms_TradingName_List)) -> ACT | AV26: Post code | BI26: State | BQ26: =INDEX(dms_PState_List,MATCH(dms_TradingName,dms_TradingName_List)) -> ACT | CA26: Post code
BA28: `
V30: Contact Names
V32: Name | BI32: Name
V33: Phone | BI33: Phone
V34: Email | BI34: Email
Q39: REGULATORY CONTROL PERIODS
Z42: Forthcoming period | AL42: 2024-25 | AU42: =FRCP_y2 -> 2025-26 | BD42: =FRCP_y3 -> 2026-27 | BM42: =FRCP_y4 -> 2027-28 | BV42: =FRCP_y5 -> 2028-29
AL43: =FRCP_y6 -> 2029-30 | AU43: =FRCP_y7 -> 2030-31 | BD43: =FRCP_y8 -> 2031-32 | BM43: =FRCP_y9 -> 2032-33 | BV43: =FRCP_y10 -> 2033-34
AL44: =FRCP_y11 -> 2034-35 | AU44: =FRCP_y12 -> 2035-36 | BD44: =FRCP_y13 -> 2036-37 | BM44: =FRCP_y14 -> 2037-38 | BV44: =FRCP_y15 -> 2038-39
X46: RESETS | Z46: Current period | AL46: =CRCP_y1 -> 2019-20 | AU46: =CRCP_y2 -> 2020-21 | BD46: =CRCP_y3 -> 2021-22 | BM46: =CRCP_y4 -> 2022-23 | BV46: =CRCP_y5 -> 2023-24
AL47: =CRCP_y6 -> 2024-25 | AU47: =CRCP_y7 -> 2025-26 | BD47: =CRCP_y8 -> 2026-27 | BM47: =CRCP_y9 -> 2027-28 | BV47: =CRCP_y10 -> 2028-29
AL48: =CRCP_y11 -> 2029-30 | AU48: =CRCP_y12 -> 2030-31 | BD48: =CRCP_y13 -> 2031-32 | BM48: =CRCP_y14 -> 2032-33 | BV48: =CRCP_y15 -> 2033-34
Z50: Previous period | AL50: =PRCP_y1 -> 2014-15 | AU50: =PRCP_y2 -> 2015-16 | BD50: =PRCP_y3 -> 2016-17 | BM50: =PRCP_y4 -> 2017-18 | BV50: =PRCP_y5 -> 2018-19
AL51: =PRCP_y6 -> 2019-20 | AU51: =PRCP_y7 -> 2020-21 | BD51: =PRCP_y8 -> 2021-22 | BM51: =PRCP_y9 -> 2022-23 | BV51: =PRCP_y10 -> 2023-24
AL52: =PRCP_y11 -> 2024-25 | AU52: =PRCP_y12 -> 2025-26 | BD52: =PRCP_y13 -> 2026-27 | BM52: =PRCP_y14 -> 2027-28 | BV52: =PRCP_y15 -> 2028-29
Z54: Commencing year | AL54: 2022-23
X55: ANNUAL RINS
Z56: Final year | AL56: 2028-29
Q60: SUBMISSION DETAILS
Z62: RIN type | AL62: =INDIRECT(dms_Model) -> Regulatory Reporting (Reset)
Z64: Source | AL64: Regulatory proposal
X66: THIS FILE | Z66: Data Quality | AL66: Consolidated
Z68: Confidentiality Status | AL68: Public
Z70: Amended RIN Amendment Reason | AL70: 16 March 2023 - updates made by AER to table headings on 3.3 Asset values, to reflect data reported in $nominal terms.
Z74: Submission Date | AL74: dd/mm/yy | BD74: Please enter date this file submitted to AER

Sheet 2.1 Expenditure summary
B1: =INDEX(dms_Worksheet_List,MATCH(dms_Model,dms_Model_List)) -> REGULATORY REPORTING STATEMENT
B2: =INDEX(dms_TradingNameFull_List,MATCH(dms_TradingName,dms_TradingName_List)) -> Evoenergy Distribution
B3: =CONCATENATE("REGULATORY PERIOD FROM ", FRCP_y1," TO ",dms_MultiYear_FinalYear_Result) -> REGULATORY PERIOD FROM 2024-25 TO 2028-29
B4: 2.1 EXPENDITURE SUMMARY & RECONCILIATION
B7: 2.1.1 - STANDARD CONTROL SERVICES CAPEX (including dual function assets)
C8: =CONCATENATE("EXPENDITURE ($0's, real ", dms_DollarReal, ")") -> EXPENDITURE ($0's, real June 2024)
C9: =CRCP_y4 -> 2022-23 | D9: =CRCP_y5 -> 2023-24 | E9: =FRCP_y1 -> 2024-25 | F9: =FRCP_y2 -> 2025-26 | G9: =FRCP_y3 -> 2026-27 | H9: =FRCP_y4 -> 2027-28 | I9: =FRCP_y5 -> 2028-29
B10: Replacement expenditure | C10: =SUM('2.2 Repex'!D12:D182) -> 23321004.68 | D10: =SUM('2.2 Repex'!E12:E182) -> 22104385 | E10: =SUM('2.2 Repex'!F12:F182) -> 20414437 | F10: =SUM('2.2 Repex'!G12:G182) -> 21816641 | G10: =SUM('2.2 Repex'!H12:H182) -> 23821119 | H10: =SUM('2.2 Repex'!I12:I182) -> 25732696 | I10: =SUM('2.2 Repex'!J12:J182) -> 25836331
B11: Connections | C11: =SUM('2.5 Connections'!E123:E136) -> 30253856 | D11: =SUM('2.5 Connections'!F123:F136) -> 20193636 | E11: =SUM('2.5 Connections'!G123:G136) -> 24242132 | F11: =SUM('2.5 Connections'!H123:H136) -> 23310822 | G11: =SUM('2.5 Connections'!I123:I136) -> 24289348 | H11: =SUM('2.5 Connections'!J123:J136) -> 24074974 | I11: =SUM('2.5 Connections'!K123:K136) -> 26611424
B12: Augmentation Expenditure | C12: =SUM('2.3 Augex (b)'!D47:D55) -> 23357370 | D12: =SUM('2.3 Augex (b)'!E47:E55) -> 23682749 | E12: =SUM('2.3 Augex (b)'!F47:F55) -> 25050214 | F12: =SUM('2.3 Augex (b)'!G47:G55) -> 26480148 | G12: =SUM('2.3 Augex (b)'!H47:H55) -> 35185826 | H12: =SUM('2.3 Augex (b)'!I47:I55) -> 43508893 | I12: =SUM('2.3 Augex (b)'!J47:J55) -> 47716948
B13: Non-network | C13: =SUM('2.6 Non-network'!E32:E50) -> 31639346 | D13: =SUM('2.6 Non-network'!F32:F50) -> 18105186 | E13: =SUM('2.6 Non-network'!G32:G50) -> 12691751 | F13: =SUM('2.6 Non-network'!H32:H50) -> 13350672 | G13: =SUM('2.6 Non-network'!I32:I50) -> 9879718 | H13: =SUM('2.6 Non-network'!J32:J50) -> 12814972 | I13: =SUM('2.6 Non-network'!K32:K50) -> 17038085
B14: Export services | C14: =SUM('7.8 Export Services'!C23:C25) -> 0 | D14: =SUM('7.8 Export Services'!D23:D25) -> 0 | E14: =SUM('7.8 Export Services'!E23:E25) -> 2318597 | F14: =SUM('7.8 Export Services'!F23:F25) -> 1512379 | G14: =SUM('7.8 Export Services'!G23:G25) -> 1524300 | H14: =SUM('7.8 Export Services'!H23:H25) -> 337918 | I14: =SUM('7.8 Export Services'!I23:I25) -> 340162
B15: Public lighting
B16: Metering
B17: Capitalised network overheads | C17: ='2.10 Overheads'!D15 -> 0 | D17: ='2.10 Overheads'!E15 -> 0 | E17: ='2.10 Overheads'!F15 -> 0 | F17: ='2.10 Overheads'!G15 -> 0 | G17: ='2.10 Overheads'!H15 -> 0 | H17: ='2.10 Overheads'!I15 -> 0 | I17: ='2.10 Overheads'!J15 -> 0
B18: Capitalised corporate overheads | C18: ='2.10 Overheads'!D30 -> 19368205 | D18: ='2.10 Overheads'!E30 -> 16844209 | E18: ='2.10 Overheads'!F30 -> 14781155 | F18: ='2.10 Overheads'!G30 -> 14991184 | G18: ='2.10 Overheads'!H30 -> 17222545 | H18: ='2.10 Overheads'!I30 -> 19510558 | I18: ='2.10 Overheads'!J30 -> 21137107
B19: capcons (included in the above)
B20: Total | C20: =SUM(C10:C18) -> 127939781.7 | D20: 100930165 | E20: 99498286 | F20: 101461846 | G20: 111922856 | H20: 125980011 | I20: 138680057
B23: 2.1.2 - STANDARD CONTROL SERVICES OPEX BY CATEGORY
C24: =CONCATENATE("EXPENDITURE ($0's, real ", dms_DollarReal, ")") -> EXPENDITURE ($0's, real June 2024)
C25: =CRCP_y4 -> 2022-23 | D25: =CRCP_y5 -> 2023-24
B26: Vegetation management | C26: 5039525 | D26: 5429694
B27: Maintenance | C27: 10288086 | D27: 11084608
B28: Emergency response | C28: 3340642 | D28: 3599281
B29: Non-network | C29: =SUM('2.6 Non-network'!E12:E30) -> 9906134 | D29: =SUM('2.6 Non-network'!F12:F30) -> 10673085
B30: Export services | C30: =SUM('7.8 Export Services'!C13:C14) -> 2323267.033 | D30: =SUM('7.8 Export Services'!D13:D14) -> 2391585.122
B31: Metering
B32: Network overheads | C32: ='2.10 Overheads'!D12 -> 29432510 | D32: ='2.10 Overheads'!E12 -> 28925983
B33: Corporate overheads | C33: ='2.10 Overheads'!D27 -> 10529652 | D33: ='2.10 Overheads'!E27 -> 8609222
B34: Total | C34: =SUM(C26:C33) -> 70859816.03 | D34: =SUM(D26:D33) -> 70713458.12
B37: 2.1.3 - ALTERNATIVE CONTROL SERVICES CAPEX
C38: =CONCATENATE("EXPENDITURE ($0's, real ", dms_DollarReal, ")") -> EXPENDITURE ($0's, real June 2024)
C39: =CRCP_y4 -> 2022-23 | D39: =CRCP_y5 -> 2023-24 | E39: =FRCP_y1 -> 2024-25 | F39: =FRCP_y2 -> 2025-26 | G39: =FRCP_y3 -> 2026-27 | H39: =FRCP_y4 -> 2027-28 | I39: =FRCP_y5 -> 2028-29
B40: Connections
B41: Metering
B42: Public lighting | C42: ='4.1 Public lighting'!D14+'4.1 Public lighting'!D18 -> 0 | D42: ='4.1 Public lighting'!E14+'4.1 Public lighting'!E18 -> 0 | E42: ='4.1 Public lighting'!F14+'4.1 Public lighting'!F18 -> 0 | F42: ='4.1 Public lighting'!G14+'4.1 Public lighting'!G18 -> 0 | G42: ='4.1 Public lighting'!H14+'4.1 Public lighting'!H18 -> 0 | H42: ='4.1 Public lighting'!I14+'4.1 Public lighting'!I18 -> 0 | I42: ='4.1 Public lighting'!J14+'4.1 Public lighting'!J18 -> 0
B43: Fee and quoted | C43: 1819441.75 | D43: 1740471.84 | E43: 2519109.14 | F43: 2465450.24 | G43: 2400969.41 | H43: 2327213.49 | I43: 2257322.18
B44: Network overheads | C44: ='2.10 Overheads'!D16 -> 0 | D44: ='2.10 Overheads'!E16 -> 0 | E44: ='2.10 Overheads'!F16 -> 0 | F44: ='2.10 Overheads'!G16 -> 0 | G44: ='2.10 Overheads'!H16 -> 0 | H44: ='2.10 Overheads'!I16 -> 0 | I44: ='2.10 Overheads'!J16 -> 0
B45: Corporate overheads | C45: ='2.10 Overheads'!D31 -> 318734 | D45: ='2.10 Overheads'!E31 -> 304900 | E45: ='2.10 Overheads'!F31 -> 441304 | F45: ='2.10 Overheads'!G31 -> 431904 | G45: ='2.10 Overheads'!H31 -> 420608 | H45: ='2.10 Overheads'!I31 -> 407687 | I45: ='2.10 Overheads'!J31 -> 395443
B46: Total | C46: =SUM(C40:C45) -> 2138175.75 | D46: 2045371.84 | E46: 2960413.14 | F46: 2897354.24 | G46: 2821577.41 | H46: 2734900.49 | I46: 2652765.18
B49: 2.1.4 - ALTERNATIVE CONTROL SERVICES OPEX
C50: =CONCATENATE("EXPENDITURE ($0's, real ", dms_DollarReal, ")") -> EXPENDITURE ($0's, real June 2024)
C51: =CRCP_y4 -> 2022-23 | D51: =CRCP_y5 -> 2023-24 | E51: =FRCP_y1 -> 2024-25 | F51: =FRCP_y2 -> 2025-26 | G51: =FRCP_y3 -> 2026-27 | H51: =FRCP_y4 -> 2027-28 | I51: =FRCP_y5 -> 2028-29
B52: Connections
B53: Metering | C53: ='3.2 Operating expenditure'!K71 -> 3019632 | D53: ='3.2 Operating expenditure'!L71 -> 2777054 | E53: ='3.2 Operating expenditure'!M71 -> 3214760 | F53: ='3.2 Operating expenditure'!N71 -> 3097144 | G53: ='3.2 Operating expenditure'!O71 -> 2908343 | H53: ='3.2 Operating expenditure'!P71 -> 2578031 | I53: ='3.2 Operating expenditure'!Q71 -> 1882295
B54: Public lighting | C54: ='3.2 Operating expenditure'!K73 -> 0 | D54: ='3.2 Operating expenditure'!L73 -> 0 | E54: ='3.2 Operating expenditure'!M73 -> 0 | F54: ='3.2 Operating expenditure'!N73 -> 0 | G54: ='3.2 Operating expenditure'!O73 -> 0 | H54: ='3.2 Operating expenditure'!P73 -> 0 | I54: ='3.2 Operating expenditure'!Q73 -> 0
B55: Fee and quoted | C55: 2197164 | D55: 2020658 | E55: 2243396.03 | F55: 2195610.02 | G55: 2138186.54 | H55: 2072503.11 | I55: 2010261.3
B56: Network overheads | C56: ='2.10 Overheads'!D13 -> 0 | D56: ='2.10 Overheads'!E13 -> 0 | E56: ='2.10 Overheads'!F13 -> 0 | F56: ='2.10 Overheads'!G13 -> 0 | G56: ='2.10 Overheads'!H13 -> 0 | H56: ='2.10 Overheads'!I13 -> 0 | I56: ='2.10 Overheads'!J13 -> 0
B57: Corporate overheads | C57: ='2.10 Overheads'!D28 -> 918169 | D57: ='2.10 Overheads'!E28 -> 844409 | E57: ='2.10 Overheads'!F28 -> 863104 | F57: ='2.10 Overheads'!G28 -> 837533 | G57: ='2.10 Overheads'!H28 -> 799865 | H57: ='2.10 Overheads'!I28 -> 740056 | I57: ='2.10 Overheads'!J28 -> 627414
B58: Total | C58: =SUM(C52:C57) -> 6134965 | D58: 5642121 | E58: 6321260.03 | F58: 6130287.02 | G58: 5846394.54 | H58: 5390590.11 | I58: 4519970.3
B61: 2.1.5 - DUAL FUNCTION ASSETS CAPEX
C62: =CONCATENATE("EXPENDITURE ($0's, real ", dms_DollarReal, ")") -> EXPENDITURE ($0's, real June 2024)
C63: =CRCP_y4 -> 2022-23 | D63: =CRCP_y5 -> 2023-24 | E63: =FRCP_y1 -> 2024-25 | F63: =FRCP_y2 -> 2025-26 | G63: =FRCP_y3 -> 2026-27 | H63: =FRCP_y4 -> 2027-28 | I63: =FRCP_y5 -> 2028-29
B64: Replacement expenditure | C64: 1373294 | D64: 562072 | E64: 1174333 | F64: 1148422 | G64: 1496950 | H64: 1410543 | I64: 1407856
B65: Connections | C65: 5525198 | D65: 3103962 | E65: 0 | F65: 0 | G65: 0 | H65: 0 | I65: 0
B66: Augmentation expenditure | C66: 1341264 | D66: 3054706 | E66: 5308673 | F66: 7221054 | G66: 5037638 | H66: 5961050 | I66: 10265330
B67: Non-network | C67: 5665941 | D67: 3188811 | E67: 2275664 | F67: 2606242 | G67: 1983122 | H67: 2297640 | I67: 3057733
B68: Export services
B69: Capitalised network overheads
B70: Capitalised corporate overheads | C70: 2372135 | D70: 1864382 | E70: 1447470 | F70: 1835393 | G70: 1488266 | H70: 1711660 | I70: 2579835
B71: capcons (included in the above) | C71: 0 | D71: 18128228 | E71: 0 | F71: 0 | G71: 0 | H71: 0 | I71: 0
B72: Total | C72: =SUM(C64:C70) -> 16277832 | D72: 11773933 | E72: 10206140 | F72: 12811111 | G72: 10005976 | H72: 11380893 | I72: 17310754
B75: 2.1.6 - DUAL FUNCTION ASSETS OPEX BY CATEGORY
C76: =CONCATENATE("EXPENDITURE ($0's, real ", dms_DollarReal, ")") -> EXPENDITURE ($0's, real June 2024)
C77: =CRCP_y4 -> 2022-23 | D77: =CRCP_y5 -> 2023-24
B78: Vegetation management | C78: 794890 | D78: 856432
B79: Maintenance | C79: 1622751 | D79: 1748388
B80: Emergency response | C80: 526923 | D80: 567719
B81: Non-network | C81: 1562506 | D81: 1683478
B82: Export services | C82: 366452 | D82: 377227
B83: Metering
B84: Network overheads | C84: 4584793 | D84: 4476940
B85: Corporate overheads | C85: 1660854 | D85: 1357942
B86: Total | C86: =SUM(C78:C85) -> 11119169 | D86: =SUM(D78:D85) -> 11068126
B89: 2.1.7 - STANDARD CONTROL SERVICES CAPCONS
C90: =CONCATENATE("EXPENDITURE ($0's, real ", dms_DollarReal, ")") -> EXPENDITURE ($0's, real June 2024)
C91: =CRCP_y4 -> 2022-23 | D91: =CRCP_y5 -> 2023-24 | E91: =FRCP_y1 -> 2024-25 | F91: =FRCP_y2 -> 2025-26 | G91: =FRCP_y3 -> 2026-27 | H91: =FRCP_y4 -> 2027-28 | I91: =FRCP_y5 -> 2028-29
B92: Replacement expenditure
B93: Connections | C93: 17606444 | D93: 41803191 | E93: 8713846 | F93: 8449305 | G93: 8782039 | H93: 8725160 | I93: 9565966
B94: Augmentation Expenditure
B95: Non-network
B96: Export services
B97: Capitalised network overheads
B98: Capitalised corporate overheads | C98: 3479764 | D98: 9339671 | E98: 1628724 | F98: 1589000 | G98: 1659738 | H98: 1654232 | I98: 1823115
B99: Total | C99: =SUM(C92:C98) -> 21086208 | D99: 51142862 | E99: 10342570 | F99: 10038305 | G99: 10441777 | H99: 10379392 | I99: 11389081
B102: 2.1.8 - STANDARD CONTROL SERVICES CAPITALISED OVERHEADS
C103: =CONCATENATE("EXPENDITURE ($0's, real ", dms_DollarReal, ")") -> EXPENDITURE ($0's, real June 2024)
C104: =CRCP_y4 -> 2022-23 | D104: =CRCP_y5 -> 2023-24 | E104: =FRCP_y1 -> 2024-25 | F104: =FRCP_y2 -> 2025-26 | G104: =FRCP_y3 -> 2026-27 | H104: =FRCP_y4 -> 2027-28 | I104: =FRCP_y5 -> 2028-29
B105: Replacement expenditure | C105: 5006413 | D105: 4938563 | E105: 3815707 | F105: 4102899 | G105: 4502010 | H105: 4878748 | I105: 4923977
B106: Connections | C106: 8446267 | D106: 6078253 | E106: 4531150 | F106: 4383899 | G106: 4590502 | H106: 4564455 | I106: 5071697
B107: Augmentation Expenditure | C107: 1752322 | D107: 3724612 | E107: 5115564 | F107: 5042790 | G107: 6713466 | H107: 8313064 | I107: 9158889
B108: Non-network | C108: 4163203 | D108: 2102782 | E108: 1318734 | F108: 1461596 | G108: 1416568 | H108: 1754290 | I108: 1982544
B109: Export services
B110: capcons (included in the above) | C110: 3479764 | D110: 9339671 | E110: 1628724 | F110: 1589000 | G110: 1659738 | H110: 1654232 | I110: 1823115
B111: Total | C111: =SUM(C105:C109) -> 19368205 | D111: 16844210 | E111: 14781155 | F111: 14991184 | G111: 17222546 | H111: 19510557 | I111: 21137107

Sheet 2.2 Repex
B1: =INDEX(dms_Worksheet_List,MATCH(dms_Model,dms_Model_List)) -> REGULATORY REPORTING STATEMENT
B2: =INDEX(dms_TradingNameFull_List,MATCH(dms_TradingName,dms_TradingName_List)) -> Evoenergy Distribution
B3: =CONCATENATE("REGULATORY PERIOD FROM ", FRCP_y1," TO ",dms_MultiYear_FinalYear_Result) -> REGULATORY PERIOD FROM 2024-25 TO 2028-29
B4: 2.2 REPEX
B6: There are THREE sub-tables on this worksheet. The table has been sub-grouped for easy navigation. See the Instructions sheet on how to group or ungroup tables.
B8: 2.2.1 - REPLACEMENT EXPENDITURE, VOLUMES AND ASSET FAILURES BY ASSET CATEGORY
B9: EXPENDITURE
D10: =CONCATENATE("EXPENDITURE ($0's, real ", dms_DollarReal, ")") -> EXPENDITURE ($0's, real June 2024)
B11: ASSET GROUP | C11: ASSET CATEGORY | D11: =CRCP_y4 -> 2022-23 | E11: =CRCP_y5 -> 2023-24 | F11: =FRCP_y1 -> 2024-25 | G11: =FRCP_y2 -> 2025-26 | H11: =FRCP_y3 -> 2026-27 | I11: =FRCP_y4 -> 2027-28 | J11: =FRCP_y5 -> 2028-29
B12: POLES BY: HIGHEST OPERATING VOLTAGE ; MATERIAL TYPE | C12: ˂ = 1 kV; Wood | D12: 35233 | E12: 35112 | F12: 53093 | G12: 53507 | H12: 71788 | I12: 72055 | J12: 72507
C13: > 1 kV & < = 11 kV; Wood | D13: 17616 | E13: 17556 | F13: 17698 | G13: 17836 | H13: 17947 | I13: 36028 | J13: 36253
C14: ˃ 11 kV & < = 22 kV; Wood | D14: 0 | E14: 0 | F14: 0 | G14: 0 | H14: 0 | I14: 0 | J14: 0
C15: > 22 kV & < = 66 kV; Wood | D15: 0 | E15: 0 | F15: 0 | G15: 0 | H15: 0 | I15: 0 | J15: 0
C16: > 66 kV & < = 132 kV; Wood | D16: 0 | E16: 0 | F16: 0 | G16: 0 | H16: 0 | I16: 0 | J16: 0
C17: > 132 kV; Wood | D17: 0 | E17: 0 | F17: 0 | G17: 0 | H17: 0 | I17: 0 | J17: 0
C18: ˂ = 1 kV; Concrete | D18: 968902 | E18: 965567 | F18: 1203438 | G18: 1409012 | H18: 1633172 | I18: 1801384 | J18: 1812669
C19: > 1 kV & < = 11 kV; Concrete | D19: 1145066 | E19: 1141125 | F19: 1433508 | G19: 1676546 | H19: 1938270 | I19: 2161661 | J19: 2175203
C20: ˃ 11 kV & < = 22 kV; Concrete | D20: 0 | E20: 0 | F20: 0 | G20: 0 | H20: 0 | I20: 0 | J20: 0
C21: > 22 kV & < = 66 kV; Concrete | D21: 0 | E21: 0 | F21: 0 | G21: 0 | H21: 0 | I21: 0 | J21: 0
C22: > 66 kV & < = 132 kV; Concrete | D22: 616007 | E22: 613886 | F22: 300737 | G22: 303081 | H22: 609947 | I22: 612221 | J22: 616056
C23: > 132 kV; Concrete | D23: 0 | E23: 0 | F23: 0 | G23: 0 | H23: 0 | I23: 0 | J23: 0
C24: ˂ = 1 kV; Steel | D24: 0 | E24: 0 | F24: 0 | G24: 0 | H24: 0 | I24: 0 | J24: 0
C25: > 1 kV & < = 11 kV; Steel | D25: 0 | E25: 0 | F25: 0 | G25: 0 | H25: 0 | I25: 0 | J25: 0
C26: ˃ 11 kV & < = 22 kV; Steel | D26: 0 | E26: 0 | F26: 0 | G26: 0 | H26: 0 | I26: 0 | J26: 0
C27: > 22 kV & < = 66 kV; Steel | D27: 0 | E27: 0 | F27: 0 | G27: 0 | H27: 0 | I27: 0 | J27: 0
C28: > 66 kV & < = 132 kV; Steel | D28: 0 | E28: 0 | F28: 0 | G28: 0 | H28: 0 | I28: 0 | J28: 0
C29: > 132 kV; Steel | D29: 0 | E29: 0 | F29: 0 | G29: 0 | H29: 0 | I29: 0 | J29: 0
C30: Other | D30: 1939411 | E30: 1999674 | F30: 2776553 | G30: 3261460 | H30: 3783920 | I30: 4213314 | J30: 4240994
B31: POLE TOP STRUCTURES BY: HIGHEST OPERATING VOLTAGE | C31: ˂ = 1 kV | D31: 960246 | E31: 956941 | F31: 749093 | G31: 754933 | H31: 759646 | I31: 762478 | J31: 767255
C32: > 1 kV & < = 11 kV | D32: 956937 | E32: 956941 | F32: 585993 | G32: 590562 | H32: 594249 | I32: 596464 | J32: 600200
C33: ˃ 11 kV & < = 22 kV | D33: 6958 | E33: 6934 | F33: 6990 | G33: 7044 | H33: 7088 | I33: 7115 | J33: 7159
C34: > 22 kV & < = 66 kV | D34: 0 | E34: 0 | F34: 0 | G34: 0 | H34: 0 | I34: 0 | J34: 0
C35: > 66 kV & < = 132 kV | D35: 0 | E35: 45039 | F35: 242853 | G35: 244746 | H35: 246274 | I35: 247192 | J35: 248741
C36: > 132 kV | D36: 0 | E36: 0 | F36: 0 | G36: 0 | H36: 0 | I36: 0 | J36: 0
C37: Other | D37: 0 | E37: 0 | F37: 1158643 | G37: 1126596 | H37: 1135656 | I37: 1202272 | J37: 1212606
B38: STAKING WOODEN POLES BY: HIGHEST OPERATING VOLTAGE | C38: ˂ = 1 Kv | D38: 213230 | E38: 85697 | F38: 127780 | G38: 129164 | H38: 130234 | I38: 130813 | J38: 131800
C39: > 1 kV & < = 11 kV | D39: 0 | E39: 0 | F39: 0 | G39: 0 | H39: 0 | I39: 0 | J39: 0
C40: ˃ 11 kV & < = 22 kV | D40: 0 | E40: 0 | F40: 0 | G40: 0 | H40: 0 | I40: 0 | J40: 0
C41: > 22 kV & < = 66 kV | D41: 0 | E41: 0 | F41: 0 | G41: 0 | H41: 0 | I41: 0 | J41: 0
C42: > 66 kV & < = 132 kV | D42: 0 | E42: 0 | F42: 0 | G42: 0 | H42: 0 | I42: 0 | J42: 0
C43: > 132 kV | D43: 0 | E43: 0 | F43: 0 | G43: 0 | H43: 0 | I43: 0 | J43: 0
B44: OVERHEAD CONDUCTORS BY: Highest operating voltage; Number of phases (at HV) | C44: ˂ = 1 kV | D44: 179185 | E44: 163224 | F44: 157411 | G44: 158786 | H44: 159892 | I44: 160616 | J44: 161802
C45: > 1 kV & < = 11 kV | D45: 38062 | E45: 37931 | F45: 66916 | G45: 67437 | H45: 67858 | I45: 68111 | J45: 68538
C46: ˃ 11 kV & < = 22 kV ; SWER | D46: 0 | E46: 0 | F46: 0 | G46: 0 | H46: 0 | I46: 0 | J46: 0
C47: ˃ 11 kV & < = 22 kV ; Single-Phase | D47: 0 | E47: 0 | F47: 0 | G47: 0 | H47: 0 | I47: 0 | J47: 0
C48: ˃ 11 kV & < = 22 kV ; Multiple-Phase | D48: 0 | E48: 0 | F48: 0 | G48: 0 | H48: 0 | I48: 0 | J48: 0
C49: > 22 kV & < = 66 kV | D49: 0 | E49: 0 | F49: 0 | G49: 0 | H49: 0 | I49: 0 | J49: 0
C50: > 66 kV & < = 132 kV | D50: 0 | E50: 0 | F50: 0 | G50: 0 | H50: 0 | I50: 0 | J50: 0
C51: > 132 kV | D51: 0 | E51: 0 | F51: 0 | G51: 0 | H51: 0 | I51: 0 | J51: 0
C52: Other | D52: 0 | E52: 0 | F52: 0 | G52: 0 | H52: 0 | I52: 0 | J52: 0
B53: UNDERGROUND CABLES BY: Highest operating voltage | C53: ˂ = 1 kV | D53: 1956617 | E53: 1431951 | F53: 1398984 | G53: 1429566 | H53: 1622507 | I53: 1694653 | J53: 1715620
C54: > 1 kV & < = 11 kV | D54: 953991 | E54: 1046295 | F54: 1015919 | G54: 1024775 | H54: 1031837 | I54: 1036188 | J54: 1043422
C55: > 11 kV & < = 22 kV | D55: 0 | E55: 0 | F55: 0 | G55: 0 | H55: 0 | I55: 0 | J55: 0
C56: > 22 kV & < = 33 kV | D56: 0 | E56: 0 | F56: 0 | G56: 0 | H56: 0 | I56: 0 | J56: 0
C57: > 33 kV & < = 66 kV | D57: 0 | E57: 0 | F57: 0 | G57: 0 | H57: 0 | I57: 0 | J57: 0
C58: > 66 kV & < = 132 kV | D58: 0 | E58: 0 | F58: 0 | G58: 0 | H58: 0 | I58: 0 | J58: 0
C59: > 132 kV | D59: 0 | E59: 0 | F59: 0 | G59: 0 | H59: 0 | I59: 0 | J59: 0
C60: Other | D60: 0 | E60: 0 | F60: 0 | G60: 0 | H60: 0 | I60: 0 | J60: 0
B61: SERVICE LINES BY: Connection voltage; Customer type; Connection complexity | C61: ˂ = 11 kV ; Residential ; Simple Type | D61: 538593 | E61: 220386 | F61: 183105 | G61: 184842 | H61: 248307 | I61: 353404 | J61: 356116
C62: ˂ = 11 kV ; Commercial & Industrial ; Simple Type | D62: 19603 | E62: 19535 | F62: 5215 | G62: 5256 | H62: 7052 | I62: 10027 | J62: 10090
C63: ˂ = 11 kV ; Residential ; Complex Type | D63: 0 | E63: 0 | F63: 0 | G63: 0 | H63: 0 | I63: 0 | J63: 0
C64: ˂ = 11 kV ; Commercial & Industrial ; Complex Type | D64: 0 | E64: 0 | F64: 0 | G64: 0 | H64: 0 | I64: 0 | J64: 0
C65: ˂ = 11 kV ; Subdivision ; Complex Type | D65: 0 | E65: 0 | F65: 0 | G65: 0 | H65: 0 | I65: 0 | J65: 0
C66: > 11 kV & < = 22 kV ; Commercial & Industrial | D66: 0 | E66: 0 | F66: 0 | G66: 0 | H66: 0 | I66: 0 | J66: 0
C67: > 11 kV & < = 22 kV ; Subdivision | D67: 0 | E67: 0 | F67: 0 | G67: 0 | H67: 0 | I67: 0 | J67: 0
C68: > 22 kV & < = 33 kV ; Commercial & Industrial | D68: 0 | E68: 0 | F68: 0 | G68: 0 | H68: 0 | I68: 0 | J68: 0
C69: > 22 kV & < = 33 kV ; Subdivision | D69: 0 | E69: 0 | F69: 0 | G69: 0 | H69: 0 | I69: 0 | J69: 0
C70: > 33 kV & < = 66 kV ; Commercial & Industrial | D70: 0 | E70: 0 | F70: 0 | G70: 0 | H70: 0 | I70: 0 | J70: 0
C71: > 33 kV & < = 66 kV ; Subdivision | D71: 0 | E71: 0 | F71: 0 | G71: 0 | H71: 0 | I71: 0 | J71: 0
C72: > 66 kV & < = 132 kV ; Commercial & Industrial | D72: 0 | E72: 0 | F72: 0 | G72: 0 | H72: 0 | I72: 0 | J72: 0
C73: > 66 kV & < = 132 kV ; Subdivision | D73: 0 | E73: 0 | F73: 0 | G73: 0 | H73: 0 | I73: 0 | J73: 0
C74: > 132 kV ; Commercial & Industrial | D74: 0 | E74: 0 | F74: 0 | G74: 0 | H74: 0 | I74: 0 | J74: 0
C75: > 132 kV ; Subdivision | D75: 0 | E75: 0 | F75: 0 | G75: 0 | H75: 0 | I75: 0 | J75: 0
C76: Other | D76: 0 | E76: 0 | F76: 0 | G76: 0 | H76: 0 | I76: 0 | J76: 0
B77: TRANSFORMERS BY: Mounting type; Highest operating voltage; Ampere rating; Number of phases (at LV) | C77: Pole Mounted ; < = 22kV ; < = 60 kVA ; Single Phase | D77: 0 | E77: 0 | F77: 0 | G77: 0 | H77: 0 | I77: 0 | J77: 0
C78: Pole Mounted ; < = 22kV ; > 60 kVA and < = 600 kVA ; Single Phase | D78: 0 | E78: 0 | F78: 0 | G78: 0 | H78: 0 | I78: 0 | J78: 0
C79: Pole Mounted ; < = 22kV ; > 600 kVA ; Single Phase | D79: 0 | E79: 0 | F79: 0 | G79: 0 | H79: 0 | I79: 0 | J79: 0
C80: Pole Mounted ; < = 22kV ; < = 60 kVA ; Multiple Phase | D80: 0 | E80: 0 | F80: 0 | G80: 0 | H80: 0 | I80: 0 | J80: 0
C81: Pole Mounted ; < = 22kV ; > 60 kVA and < = 600 kVA ; Multiple Phase | D81: 471104 | E81: 583083 | F81: 587486 | G81: 591505 | H81: 594720 | I81: 596721 | J81: 600040
C82: Pole Mounted ; < = 22kV ; > 600 kVA ; Multiple Phase | D82: 0 | E82: 0 | F82: 0 | G82: 0 | H82: 0 | I82: 0 | J82: 0
C83: Kiosk Mounted ; < = 22kV ; < = 60 kVA ; Single Phase | D83: 0 | E83: 0 | F83: 0 | G83: 0 | H83: 0 | I83: 0 | J83: 0
C84: Kiosk Mounted ; < = 22kV ; > 60 kVA and < = 600 kVA ; Single Phase | D84: 0 | E84: 0 | F84: 0 | G84: 0 | H84: 0 | I84: 0 | J84: 0
C85: Kiosk Mounted ; < = 22kV ; > 600 kVA ; Single Phase | D85: 0 | E85: 0 | F85: 0 | G85: 0 | H85: 0 | I85: 0 | J85: 0
C86: Kiosk Mounted ; < = 22kV ; < = 60 kVA ; Multiple Phase | D86: 0 | E86: 0 | F86: 0 | G86: 0 | H86: 0 | I86: 0 | J86: 0
C87: Kiosk Mounted ; < = 22kV ; > 60 kVA and < = 600 kVA ; Multiple Phase | D87: 1359634 | E87: 665121 | F87: 841789 | G87: 846336 | H87: 849955 | I87: 852171 | J87: 855858
C88: Kiosk Mounted ; < = 22kV ; > 600 kVA ; Multiple Phase | D88: 0 | E88: 0 | F88: 0 | G88: 0 | H88: 0 | I88: 0 | J88: 0
C89: Ground Outdoor / Indoor Chamber Mounted; ˂ 22 kV ; < = 60 kVA ; Single Phase | D89: 0 | E89: 0 | F89: 0 | G89: 0 | H89: 0 | I89: 0 | J89: 0
C90: Ground Outdoor / Indoor Chamber Mounted; ˂ 22 kV ; > 60 kVA and < = 600 kVA ; Single Phase | D90: 0 | E90: 0 | F90: 0 | G90: 0 | H90: 0 | I90: 0 | J90: 0
C91: Ground Outdoor / Indoor Chamber Mounted; ˂ 22 kV ; > 600 kVA ; Single Phase | D91: 0 | E91: 0 | F91: 0 | G91: 0 | H91: 0 | I91: 0 | J91: 0
C92: Ground Outdoor / Indoor Chamber Mounted; ˂ 22 kV ; < = 60 kVA ; Multiple Phase | D92: 0 | E92: 0 | F92: 0 | G92: 0 | H92: 0 | I92: 0 | J92: 0
C93: Ground Outdoor / Indoor Chamber Mounted; ˂ 22 kV ; > 60 kVA and < = 600 kVA ; Multiple Phase | D93: 100557.6787 | E93: 0 | F93: 101021 | G93: 0 | H93: 102444 | I93: 0 | J93: 103471
C94: Ground Outdoor / Indoor Chamber Mounted; ˂ 22 kV ; > 600 kVA ; Multiple Phase | D94: 0 | E94: 100212 | F94: 0 | G94: 101809 | H94: 0 | I94: 102826 | J94: 0
C95: Ground Outdoor / Indoor Chamber Mounted; > = 22 kV & < = 33 kV ; < = 15 MVA | D95: 0 | E95: 0 | F95: 0 | G95: 0 | H95: 0 | I95: 0 | J95: 0
C96: Ground Outdoor / Indoor Chamber Mounted; > = 22 kV & < = 33 kV ; > 15 MVA and < = 40 MVA | D96: 0 | E96: 0 | F96: 0 | G96: 0 | H96: 0 | I96: 0 | J96: 0
C97: Ground Outdoor / Indoor Chamber Mounted; > = 22 kV & < = 33 kV ; > 40 MVA | D97: 0 | E97: 0 | F97: 0 | G97: 0 | H97: 0 | I97: 0 | J97: 0
C98: Ground Outdoor / Indoor Chamber Mounted; > 33 kV & < = 66 kV ; < = 15 MVA | D98: 0 | E98: 0 | F98: 0 | G98: 0 | H98: 0 | I98: 0 | J98: 0
C99: Ground Outdoor / Indoor Chamber Mounted; > 33 kV & < = 66 kV ; > 15 MVA and < = 40 MVA | D99: 0 | E99: 0 | F99: 0 | G99: 0 | H99: 0 | I99: 0 | J99: 0
C100: Ground Outdoor / Indoor Chamber Mounted; > 33 kV & < = 66 kV ; > 40 MVA | D100: 0 | E100: 0 | F100: 0 | G100: 0 | H100: 0 | I100: 0 | J100: 0
C101: Ground Outdoor / Indoor Chamber Mounted; > 66 kV & < = 132 kV ; < = 100 MVA | D101: 2024384 | E101: 0 | F101: 0 | G101: 0 | H101: 1292912 | I101: 0 | J101: 0
C102: Ground Outdoor / Indoor Chamber Mounted; > 66 kV & < = 132 kV ; > 100 MVA | D102: 0 | E102: 0 | F102: 0 | G102: 0 | H102: 0 | I102: 0 | J102: 0
C103: Ground Outdoor / Indoor Chamber Mounted; > 132 kV ; < = 100 MVA | D103: 0 | E103: 0 | F103: 0 | G103: 0 | H103: 0 | I103: 0 | J103: 0
C104: Ground Outdoor / Indoor Chamber Mounted; > 132 kV ; > 100 MVA | D104: 0 | E104: 0 | F104: 0 | G104: 0 | H104: 0 | I104: 0 | J104: 0
C105: Other | D105: 89253 | E105: 55894 | F105: 324522 | G105: 226675 | H105: 421291 | I105: 834180 | J105: 386529
B106: SWITCHGEAR BY: Highest operating voltage; Switch function | C106: ˂ = 11 kV ; FUSE | D106: 92362 | E106: 92044 | F106: 169256 | G106: 170576 | H106: 171641 | I106: 172280 | J106: 173360
C107: ˂ = 11 kV ; Switch | D107: 1864820 | E107: 704401 | F107: 839602 | G107: 845193 | H107: 904466 | I107: 962402 | J107: 967476
C108: ˂ = 11 kV ; Circuit Breaker | D108: 205494 | E108: 204787 | F108: 206442 | G108: 208051 | H108: 209350 | I108: 210130 | J108: 211447
C109: > 11 kV & < = 22 kV ; Switch | D109: 0 | E109: 0 | F109: 0 | G109: 0 | H109: 0 | I109: 0 | J109: 0
C110: > 11 kV & < = 22 kV ; Circuit Breaker | D110: 0 | E110: 0 | F110: 0 | G110: 0 | H110: 0 | I110: 0 | J110: 0
C111: > 22 kV & < = 33 kV ; Switch | D111: 0 | E111: 0 | F111: 0 | G111: 0 | H111: 0 | I111: 0 | J111: 0
C112: > 22 kV & < = 33 kV ; Circuit Breaker | D112: 0 | E112: 0 | F112: 0 | G112: 0 | H112: 0 | I112: 0 | J112: 0
C113: > 33 kV & < = 66 kV ; Switch | D113: 0 | E113: 0 | F113: 0 | G113: 0 | H113: 0 | I113: 0 | J113: 0
C114: > 33 kV & < = 66 kV ; Circuit Breaker | D114: 0 | E114: 0 | F114: 0 | G114: 0 | H114: 0 | I114: 0 | J114: 0
C115: > 66 kV & < = 132 kV ; Switch | D115: 0 | E115: 0 | F115: 0 | G115: 0 | H115: 0 | I115: 0 | J115: 0
C116: > 66 kV & < = 132 kV ; Circuit Breaker | D116: 1864467 | E116: 4948114 | F116: 1726765 | G116: 1760680 | H116: 470834 | I116: 429059 | J116: 906983
C117: > 132 kV ; Switch | D117: 0 | E117: 0 | F117: 0 | G117: 0 | H117: 0 | I117: 0 | J117: 0
C118: > 132 kV ; Circuit Breaker | D118: 0 | E118: 0 | F118: 0 | G118: 0 | H118: 0 | I118: 0 | J118: 0
C119: Other | D119: 0 | E119: 0 | F119: 0 | G119: 0 | H119: 0 | I119: 0 | J119: 0
B120: PUBLIC LIGHTING BY: Asset type ; Lighting obligation | C120: Luminaires ; Major Road
C121: Luminaires ; Minor Road
C122: Brackets ; Major Road
C123: Brackets ; Minor Road
C124: Lamps ; Major Road
C125: Lamps ; Minor Road
C126: Poles / Columns ; Major Road
C127: Poles / Columns ; Minor Road
C128: Other
B129: SCADA, NETWORK CONTROL AND PROTECTION SYSTEMS BY: Function | C129: Field Devices | D129: 2991905 | E129: 3002701 | F129: 1775840 | G129: 2264427 | H129: 2277364 | I129: 3528905 | J129: 3549514
C130: Local Network Wiring Assets | D130: 647820 | E130: 668426 | F130: 513993 | G130: 536493 | H130: 539834 | I130: 659543 | J130: 545425
C131: Communications Network Assets | D131: 343254 | E131: 601914 | F131: 568959 | G131: 834764 | H131: 705441 | I131: 1048607 | J131: 1252119
C132: Master Station Assets | D132: 0 | E132: 0 | F132: 0 | G132: 0 | H132: 0 | I132: 0 | J132: 0
C133: Communications Site Infrastructure | D133: 0 | E133: 0 | F133: 0 | G133: 0 | H133: 0 | I133: 0 | J133: 0
C134: Communications Linear Assets | D134: 0 | E134: 0 | F134: 0 | G134: 0 | H134: 0 | I134: 0 | J134: 0
C135: AFLC | D135: 0 | E135: 0 | F135: 0 | G135: 0 | H135: 0 | I135: 0 | J135: 0
C136: Other | D136: 0 | E136: 0 | F136: 0 | G136: 0 | H136: 0 | I136: 0 | J136: 0
B137: OTHER: | C137: Other | D137: 720293 | E137: 733894 | F137: 1274833 | G137: 984983 | H137: 1215223 | I137: 1169876 | J137: 1007078
B181: ASSET REPLACEMENTS
D182: VOLUMES (0's)
B183: ASSET GROUP | C183: ASSET CATEGORY | D183: =CRCP_y4 -> 2022-23 | E183: =CRCP_y5 -> 2023-24 | F183: =FRCP_y1 -> 2024-25 | G183: =FRCP_y2 -> 2025-26 | H183: =FRCP_y3 -> 2026-27 | I183: =FRCP_y4 -> 2027-28 | J183: =FRCP_y5 -> 2028-29
B184: POLES BY: HIGHEST OPERATING VOLTAGE ; MATERIAL TYPE | C184: Staking of a wooden pole | D184: 50 | E184: 50 | F184: 50 | G184: 50 | H184: 50 | I184: 50 | J184: 50
C185: ˂ = 1 kV; Wood | D185: 2 | E185: 2 | F185: 3 | G185: 3 | H185: 4 | I185: 4 | J185: 4
C186: > 1 kV & < = 11 kV; Wood | D186: 1 | E186: 1 | F186: 1 | G186: 1 | H186: 1 | I186: 2 | J186: 2
C187: ˃ 11 kV & < = 22 kV; Wood | D187: 0 | E187: 0 | F187: 0 | G187: 0 | H187: 0 | I187: 0 | J187: 0
C188: > 22 kV & < = 66 kV; Wood | D188: 0 | E188: 0 | F188: 0 | G188: 0 | H188: 0 | I188: 0 | J188: 0
C189: > 66 kV & < = 132 kV; Wood | D189: 0 | E189: 0 | F189: 0 | G189: 0 | H189: 0 | I189: 0 | J189: 0
C190: > 132 kV; Wood | D190: 0 | E190: 0 | F190: 0 | G190: 0 | H190: 0 | I190: 0 | J190: 0
C191: ˂ = 1 kV; Concrete | D191: 55 | E191: 55 | F191: 68 | G191: 79 | H191: 91 | I191: 100 | J191: 100
C192: > 1 kV & < = 11 kV; Concrete | D192: 65 | E192: 65 | F192: 81 | G192: 94 | H192: 108 | I192: 120 | J192: 120
C193: ˃ 11 kV & < = 22 kV; Concrete | D193: 0 | E193: 0 | F193: 0 | G193: 0 | H193: 0 | I193: 0 | J193: 0
C194: > 22 kV & < = 66 kV; Concrete | D194: 0 | E194: 0 | F194: 0 | G194: 0 | H194: 0 | I194: 0 | J194: 0
C195: > 66 kV & < = 132 kV; Concrete | D195: 11 | E195: 11 | F195: 5 | G195: 5 | H195: 10 | I195: 10 | J195: 10
C196: > 132 kV; Concrete | D196: 0 | E196: 0 | F196: 0 | G196: 0 | H196: 0 | I196: 0 | J196: 0
C197: ˂ = 1 kV; Steel | D197: 0 | E197: 0 | F197: 0 | G197: 0 | H197: 0 | I197: 0 | J197: 0
C198: > 1 kV & < = 11 kV; Steel | D198: 0 | E198: 0 | F198: 0 | G198: 0 | H198: 0 | I198: 0 | J198: 0
C199: ˃ 11 kV & < = 22 kV; Steel | D199: 0 | E199: 0 | F199: 0 | G199: 0 | H199: 0 | I199: 0 | J199: 0
C200: > 22 kV & < = 66 kV; Steel | D200: 0 | E200: 0 | F200: 0 | G200: 0 | H200: 0 | I200: 0 | J200: 0
C201: > 66 kV & < = 132 kV; Steel | D201: 0 | E201: 0 | F201: 0 | G201: 0 | H201: 0 | I201: 0 | J201: 0
C202: > 132 kV; Steel | D202: 0 | E202: 0 | F202: 0 | G202: 0 | H202: 0 | I202: 0 | J202: 0
C203: Other | D203: 127 | E203: 127 | F203: 157 | G203: 183 | H203: 211 | I203: 234 | J203: 234
B204: POLE TOP STRUCTURES BY: HIGHEST OPERATING VOLTAGE | C204: ˂ = 1 kV | D204: 291 | E204: 291 | F204: 1458 | G204: 1458 | H204: 1458 | I204: 1458 | J204: 1458
C205: > 1 kV & < = 11 kV | D205: 227 | E205: 227 | F205: 1141 | G205: 1141 | H205: 1141 | I205: 1141 | J205: 1141
C206: ˃ 11 kV & < = 22 kV | D206: 3 | E206: 3 | F206: 14 | G206: 14 | H206: 14 | I206: 14 | J206: 14
C207: > 22 kV & < = 66 kV | D207: 0 | E207: 0 | F207: 0 | G207: 0 | H207: 0 | I207: 0 | J207: 0
C208: > 66 kV & < = 132 kV | D208: 0 | E208: 4 | F208: 21 | G208: 21 | H208: 21 | I208: 21 | J208: 21
C209: > 132 kV | D209: 0 | E209: 0 | F209: 0 | G209: 0 | H209: 0 | I209: 0 | J209: 0
C210: Other | D210: 0 | E210: 0 | F210: 0 | G210: 0 | H210: 0 | I210: 0 | J210: 0
B211: STAKING WOODEN POLES BY: HIGHEST OPERATING VOLTAGE | C211: ˂ = 1 Kv | D211: 50 | E211: 50 | F211: 50 | G211: 50 | H211: 50 | I211: 50 | J211: 50
C212: > 1 kV & < = 11 kV | D212: 0 | E212: 0 | F212: 0 | G212: 0 | H212: 0 | I212: 0 | J212: 0
C213: ˃ 11 kV & < = 22 kV | D213: 0 | E213: 0 | F213: 0 | G213: 0 | H213: 0 | I213: 0 | J213: 0
C214: > 22 kV & < = 66 kV | D214: 0 | E214: 0 | F214: 0 | G214: 0 | H214: 0 | I214: 0 | J214: 0
C215: > 66 kV & < = 132 kV | D215: 0 | E215: 0 | F215: 0 | G215: 0 | H215: 0 | I215: 0 | J215: 0
C216: > 132 kV
B217: OVERHEAD CONDUCTORS BY: Highest operating voltage; Number of phases (at HV) | C217: ˂ = 1 kV | D217: 15 | E217: 15 | F217: 26 | G217: 26 | H217: 26 | I217: 26 | J217: 26
C218: > 1 kV & < = 11 kV | D218: 5 | E218: 5 | F218: 9 | G218: 9 | H218: 9 | I218: 9 | J218: 9
C219: ˃ 11 kV & < = 22 kV ; SWER | D219: 0 | E219: 0 | F219: 0 | G219: 0 | H219: 0 | I219: 0 | J219: 0
C220: ˃ 11 kV & < = 22 kV ; Single-Phase | D220: 0 | E220: 0 | F220: 0 | G220: 0 | H220: 0 | I220: 0 | J220: 0
C221: ˃ 11 kV & < = 22 kV ; Multiple-Phase | D221: 0 | E221: 0 | F221: 0 | G221: 0 | H221: 0 | I221: 0 | J221: 0
C222: > 22 kV & < = 66 kV | D222: 0 | E222: 0 | F222: 0 | G222: 0 | H222: 0 | I222: 0 | J222: 0
C223: > 66 kV & < = 132 kV | D223: 0 | E223: 0 | F223: 0 | G223: 0 | H223: 0 | I223: 0 | J223: 0
C224: > 132 kV | D224: 0 | E224: 0 | F224: 0 | G224: 0 | H224: 0 | I224: 0 | J224: 0
C225: Other | D225: 0 | E225: 0 | F225: 0 | G225: 0 | H225: 0 | I225: 0 | J225: 0
B226: UNDERGROUND CABLES BY: Highest operating voltage | C226: ˂ = 1 kV | D226: 85 | E226: 85 | F226: 94 | G226: 94 | H226: 97 | I226: 99 | J226: 100
C227: > 1 kV & < = 11 kV | D227: 39 | E227: 39 | F227: 39 | G227: 39 | H227: 39 | I227: 39 | J227: 39
C228: > 11 kV & < = 22 kV | D228: 0 | E228: 0 | F228: 0 | G228: 0 | H228: 0 | I228: 0 | J228: 0
C229: > 22 kV & < = 33 kV | D229: 0 | E229: 0 | F229: 0 | G229: 0 | H229: 0 | I229: 0 | J229: 0
C230: > 33 kV & < = 66 kV | D230: 0 | E230: 0 | F230: 0 | G230: 0 | H230: 0 | I230: 0 | J230: 0
C231: > 66 kV & < = 132 kV | D231: 0 | E231: 0 | F231: 0 | G231: 0 | H231: 0 | I231: 0 | J231: 0
C232: > 132 kV | D232: 0 | E232: 0 | F232: 0 | G232: 0 | H232: 0 | I232: 0 | J232: 0
C233: Other | D233: 0 | E233: 0 | F233: 0 | G233: 0 | H233: 0 | I233: 0 | J233: 0
B234: SERVICE LINES BY: Connection voltage; Customer type; Connection complexity | C234: ˂ = 11 kV ; Residential ; Simple Type | D234: 272 | E234: 272 | F234: 88 | G234: 88 | H234: 117 | I234: 165 | J234: 165
C235: ˂ = 11 kV ; Commercial & Industrial ; Simple Type | D235: 8 | E235: 8 | F235: 2 | G235: 2 | H235: 3 | I235: 5 | J235: 5
C236: ˂ = 11 kV ; Residential ; Complex Type | D236: 0 | E236: 0 | F236: 0 | G236: 0 | H236: 0 | I236: 0 | J236: 0
C237: ˂ = 11 kV ; Commercial & Industrial ; Complex Type | D237: 0 | E237: 0 | F237: 0 | G237: 0 | H237: 0 | I237: 0 | J237: 0
C238: ˂ = 11 kV ; Subdivision ; Complex Type | D238: 0 | E238: 0 | F238: 0 | G238: 0 | H238: 0 | I238: 0 | J238: 0
C239: > 11 kV & < = 22 kV ; Commercial & Industrial | D239: 0 | E239: 0 | F239: 0 | G239: 0 | H239: 0 | I239: 0 | J239: 0
C240: > 11 kV & < = 22 kV ; Subdivision | D240: 0 | E240: 0 | F240: 0 | G240: 0 | H240: 0 | I240: 0 | J240: 0
C241: > 22 kV & < = 33 kV ; Commercial & Industrial | D241: 0 | E241: 0 | F241: 0 | G241: 0 | H241: 0 | I241: 0 | J241: 0
C242: > 22 kV & < = 33 kV ; Subdivision | D242: 0 | E242: 0 | F242: 0 | G242: 0 | H242: 0 | I242: 0 | J242: 0
C243: > 33 kV & < = 66 kV ; Commercial & Industrial | D243: 0 | E243: 0 | F243: 0 | G243: 0 | H243: 0 | I243: 0 | J243: 0
C244: > 33 kV & < = 66 kV ; Subdivision | D244: 0 | E244: 0 | F244: 0 | G244: 0 | H244: 0 | I244: 0 | J244: 0
C245: > 66 kV & < = 132 kV ; Commercial & Industrial | D245: 0 | E245: 0 | F245: 0 | G245: 0 | H245: 0 | I245: 0 | J245: 0
... 207 more rows

Sheet 2.3 Augex (b)
B1: =INDEX(dms_Worksheet_List,MATCH(dms_Model,dms_Model_List)) -> REGULATORY REPORTING STATEMENT
B2: =INDEX(dms_TradingNameFull_List,MATCH(dms_TradingName,dms_TradingName_List)) -> Evoenergy Distribution
B3: =CONCATENATE("REGULATORY PERIOD FROM ", FRCP_y1," TO ",dms_MultiYear_FinalYear_Result) -> REGULATORY PERIOD FROM 2024-25 TO 2028-29
B4: 2.3 AUGEX PROJECT DATA
B6: There are FOUR tables on this worksheet. These tables have been 'grouped' (and sub-grouped) for easy navigation. See the Instructions sheet on how to group or ungroup tables.
B8: NOTE: DNSP must provide expenditure information on an 'as incurred' basis.
B9: 2.3.3 - AUGEX DATA - HV/LV FEEDERS AND DISTRIBUTION SUBSTATIONS
D10: VOLUMES (0's)
B11: PROJECT TYPE | C11: UNITS | D11: =CRCP_y4 -> 2022-23 | E11: =CRCP_y5 -> 2023-24 | F11: =FRCP_y1 -> 2024-25 | G11: =FRCP_y2 -> 2025-26 | H11: =FRCP_y3 -> 2026-27 | I11: =FRCP_y4 -> 2027-28 | J11: =FRCP_y5 -> 2028-29
B12: DESCRIPTOR METRICS - UNITS ADDED
B13: HV Feeder Augmentations - Overhead Lines | C13: Circuit Line Length in KM | D13: 0 | E13: 0 | F13: 0 | G13: 0 | H13: 0 | I13: 0 | J13: 0
B14: HV Feeder Augmentations - Underground Cables | C14: Circuit Line Length in KM | D14: 16.2 | E14: 13.6 | F14: 11 | G14: 8.8 | H14: 19.5 | I14: 28 | J14: 34.9
B15: LV Feeder Augmentations - Overhead Lines | C15: Circuit Line Length in KM | D15: 0 | E15: 0 | F15: 0 | G15: 0 | H15: 0 | I15: 0 | J15: 0
B16: LV Feeder Augmentations - Underground Cables | C16: Circuit Line Length in KM | D16: 0 | E16: 0 | F16: 0 | G16: 0 | H16: 0 | I16: 0 | J16: 0
B17: Distribution Substation Augmentations - Pole Mounted | C17: Number | D17: 0 | E17: 0 | F17: 0 | G17: 0 | H17: 0 | I17: 0 | J17: 0
B18: Distribution Substation Augmentations - Ground Mounted | C18: Number | D18: 0 | E18: 0 | F18: 0 | G18: 0 | H18: 0 | I18: 0 | J18: 0
B19: Distribution Substation Augmentations - Indoor | C19: Number | D19: 0 | E19: 0 | F19: 0 | G19: 0 | H19: 0 | I19: 0 | J19: 0
B20: DESCRIPTOR METRICS - UNITS UPGRADED
B21: HV Feeder Augmentations - Overhead Lines | C21: Circuit Line Length in KM | D21: 0.4 | E21: 0 | F21: 0.9 | G21: 1.1 | H21: 1.2 | I21: 1 | J21: 1
B22: HV Feeder Augmentations - Underground Cables | C22: Circuit Line Length in KM | D22: 0 | E22: 0 | F22: 0 | G22: 0 | H22: 0 | I22: 0 | J22: 0
B23: LV Feeder Augmentations - Overhead Lines | C23: Circuit Line Length in KM | D23: 0 | E23: 0 | F23: 0.1 | G23: 0.3 | H23: 0.3 | I23: 0.4 | J23: 0.4
B24: LV Feeder Augmentations - Underground Cables | C24: Circuit Line Length in KM | D24: 0 | E24: 0 | F24: 0 | G24: 0 | H24: 0 | I24: 0 | J24: 0
B25: Distribution Substation Augmentations - Pole Mounted | C25: Number | D25: 0 | E25: 0 | F25: 0 | G25: 0 | H25: 0 | I25: 0 | J25: 0
B26: Distribution Substation Augmentations - Ground Mounted | C26: Number | D26: 0 | E26: 0 | F26: 3 | G26: 7 | H26: 10 | I26: 13 | J26: 17
B27: Distribution Substation Augmentations - Indoor | C27: Number | D27: 0 | E27: 0 | F27: 0 | G27: 0 | H27: 0 | I27: 0 | J27: 0
B29: COST METRICS
D30: =CONCATENATE("TOTAL DIRECT EXPENDITURE ($0's, real ", dms_DollarReal,")") -> TOTAL DIRECT EXPENDITURE ($0's, real June 2024)
B31: PROJECT TYPE | D31: =CRCP_y4 -> 2022-23 | E31: =CRCP_y5 -> 2023-24 | F31: =FRCP_y1 -> 2024-25 | G31: =FRCP_y2 -> 2025-26 | H31: =FRCP_y3 -> 2026-27 | I31: =FRCP_y4 -> 2027-28 | J31: =FRCP_y5 -> 2028-29
B32: HV Feeder Augmentations - Overhead Lines | D32: 210885 | E32: 0 | F32: 561490 | G32: 687570 | H32: 692427 | I32: 572861 | J32: 576674
B33: HV Feeder Augmentations - Underground Cables | D33: 4145624 | E33: 7533542 | F33: 10670132 | G33: 6942554 | H33: 20475957 | I33: 25826181 | J33: 20926629
B34: HV Feeder Non-Material Projects | D34: 0 | E34: 0 | F34: 0 | G34: 0 | H34: 0 | I34: 0 | J34: 0
B35: LV Feeder Augmentations - Overhead Lines | D35: 0 | E35: 0 | F35: 256150 | G35: 516958 | H35: 520593 | I35: 783969 | J35: 789177
B36: LV Feeder Augmentations - Underground Cables | D36: 0 | E36: 0 | F36: 0 | G36: 0 | H36: 0 | I36: 0 | J36: 0
B37: LV Feeder Non-Material Projects | D37: 0 | E37: 0 | F37: 0 | G37: 0 | H37: 0 | I37: 0 | J37: 0
B38: Distribution Substation Augmentations - Pole Mounted | D38: 0 | E38: 0 | F38: 0 | G38: 0 | H38: 0 | I38: 0 | J38: 0
B39: Distribution Substation Augmentations - Ground Mounted | D39: 0 | E39: 0 | F39: 335644 | G39: 677393 | H39: 1023235 | I39: 1369693 | J39: 1723489
B40: Distribution Substation Augmentations - Indoor | D40: 0 | E40: 0 | F40: 0 | G40: 0 | H40: 0 | I40: 0 | J40: 0
B44: 2.3.4 - AUGEX - TOTAL EXPENDITURE
D45: =CONCATENATE("TOTAL DIRECT EXPENDITURE ($0's, real ", dms_DollarReal,")") -> TOTAL DIRECT EXPENDITURE ($0's, real June 2024)
D46: =CRCP_y4 -> 2022-23 | E46: =CRCP_y5 -> 2023-24 | F46: =FRCP_y1 -> 2024-25 | G46: =FRCP_y2 -> 2025-26 | H46: =FRCP_y3 -> 2026-27 | I46: =FRCP_y4 -> 2027-28 | J46: =FRCP_y5 -> 2028-29
B47: Subtransmission Substations, Switching Stations, Zone Substations | D47: 16393768 | E47: 13178663 | F47: 11140110 | G47: 15463161 | H47: 10480202 | I47: 11847090 | J47: 13195723
B48: Subtransmission Lines | D48: 2607093 | E48: 2970544 | F48: 2086687 | G48: 2192512 | H48: 1993412 | I48: 3109099 | J48: 10505256
B49: HV Feeders | D49: 4356509 | E49: 7533542 | F49: 11231623 | G49: 7630124 | H49: 21168384 | I49: 26399042 | J49: 21503303
B50: HV Feeders - Land Purchases and Easements | D50: 0 | E50: 0 | F50: 0 | G50: 0 | H50: 0 | I50: 0 | J50: 0
B51: Distribution Substations | D51: 0 | E51: 0 | F51: 335644 | G51: 677393 | H51: 1023235 | I51: 1369693 | J51: 1723489
B52: Distribution Substations - Land Purchases and Easements | D52: 0 | E52: 0 | F52: 0 | G52: 0 | H52: 0 | I52: 0 | J52: 0
B53: LV Feeders | D53: 0 | E53: 0 | F53: 256150 | G53: 516958 | H53: 520593 | I53: 783969 | J53: 789177
B54: LV Feeders - Land Purchases and Easements | D54: 0 | E54: 0 | F54: 0 | G54: 0 | H54: 0 | I54: 0 | J54: 0
B55: Other Assets | D55: 0 | E55: 0 | F55: 0 | G55: 0 | H55: 0 | I55: 0 | J55: 0
B59: 2.3.5 - AUGEX - BY DRIVER
D60: =CONCATENATE("TOTAL DIRECT EXPENDITURE ($0's, real ", dms_DollarReal,")") -> TOTAL DIRECT EXPENDITURE ($0's, real June 2024)
D61: =CRCP_y4 -> 2022-23 | E61: =CRCP_y5 -> 2023-24 | F61: =FRCP_y1 -> 2024-25 | G61: =FRCP_y2 -> 2025-26 | H61: =FRCP_y3 -> 2026-27 | I61: =FRCP_y4 -> 2027-28 | J61: =FRCP_y5 -> 2028-29
B62: "Greenfield" driven augex (network expansion capex) | D62: 2635468 | E62: 10204616 | F62: 13174644 | G62: 14391338 | H62: 9213122 | I62: 3490868 | J62: 5029549
B63: Reinforcement driven augex (augmentation of the existing network) | D63: 20721902 | E63: 13478133 | F63: 11875570 | G63: 12088809 | H63: 25972703 | I63: 40018025 | J63: 42687399
B67: 2.3.6 - AUGEX - GREENFIELDS DRIVEN
D68: =CONCATENATE("TOTAL DIRECT EXPENDITURE ($0's, real ", dms_DollarReal,")") -> TOTAL DIRECT EXPENDITURE ($0's, real June 2024)
D69: =CRCP_y4 -> 2022-23 | E69: =CRCP_y5 -> 2023-24 | F69: =FRCP_y1 -> 2024-25 | G69: =FRCP_y2 -> 2025-26 | H69: =FRCP_y3 -> 2026-27 | I69: =FRCP_y4 -> 2027-28 | J69: =FRCP_y5 -> 2028-29
B70: Subtransmission Substations, Switching Stations, Zone Substations | D70: 1850728 | E70: 6166807 | F70: 11058088 | G70: 14391338 | H70: 8606471 | I70: 812937 | J70: 3275275
B71: Subtransmission Lines | D71: 0 | E71: 0 | F71: 0 | G71: 0 | H71: 0 | I71: 0 | J71: 0
B72: HV Feeders | D72: 784741 | E72: 4037809 | F72: 2116556 | G72: 0 | H72: 606651 | I72: 2677931 | J72: 1754274
B73: HV Feeders - Land Purchases and Easements | D73: 0 | E73: 0 | F73: 0 | G73: 0 | H73: 0 | I73: 0 | J73: 0
B74: Distribution Substations | D74: 0 | E74: 0 | F74: 0 | G74: 0 | H74: 0 | I74: 0 | J74: 0
B75: Distribution Substations - Land Purchases and Easements | D75: 0 | E75: 0 | F75: 0 | G75: 0 | H75: 0 | I75: 0 | J75: 0
B76: LV Feeders | D76: 0 | E76: 0 | F76: 0 | G76: 0 | H76: 0 | I76: 0 | J76: 0
B77: LV Feeders - Land Purchases and Easements | D77: 0 | E77: 0 | F77: 0 | G77: 0 | H77: 0 | I77: 0 | J77: 0
B78: Other Assets | D78: 0 | E78: 0 | F78: 0 | G78: 0 | H78: 0 | I78: 0 | J78: 0

Sheet 2.5 Connections
B1: =INDEX(dms_Worksheet_List,MATCH(dms_Model,dms_Model_List)) -> REGULATORY REPORTING STATEMENT
B2: =INDEX(dms_TradingNameFull_List,MATCH(dms_TradingName,dms_TradingName_List)) -> Evoenergy Distribution
B3: =CONCATENATE("REGULATORY PERIOD FROM ", FRCP_y1," TO ",dms_MultiYear_FinalYear_Result) -> REGULATORY PERIOD FROM 2024-25 TO 2028-29
B4: 2.5 CONNECTIONS
B6: There are THREE tables on this worksheet - each has been 'grouped' (and sub-grouped) for easy navigation. See the Instructions sheet on how to group or ungroup tables.
B8: 2.5.1 - DESCRIPTOR METRICS
B9: VOLUMES AND EXPENDITURE - ALL
B10: CONNECTION SUBCATEGORY | C10: DESCRIPTOR METRIC | D10: Unit of Measure | E10: =CONCATENATE("VOLUMES and EXPENDITURE (0's, real ", dms_DollarReal, ")") -> VOLUMES and EXPENDITURE (0's, real June 2024)
E11: =CRCP_y4 -> 2022-23 | F11: =CRCP_y5 -> 2023-24 | G11: =FRCP_y1 -> 2024-25 | H11: =FRCP_y2 -> 2025-26 | I11: =FRCP_y3 -> 2026-27 | J11: =FRCP_y4 -> 2027-28 | K11: =FRCP_y5 -> 2028-29
B12: RESIDENTIAL | C12: Underground connections | D12: 0's | E12: 1179 | F12: 1269 | G12: 1384 | H12: 1383 | I12: 1391 | J12: 1391 | K12: 1408
C13: Overhead connections | D13: 0's
C14: Distribution substations installed | D14: MVA added | E14: 13 | F14: 15 | G14: 27 | H14: 26 | I14: 32 | J14: 32 | K14: 46
C15: Distribution substations installed | D15: 0's | E15: 17 | F15: 19 | G15: 34 | H15: 33 | I15: 41 | J15: 41 | K15: 58
C16: Distribution substations installed | D16: total spend $0s | E16: 1938571 | F16: 2116933 | G16: 3886778 | H16: 3862798 | I16: 4730780 | J16: 4748666 | K16: 6822069
C17: Augmentation HV | D17: net circuit KM added | E17: 5.3 | F17: 4.74 | G17: 6.19 | H17: 6.18 | I17: 6.17 | J17: 6.16 | K17: 6.16
C18: Augmentation HV | D18: total spend $0s | E18: 2470217 | F18: 2193947 | G18: 2900825 | H18: 2925130 | I18: 2944510 | J18: 2956447 | K18: 2976291
C19: Augmentation LV | D19: net circuit KM added | E19: 2.88 | F19: 1.99 | G19: 2.4 | H19: 2.37 | I19: 2.61 | J19: 2.6 | K19: 3.17
C20: Augmentation LV | D20: total spend $0s | E20: 6094498 | F20: 4185318 | G20: 5099743 | H20: 5109273 | I20: 5655457 | J20: 5676819 | K20: 6954478
C21: Mean days to connect residential customer with LV single phase connection | D21: 0's | E21: 21 | F21: 19 | G21: 17 | H21: 17 | I21: 17 | J21: 17 | K21: 17
C22: Volume of GSL breaches for residential customers | D22: 0's | E22: 0 | F22: 0 | G22: 0 | H22: 0 | I22: 0 | J22: 0 | K22: 0
C23: Volume of customer complaints relating to connection services | D23: 0's
C24: GSL payments | D24: $0's | E24: 0 | F24: 0 | G24: 0 | H24: 0 | I24: 0 | J24: 0 | K24: 0
B25: COMMERCIAL/INDUSTRIAL | C25: Underground connections | D25: 0's | E25: 27 | F25: 13 | G25: 12 | H25: 12 | I25: 12 | J25: 12 | K25: 12
C26: Overhead connections | D26: 0's
C27: Distribution substations installed | D27: MVA added | E27: 25 | F27: 12 | G27: 11 | H27: 11 | I27: 11 | J27: 11 | K27: 11
C28: Distribution substations installed | D28: 0's | E28: 27 | F28: 13 | G28: 12 | H28: 12 | I28: 12 | J28: 12 | K28: 12
C29: Distribution substations installed | D29: total spend $0s | E29: 7549173 | F29: 3536126 | G29: 3400399 | H29: 3429713 | I29: 3452891 | J29: 3466703 | K29: 3489811
C30: Augmentation HV | D30: net circuit KM added | E30: 2.59 | F30: 0.92 | G30: 0.82 | H30: 0.83 | I30: 0.84 | J30: 0.84 | K30: 0.85
C31: Augmentation HV | D31: total spend $0s | E31: 2456913 | F31: 872720 | G31: 783355 | H31: 790455 | I31: 795998 | J31: 799130 | K31: 804426
C32: Augmentation LV | D32: net circuit KM added | E32: 3.55 | F32: 2.63 | G32: 2.66 | H32: 2.68 | I32: 2.7 | J32: 2.71 | K32: 2.73
C33: Augmentation LV | D33: total spend $0s | E33: 2707323 | F33: 2005833 | G33: 2024310 | H33: 2041241 | I33: 2054725 | J33: 2062996 | K33: 2076756
B34: SUBDIVISION | C34: Underground connections | D34: 0's | E34: 0 | F34: 0 | G34: 0 | H34: 0 | I34: 0 | J34: 0 | K34: 0
C35: Overhead connections | D35: 0's | E35: 0 | F35: 0 | G35: 0 | H35: 0 | I35: 0 | J35: 0 | K35: 0
C36: Distribution substations installed | D36: MVA added | E36: 5 | F36: 3 | G36: 4 | H36: 3 | I36: 3 | J36: 3 | K36: 2
C37: Distribution substations installed | D37: 0's | E37: 10 | F37: 8 | G37: 9 | H37: 7 | I37: 7 | J37: 6 | K37: 5
C38: Distribution substations installed | D38: total spend $0s | E38: 1240047 | F38: 930896 | G38: 1083139 | H38: 907892 | I38: 820275 | J38: 769036 | K38: 614563
C39: Augmentation HV | D39: net circuit KM added | E39: 10.54 | F39: 7.98 | G39: 8.89 | H39: 7.38 | I39: 6.62 | J39: 6.18 | K39: 4.9
C40: Augmentation HV | D40: total spend $0s | E40: 3486103 | F40: 2837349 | G40: 3119853 | H40: 2483439 | I40: 2349999 | J40: 2057809 | K40: 1565939
C41: Augmentation LV | D41: net circuit KM added | E41: 21.34 | F41: 16.06 | G41: 19.22 | H41: 15.92 | I41: 14.25 | J41: 13.29 | K41: 10.53
C42: Augmentation LV | D42: total spend $0s | E42: 2311012 | F42: 1514514 | G42: 1943730 | H42: 1760880 | I42: 1484716 | J42: 1537370 | K42: 1307090
C43: Cost per lot | D43: $0's
B44: EMBEDDED GENERATION | C44: Underground connections | D44: 0's | E44: 10071 | F44: 12086 | G44: 14502 | H44: 17402 | I44: 20882 | J44: 22970 | K44: 25267
C45: Overhead connections | D45: 0's
C46: Distribution substations installed | D46: MVA added
C47: Distribution substations installed | D47: 0's
C48: Distribution substations installed | D48: total spend $0's
C49: Augmentation HV | D49: net circuit KM added
C50: Augmentation HV | D50: total spend $0s
C51: Augmentation LV | D51: net circuit KM added
C52: Augmentation LV | D52: total spend $0s
B54: VOLUMES AND EXPENDITURE - STANDARD CONTROL SERVICES
B55: CONNECTION SUBCATEGORY | C55: DESCRIPTOR METRIC | D55: Unit of Measure | E55: =CONCATENATE("VOLUMES and EXPENDITURE (0's, real ", dms_DollarReal, ")") -> VOLUMES and EXPENDITURE (0's, real June 2024)
E56: =CRCP_y4 -> 2022-23 | F56: =CRCP_y5 -> 2023-24 | G56: =FRCP_y1 -> 2024-25 | H56: =FRCP_y2 -> 2025-26 | I56: =FRCP_y3 -> 2026-27 | J56: =FRCP_y4 -> 2027-28 | K56: =FRCP_y5 -> 2028-29
B57: RESIDENTIAL | C57: Underground connections | D57: 0's | E57: 1179 | F57: 1269 | G57: 1384 | H57: 1383 | I57: 1391 | J57: 1391 | K57: 1408
C58: Overhead connections | D58: 0's
C59: Distribution substations installed | D59: MVA added | E59: 13 | F59: 15 | G59: 27 | H59: 26 | I59: 32 | J59: 32 | K59: 46
C60: Distribution substations installed | D60: 0's | E60: 17 | F60: 19 | G60: 34 | H60: 33 | I60: 41 | J60: 41 | K60: 58
C61: Distribution substations installed | D61: total spend $0s | E61: 1938571 | F61: 2116933 | G61: 3886778 | H61: 3862798 | I61: 4730780 | J61: 4748666 | K61: 6822069
C62: Augmentation HV | D62: net circuit KM added | E62: 5.3 | F62: 4.74 | G62: 6.19 | H62: 6.18 | I62: 6.17 | J62: 6.16 | K62: 6.16
C63: Augmentation HV | D63: total spend $0s | E63: 2470217 | F63: 2193947 | G63: 2900825 | H63: 2925130 | I63: 2944510 | J63: 2956447 | K63: 2976291
C64: Augmentation LV | D64: net circuit KM added | E64: 2.88 | F64: 1.99 | G64: 2.4 | H64: 2.37 | I64: 2.61 | J64: 2.6 | K64: 3.17
C65: Augmentation LV | D65: total spend $0s | E65: 6094498 | F65: 4185318 | G65: 5099743 | H65: 5109273 | I65: 5655457 | J65: 5676819 | K65: 6954478
C66: Mean days to connect residential customer with LV single phase connection | D66: 0's | E66: 21 | F66: 19 | G66: 17 | H66: 17 | I66: 17 | J66: 17 | K66: 17
C67: Volume of GSL breaches for residential customers | D67: 0's | E67: 0 | F67: 0 | G67: 0 | H67: 0 | I67: 0 | J67: 0 | K67: 0
C68: Volume of customer complaints relating to connection services | D68: 0's
C69: GSL payments | D69: $0's | E69: 0 | F69: 0 | G69: 0 | H69: 0 | I69: 0 | J69: 0 | K69: 0
B70: COMMERCIAL/INDUSTRIAL | C70: Underground connections | D70: 0's | E70: 27 | F70: 13 | G70: 12 | H70: 12 | I70: 12 | J70: 12 | K70: 12
C71: Overhead connections | D71: 0's
C72: Distribution substations installed | D72: MVA added | E72: 25 | F72: 12 | G72: 11 | H72: 11 | I72: 11 | J72: 11 | K72: 11
C73: Distribution substations installed | D73: 0's | E73: 27 | F73: 13 | G73: 12 | H73: 12 | I73: 12 | J73: 12 | K73: 12
C74: Distribution substations installed | D74: total spend $0s | E74: 7549173 | F74: 3536126 | G74: 3400399 | H74: 3429713 | I74: 3452891 | J74: 3466703 | K74: 3489811
C75: Augmentation HV | D75: net circuit KM added | E75: 2.59 | F75: 0.92 | G75: 0.82 | H75: 0.83 | I75: 0.84 | J75: 0.84 | K75: 0.85
C76: Augmentation HV | D76: total spend $0s | E76: 2456913 | F76: 872720 | G76: 783355 | H76: 790455 | I76: 795998 | J76: 799130 | K76: 804426
C77: Augmentation LV | D77: net circuit KM added | E77: 3.55 | F77: 2.63 | G77: 2.66 | H77: 2.68 | I77: 2.7 | J77: 2.71 | K77: 2.73
C78: Augmentation LV | D78: total spend $0s | E78: 2707323 | F78: 2005833 | G78: 2024310 | H78: 2041241 | I78: 2054725 | J78: 2062996 | K78: 2076756
B79: SUBDIVISION | C79: Underground connections | D79: 0's | E79: 0 | F79: 0 | G79: 0 | H79: 0 | I79: 0 | J79: 0 | K79: 0
C80: Overhead connections | D80: 0's | E80: 0 | F80: 0 | G80: 0 | H80: 0 | I80: 0 | J80: 0 | K80: 0
C81: Distribution substations installed | D81: MVA added | E81: 5 | F81: 3 | G81: 4 | H81: 3 | I81: 3 | J81: 3 | K81: 2
C82: Distribution substations installed | D82: 0's | E82: 10 | F82: 8 | G82: 9 | H82: 7 | I82: 7 | J82: 6 | K82: 5
C83: Distribution substations installed | D83: total spend $0s | E83: 1240047 | F83: 930896 | G83: 1083139 | H83: 907892 | I83: 820275 | J83: 769036 | K83: 614563
C84: Augmentation HV | D84: net circuit KM added | E84: 10.54 | F84: 7.98 | G84: 8.89 | H84: 7.38 | I84: 6.62 | J84: 6.18 | K84: 4.9
C85: Augmentation HV | D85: total spend $0s | E85: 3486103 | F85: 2837349 | G85: 3119853 | H85: 2483439 | I85: 2349999 | J85: 2057809 | K85: 1565939
C86: Augmentation LV | D86: net circuit KM added | E86: 21.34 | F86: 16.06 | G86: 19.22 | H86: 15.92 | I86: 14.25 | J86: 13.29 | K86: 10.53
C87: Augmentation LV | D87: total spend $0s | E87: 2311012 | F87: 1514514 | G87: 1943730 | H87: 1760880 | I87: 1484716 | J87: 1537370 | K87: 1307090
C88: Cost per lot | D88: $0's
B89: EMBEDDED GENERATION | C89: Underground connections | D89: 0's | E89: 10071 | F89: 12086 | G89: 14502 | H89: 17402 | I89: 20882 | J89: 22970 | K89: 25267
C90: Overhead connections | D90: 0's
C91: Distribution substations installed | D91: MVA added
C92: Distribution substations installed | D92: 0's
C93: Distribution substations installed | D93: total spend $0s
C94: Augmentation HV | D94: net circuit KM added
C95: Augmentation HV | D95: total spend $0s
C96: Augmentation LV | D96: net circuit KM added
C97: Augmentation LV | D97: total spend $0s
B101: 2.5.2 - COST METRICS BY CONNECTION CLASSIFICATION
B102: EXPENDITURE - ALL
B103: CONNECTION SUBCATEGORY | C103: CONNECTION CLASSICIATION | E103: =CONCATENATE("EXPENDITURE ($0's, real ", dms_DollarReal, ")") -> EXPENDITURE ($0's, real June 2024)
E104: =CRCP_y4 -> 2022-23 | F104: =CRCP_y5 -> 2023-24 | G104: =FRCP_y1 -> 2024-25 | H104: =FRCP_y2 -> 2025-26 | I104: =FRCP_y3 -> 2026-27 | J104: =FRCP_y4 -> 2027-28 | K104: =FRCP_y5 -> 2028-29
B105: RESIDENTIAL | C105: Simple connection LV | E105: 5622389 | F105: 3545255 | G105: 3578695 | H105: 3609840 | I105: 3634218 | J105: 3648159 | K105: 3671675
C106: Complex connection LV | E106: 1294774 | F106: 1765893 | G106: 4097395 | H106: 4040821 | I106: 5421854 | J106: 5441769 | K106: 8760350
C107: Complex connection HV | E107: 3586123 | F107: 3185050 | G107: 4211255 | H107: 4246540 | I107: 4274674 | J107: 4292004 | K107: 4320813
B108: COMMERCIAL/INDUSTRIAL | C108: Simple connection LV | E108: 365562 | F108: 221704 | G108: 223799 | H108: 225752 | I108: 227279 | J108: 228152 | K108: 229625
C109: Complex connection HV (customer connected at LV, minor HV works) | E109: 5813925 | F109: 3812761 | G109: 3847782 | H109: 3879809 | I109: 3905369 | J109: 3921168 | K109: 3947416
C110: Complex connection HV (customer connected at LV, upstream asset works) | E110: 0 | F110: 0 | G110: 0 | H110: 0 | I110: 0 | J110: 0 | K110: 0
C111: Complex connection HV (customer connected at HV) | E111: 6533921 | F111: 2380214 | G111: 2136484 | H111: 2155849 | I111: 2170965 | J111: 2179507 | K111: 2193952
C112: Complex connection sub-transmission | E112: 0 | F112: 0 | G112: 0 | H112: 0 | I112: 0 | J112: 0 | K112: 0
B113: SUBDIVISION | C113: Complex connection LV | E113: 0 | F113: 0 | G113: 0 | H113: 0 | I113: 0 | J113: 0 | K113: 0
C114: Complex connection HV (no upstream asset works) | E114: 5862761 | F114: 5282759 | G114: 6146722 | H114: 5152211 | I114: 4654989 | J114: 4364215 | K114: 3487593
C115: Complex connection HV (with upstream asset works) | E115: 1174401 | F115: 0 | G115: 0 | H115: 0 | I115: 0 | J115: 0 | K115: 0
B116: EMBEDDED GENERATION | C116: Simple connection LV | E116: 0 | F116: 0 | G116: 0 | H116: 0 | I116: 0 | J116: 0 | K116: 0
C117: Complex connection HV (small capacity) | E117: 0 | F117: 0 | G117: 0 | H117: 0 | I117: 0 | J117: 0 | K117: 0
C118: Complex connection HV (large capacity) | E118: 0 | F118: 0 | G118: 0 | H118: 0 | I118: 0 | J118: 0 | K118: 0
B120: EXPENDITURE - STANDARD CONTROL SERVICES
E121: =CONCATENATE("EXPENDITURE ($0's, real ", dms_DollarReal, ")") -> EXPENDITURE ($0's, real June 2024)
E122: =CRCP_y4 -> 2022-23 | F122: =CRCP_y5 -> 2023-24 | G122: =FRCP_y1 -> 2024-25 | H122: =FRCP_y2 -> 2025-26 | I122: =FRCP_y3 -> 2026-27 | J122: =FRCP_y4 -> 2027-28 | K122: =FRCP_y5 -> 2028-29
B123: RESIDENTIAL | C123: Simple connection LV | E123: 5622389 | F123: 3545255 | G123: 3578695 | H123: 3609840 | I123: 3634218 | J123: 3648159 | K123: 3671675
C124: Complex connection LV | E124: 1294774 | F124: 1765893 | G124: 4097395 | H124: 4040821 | I124: 5421854 | J124: 5441769 | K124: 8760350
C125: Complex connection HV | E125: 3586123 | F125: 3185050 | G125: 4211255 | H125: 4246540 | I125: 4274674 | J125: 4292004 | K125: 4320813
B126: COMMERCIAL/INDUSTRIAL | C126: Simple connection LV | E126: 365562 | F126: 221704 | G126: 223799 | H126: 225752 | I126: 227279 | J126: 228152 | K126: 229625
C127: Complex connection HV (customer connected at LV, minor HV works) | E127: 5813925 | F127: 3812761 | G127: 3847782 | H127: 3879809 | I127: 3905369 | J127: 3921168 | K127: 3947416
C128: Complex connection HV (customer connected at LV, upstream asset works) | E128: 0 | F128: 0 | G128: 0 | H128: 0 | I128: 0 | J128: 0 | K128: 0
C129: Complex connection HV (customer connected at HV) | E129: 6533921 | F129: 2380214 | G129: 2136484 | H129: 2155849 | I129: 2170965 | J129: 2179507 | K129: 2193952
C130: Complex connection sub-transmission | E130: 0 | F130: 0 | G130: 0 | H130: 0 | I130: 0 | J130: 0 | K130: 0
B131: SUBDIVISION | C131: Complex connection LV | E131: 0 | F131: 0 | G131: 0 | H131: 0 | I131: 0 | J131: 0 | K131: 0
C132: Complex connection HV (no upstream asset works) | E132: 5862761 | F132: 5282759 | G132: 6146722 | H132: 5152211 | I132: 4654989 | J132: 4364215 | K132: 3487593
C133: Complex connection HV (with upstream asset works) | E133: 1174401 | F133: 0 | G133: 0 | H133: 0 | I133: 0 | J133: 0 | K133: 0
B134: EMBEDDED GENERATION | C134: Simple connection LV | E134: 0 | F134: 0 | G134: 0 | H134: 0 | I134: 0 | J134: 0 | K134: 0
C135: Complex connection HV (small capacity) | E135: 0 | F135: 0 | G135: 0 | H135: 0 | I135: 0 | J135: 0 | K135: 0
C136: Complex connection HV (large capacity) | E136: 0 | F136: 0 | G136: 0 | H136: 0 | I136: 0 | J136: 0 | K136: 0
B138: EXPENDITURE - STANDARD CONTROL SERVICES - CAPITAL CONTRIBUTIONS
E139: =CONCATENATE("EXPENDITURE ($0's, real ", dms_DollarReal, ")") -> EXPENDITURE ($0's, real June 2024)
E140: =CRCP_y4 -> 2022-23 | F140: =CRCP_y5 -> 2023-24 | G140: =FRCP_y1 -> 2024-25 | H140: =FRCP_y2 -> 2025-26 | I140: =FRCP_y3 -> 2026-27 | J140: =FRCP_y4 -> 2027-28 | K140: =FRCP_y5 -> 2028-29
B141: RESIDENTIAL | C141: Simple connection LV | E141: 40742 | F141: 40742 | G141: 40742 | H141: 40742 | I141: 40742 | J141: 40742 | K141: 40742
C142: Complex connection LV | E142: 894876 | F142: 894876 | G142: 894876 | H142: 894876 | I142: 894876 | J142: 894876 | K142: 894876
C143: Complex connection HV | E143: 2211785 | F143: 2211785 | G143: 2211785 | H143: 2211785 | I143: 2211785 | J143: 2211785 | K143: 2211785
B144: COMMERCIAL/INDUSTRIAL | C144: Simple connection LV | E144: 25118 | F144: 25118 | G144: 25118 | H144: 25118 | I144: 25118 | J144: 25118 | K144: 25118
C145: Complex connection HV (customer connected at LV, minor HV works) | E145: 6352995 | F145: 6352995 | G145: 6352995 | H145: 6352995 | I145: 6352995 | J145: 6352995 | K145: 6352995
C146: Complex connection HV (customer connected at LV, upstream asset works) | E146: 0 | F146: 0 | G146: 0 | H146: 0 | I146: 0 | J146: 0 | K146: 0
C147: Complex connection HV (customer connected at HV) | E147: 8585368 | F147: 8585368 | G147: 8585368 | H147: 8585368 | I147: 8585368 | J147: 8585368 | K147: 8585368
C148: Complex connection sub-transmission | E148: 0 | F148: 0 | G148: 0 | H148: 0 | I148: 0 | J148: 0 | K148: 0
B149: SUBDIVISION | C149: Complex connection LV | E149: 0 | F149: 0 | G149: 0 | H149: 0 | I149: 0 | J149: 0 | K149: 0
C150: Complex connection HV (no upstream asset works) | E150: 2469618 | F150: 2469618 | G150: 2469618 | H150: 2469618 | I150: 2469618 | J150: 2469618 | K150: 2469618
C151: Complex connection HV (with upstream asset works) | E151: 505706 | F151: 505706 | G151: 505706 | H151: 505706 | I151: 505706 | J151: 505706 | K151: 505706
B152: EMBEDDED GENERATION | C152: Simple connection LV | E152: 0 | F152: 0 | G152: 0 | H152: 0 | I152: 0 | J152: 0 | K152: 0
C153: Complex connection HV (small capacity) | E153: 0 | F153: 0 | G153: 0 | H153: 0 | I153: 0 | J153: 0 | K153: 0
C154: Complex connection HV (large capacity) | E154: 0 | F154: 0 | G154: 0 | H154: 0 | I154: 0 | J154: 0 | K154: 0
B158: 2.5.3 - VOLUMES BY CONNECTION CLASSIFICATION
B159: NEW CONNECTIONS - ALL
E160: VOLUMES (0's)
E161: =CRCP_y4 -> 2022-23 | F161: =CRCP_y5 -> 2023-24 | G161: =FRCP_y1 -> 2024-25 | H161: =FRCP_y2 -> 2025-26 | I161: =FRCP_y3 -> 2026-27 | J161: =FRCP_y4 -> 2027-28 | K161: =FRCP_y5 -> 2028-29
B162: RESIDENTIAL | C162: Simple connection LV | E162: 1166 | F162: 1254 | G162: 1357 | H162: 1357 | I162: 1359 | J162: 1359 | K162: 1360
C163: Complex connection LV | E163: 13 | F163: 15 | G163: 27 | H163: 26 | I163: 32 | J163: 32 | K163: 46
C164: Complex connection HV | E164: 0 | F164: 0 | G164: 0 | H164: 0 | I164: 0 | J164: 0 | K164: 0
B165: COMMERCIAL/INDUSTRIAL | C165: Simple connection LV | E165: 0 | F165: 0 | G165: 0 | H165: 0 | I165: 0 | J165: 0 | K165: 0
C166: Complex connection HV (customer connected at LV, minor HV works) | E166: 25 | F166: 12 | G166: 11 | H166: 11 | I166: 11 | J166: 11 | K166: 11
C167: Complex connection HV (customer connected at LV, upstream asset works) | E167: 52 | F167: 26 | G167: 22 | H167: 22 | I167: 22 | J167: 23 | K167: 23
C168: Complex connection HV (customer connected at HV) | E168: 2 | F168: 1 | G168: 1 | H168: 1 | I168: 1 | J168: 1 | K168: 1
C169: Complex connection sub-transmission | E169: 0 | F169: 0 | G169: 0 | H169: 0 | I169: 0 | J169: 0 | K169: 0
B170: SUBDIVISION | C170: Complex connection LV | E170: 0 | F170: 0 | G170: 0 | H170: 0 | I170: 0 | J170: 0 | K170: 0
C171: Complex connection HV (no upstream asset works) | E171: 0 | F171: 0 | G171: 0 | H171: 0 | I171: 0 | J171: 0 | K171: 0
C172: Complex connection HV (with upstream asset works) | E172: 0 | F172: 0 | G172: 0 | H172: 0 | I172: 0 | J172: 0 | K172: 0
B173: EMBEDDED GENERATION | C173: Simple connection LV | E173: 10069 | F173: 12086 | G173: 14499 | H173: 17399 | I173: 20879 | J173: 22976 | K173: 25264
C174: Complex connection HV (small capacity) | E174: 2 | F174: 3 | G174: 3 | H174: 3 | I174: 3 | J174: 3 | K174: 3
C175: Complex connection HV (large capacity)
B177: NEW CONNECTIONS - STANDARD CONTROL SERVICES
E178: VOLUMES (0's)
E179: =CRCP_y4 -> 2022-23 | F179: =CRCP_y5 -> 2023-24 | G179: =FRCP_y1 -> 2024-25 | H179: =FRCP_y2 -> 2025-26 | I179: =FRCP_y3 -> 2026-27 | J179: =FRCP_y4 -> 2027-28 | K179: =FRCP_y5 -> 2028-29
B180: RESIDENTIAL | C180: Simple connection LV | E180: 1166 | F180: 1254 | G180: 1357 | H180: 1357 | I180: 1359 | J180: 1359 | K180: 1360
C181: Complex connection LV | E181: 13 | F181: 15 | G181: 27 | H181: 26 | I181: 32 | J181: 32 | K181: 46
C182: Complex connection HV | E182: 0 | F182: 0 | G182: 0 | H182: 0 | I182: 0 | J182: 0 | K182: 0
B183: COMMERCIAL/INDUSTRIAL | C183: Simple connection LV | E183: 0 | F183: 0 | G183: 0 | H183: 0 | I183: 0 | J183: 0 | K183: 0
C184: Complex connection HV (customer connected at LV, minor HV works) | E184: 25 | F184: 12 | G184: 11 | H184: 11 | I184: 11 | J184: 11 | K184: 11
C185: Complex connection HV (customer connected at LV, upstream asset works) | E185: 52 | F185: 26 | G185: 22 | H185: 22 | I185: 22 | J185: 23 | K185: 23
C186: Complex connection HV (customer connected at HV) | E186: 2 | F186: 1 | G186: 1 | H186: 1 | I186: 1 | J186: 1 | K186: 1
C187: Complex connection sub-transmission | E187: 0 | F187: 0 | G187: 0 | H187: 0 | I187: 0 | J187: 0 | K187: 0
B188: SUBDIVISION | C188: Complex connection LV | E188: 0 | F188: 0 | G188: 0 | H188: 0 | I188: 0 | J188: 0 | K188: 0
C189: Complex connection HV (no upstream asset works) | E189: 0 | F189: 0 | G189: 0 | H189: 0 | I189: 0 | J189: 0 | K189: 0
C190: Complex connection HV (with upstream asset works) | E190: 0 | F190: 0 | G190: 0 | H190: 0 | I190: 0 | J190: 0 | K190: 0
B191: EMBEDDED GENERATION | C191: Simple connection LV | E191: 10069 | F191: 12083 | G191: 14499 | H191: 17399 | I191: 20879 | J191: 22967 | K191: 25264
C192: Complex connection HV (small capacity) | E192: 2 | F192: 3 | G192: 3 | H192: 3 | I192: 3 | J192: 3 | K192: 3
C193: Complex connection HV (large capacity)
B195: EXISTING CONNECTIONS
E196: VOLUMES (0's)
E197: =CRCP_y4 -> 2022-23 | F197: =CRCP_y5 -> 2023-24 | G197: =FRCP_y1 -> 2024-25 | H197: =FRCP_y2 -> 2025-26 | I197: =FRCP_y3 -> 2026-27 | J197: =FRCP_y4 -> 2027-28 | K197: =FRCP_y5 -> 2028-29
B198: RESIDENTIAL | C198: Simple connection LV
C199: Complex connection LV
C200: Complex connection HV
B201: COMMERCIAL/INDUSTRIAL | C201: Simple connection LV
C202: Complex connection HV (customer connected at LV, minor HV works)
C203: Complex connection HV (customer connected at LV, upstream asset works)
C204: Complex connection HV (customer connected at HV)
C205: Complex connection sub-transmission
B206: SUBDIVISION | C206: Complex connection LV
C207: Complex connection HV (no upstream asset works)
C208: Complex connection HV (with upstream asset works)
B209: EMBEDDED GENERATION | C209: Simple connection LV
C210: Complex connection HV (small capacity)
C211: Complex connection HV (large capacity)

Sheet 2.6 Non-network
B1: =INDEX(dms_Worksheet_List,MATCH(dms_Model,dms_Model_List)) -> REGULATORY REPORTING STATEMENT
B2: =INDEX(dms_TradingNameFull_List,MATCH(dms_TradingName,dms_TradingName_List)) -> Evoenergy Distribution
B3: =CONCATENATE("REGULATORY PERIOD FROM ", FRCP_y1," TO ",dms_MultiYear_FinalYear_Result) -> REGULATORY PERIOD FROM 2024-25 TO 2028-29
B4: 2.6 NON-NETWORK EXPENDITURE
B6: There are THREE tables on this worksheet - each has been 'grouped' (and sub-grouped) for easy navigation. See the Instructions sheet on how to group or ungroup tables.
B8: 2.6.1 - NON-NETWORK EXPENDITURE
E9: =CONCATENATE("EXPENDITURE ($0's, real ", dms_DollarReal, ")") -> EXPENDITURE ($0's, real June 2024)
B10: SERVICE SUBCATEGORY | C10: ASSET CATEGORY | E10: =CRCP_y4 -> 2022-23 | F10: =CRCP_y5 -> 2023-24 | G10: =FRCP_y1 -> 2024-25 | H10: =FRCP_y2 -> 2025-26 | I10: =FRCP_y3 -> 2026-27 | J10: =FRCP_y4 -> 2027-28 | K10: =FRCP_y5 -> 2028-29
B11: OPEX
B12: IT & COMMUNICATIONS | C12: Total IT and communications | E12: 7431434 | F12: 8006789 | G12: 9379351 | H12: 9471781 | I12: 9517104 | J12: 9763990 | K12: 9729472
B13: MOTOR VEHICLES | C13: Car
C14: Light commercial vehicle
C15: Elevated work platform (LCV)
C16: Elevated work platform (HCV)
C17: Heavy commercial vehicle
B18: BUILDINGS AND PROPERTY | C18: Total buildings and property expenditure | E18: 2474700 | F18: 2666296 | G18: 1970685 | H18: 2001115 | I18: 2027181 | J18: 2051518 | K18: 2081809
B19: OTHER | C19: Other expenditure
B20: OTHER - DNSP nominated | C20: Office furniture and equipment
C21: Plant and equipment
C22: Crane borer plant HCV
C23: Other fleet assets
C24: EWP Hired
C25: Car Hired
C26: LCV Hired
C27: Other Hire
B31: CAPEX
B32: IT & COMMUNICATIONS | C32: Total IT and communications | E32: 13374502 | F32: 9652749 | G32: 7199731 | H32: 7933815 | I32: 6662974 | J32: 9584442 | K32: 13548770
B33: MOTOR VEHICLES | C33: Car | E33: 0 | F33: 0 | G33: 546630 | H33: 156430 | I33: 0 | J33: 0 | K33: 0
C34: Light commercial vehicle | E34: 1699652 | F34: 331126 | G34: 384872 | H34: 1522665 | I34: 1813853 | J34: 1015156 | K34: 2012792
C35: Elevated work platform (LCV) | E35: 0 | F35: 0 | G35: 0 | H35: 0 | I35: 195778 | J35: 195907 | K35: 0
C36: Elevated work platform (HCV) | E36: 764660 | F36: 1612903 | G36: 647032 | H36: 648066 | I36: 0 | J36: 0 | K36: 0
C37: Heavy commercial vehicle | E37: 307146 | F37: 985901 | G37: 1784915 | H37: 1419042 | I37: 0 | J37: 756107 | K37: 0
B38: BUILDINGS AND PROPERTY | C38: Total buildings and property expenditure | E38: 13533632 | F38: 4180518 | G38: 578967 | H38: 585251 | I38: 590104 | J38: 592723 | K38: 597194
B39: OTHER | C39: Other expenditure | E39: 735367 | F39: 556383 | G39: 557539 | H39: 558630 | I39: 559472 | J39: 559924 | K39: 560696
B40: OTHER - DNSP nominated | C40: Trailer | E40: 146852 | F40: 152745 | G40: 423917 | H40: 184364 | I40: 0 | J40: 52921 | K40: 78451
C41: Other Non-System Assets (Corporate) | E41: 1077535 | F41: 632861 | G41: 568148 | H41: 342409 | I41: 57537 | J41: 57792 | K41: 240182
B54: 2.6.2 - ANNUAL DESCRIPTOR METRICS
B55: IT & COMMUNICATIONS
E56: VOLUMES (0's)
E57: =CRCP_y4 -> 2022-23 | F57: =CRCP_y5 -> 2023-24 | G57: =FRCP_y1 -> 2024-25 | H57: =FRCP_y2 -> 2025-26 | I57: =FRCP_y3 -> 2026-27 | J57: =FRCP_y4 -> 2027-28 | K57: =FRCP_y5 -> 2028-29
B58: Employee numbers | E58: 457 | F58: 458 | G58: 472 | H58: 473 | I58: 473 | J58: 473 | K58: 474
B59: User numbers | E59: 457 | F59: 458 | G59: 472 | H59: 473 | I59: 473 | J59: 473 | K59: 474
B60: Number of devices | E60: 986 | F60: 990 | G60: 1018 | H60: 1020 | I60: 1020 | J60: 1020 | K60: 1022
B62: MOTOR VEHICLES
E63: VOLUMES (0's or %)
B64: ASSET CATEGORY | C64: DESCRIPTOR METRIC | D64: UNITS | E64: =CRCP_y4 -> 2022-23 | F64: =CRCP_y5 -> 2023-24 | G64: =FRCP_y1 -> 2024-25 | H64: =FRCP_y2 -> 2025-26 | I64: =FRCP_y3 -> 2026-27 | J64: =FRCP_y4 -> 2027-28 | K64: =FRCP_y5 -> 2028-29
B65: CAR | C65: Average kilometres travelled | D65: 0's | E65: 9157.11 | F65: 9340.25 | G65: 12903 | H65: 13508 | I65: 13508 | J65: 13508 | K65: 13508
C66: Number purchased | D66: 0's
C67: Number leased | D67: 0's | E67: 3 | F67: 4 | G67: 10 | H67: 12 | I67: 12 | J67: 12 | K67: 12
C68: Number in fleet | D68: 0's
C69: Proportion of total fleet expenditure allocated as regulatory expenditure | D69: % | E69: 1 | F69: 1 | G69: 1 | H69: 1 | I69: 1 | J69: 1 | K69: 1
B70: LIGHT COMMERCIAL VEHICLE | C70: Average kilometres travelled | D70: 0's | E70: 15897.4 | F70: 16056.38 | G70: 16135.87 | H70: 16135.87 | I70: 16135.87 | J70: 16135.87 | K70: 16135.87
C71: Number purchased | D71: 0's | E71: 3 | F71: 3 | G71: 0 | H71: 0 | I71: 0 | J71: 0 | K71: 0
C72: Number leased | D72: 0's | E72: 88 | F72: 86 | G72: 79 | H72: 77 | I72: 77 | J72: 77 | K72: 77
C73: Number in fleet | D73: 0's | E73: 91 | F73: 89 | G73: 79 | H73: 77 | I73: 77 | J73: 77 | K73: 77
C74: Proportion of total fleet expenditure allocated as regulatory expenditure | D74: % | E74: 1 | F74: 1 | G74: 1 | H74: 1 | I74: 1 | J74: 1 | K74: 1
B75: ELEVATED WORK PLATFORM (LCV) | C75: Average kilometres travelled | D75: 0's
C76: Number purchased | D76: 0's
C77: Number leased | D77: 0's | E77: 6 | F77: 7 | G77: 7 | H77: 7 | I77: 7 | J77: 7 | K77: 7
C78: Number in fleet | D78: 0's
C79: Proportion of total fleet expenditure allocated as regulatory expenditure | D79: % | E79: 1 | F79: 1 | G79: 1 | H79: 1 | I79: 1 | J79: 1 | K79: 1
B80: ELEVATED WORK PLATFORM (HCV) | C80: Average kilometres travelled | D80: 0's | E80: 12967.7 | F80: 13097.37 | G80: 13162.21 | H80: 13194.63 | I80: 13194.63 | J80: 13194.63 | K80: 13194.63
C81: Number purchased | D81: 0's
C82: Number leased | D82: 0's | E82: 9 | F82: 9 | G82: 9 | H82: 9 | I82: 9 | J82: 9 | K82: 9
C83: Number in fleet | D83: 0's | E83: 9 | F83: 9 | G83: 9 | H83: 9 | I83: 9 | J83: 9 | K83: 9
C84: Proportion of total fleet expenditure allocated as regulatory expenditure | D84: % | E84: 1 | F84: 1 | G84: 1 | H84: 1 | I84: 1 | J84: 1 | K84: 1
B85: HEAVY COMMERCIAL VEHICLE | C85: Average kilometres travelled | D85: 0's | E85: 11010.01 | F85: 11230.21 | G85: 13356.73 | H85: 13486.4 | I85: 13616.08 | J85: 13745.76 | K85: 13875.43
C86: Number purchased | D86: 0's | E86: 1 | F86: 1 | G86: 1 | H86: 1 | I86: 1 | J86: 1 | K86: 1
C87: Number leased | D87: 0's | E87: 43 | F87: 43 | G87: 43 | H87: 43 | I87: 43 | J87: 43 | K87: 43
C88: Number in fleet | D88: 0's
C89: Proportion of total fleet expenditure allocated as regulatory expenditure | D89: % | E89: 1 | F89: 1 | G89: 1 | H89: 1 | I89: 1 | J89: 1 | K89: 1
B92: Table 2.6.4 intentionally omitted
B94: 2.6.5 - INFORMATION & COMMUNICATIONS TECHNOLOGY - CAPEX
E95: =CONCATENATE("EXPENDITURE ($0's, real ", dms_DollarReal, ")") -> EXPENDITURE ($0's, real June 2024)
E96: =CRCP_y4 -> 2022-23 | F96: =CRCP_y5 -> 2023-24 | G96: =FRCP_y1 -> 2024-25 | H96: =FRCP_y2 -> 2025-26 | I96: =FRCP_y3 -> 2026-27 | J96: =FRCP_y4 -> 2027-28 | K96: =FRCP_y5 -> 2028-29
B97: RECURRENT
B98: Asset Management | E98: 285996 | F98: 108991 | G98: 163237 | H98: 164957 | I98: 0 | J98: 167048 | K98: 168320
B99: Billing Systems | E99: 719875 | F99: 817396 | G99: 835099 | H99: 843900 | I99: 850755 | J99: 0 | K99: 0
B100: Geospatial Systems | E100: 0 | F100: 0 | G100: 0 | H100: 0 | I100: 0 | J100: 0 | K100: 0
B101: IT Systems Other | E101: 0 | F101: 0 | G101: 0 | H101: 0 | I101: 0 | J101: 0 | K101: 0
B102: Minor IT | E102: 9140592 | F102: 6819131 | G102: 1133281 | H102: 2283059 | I102: 2241632 | J102: 1436790 | K102: 4475364
B103: Outage Management | E103: 2456878 | F103: 544967 | G103: 0 | H103: 89104 | I103: 89827 | J103: 90233 | K103: 0
B104: Outsystems | E104: 0 | F104: 0 | G104: 0 | H104: 0 | I104: 0 | J104: 0 | K104: 0
B105: Works Management | E105: 771159 | F105: 490451 | G105: 477200 | H105: 0 | I105: 0 | J105: 488340 | K105: 492057
B108: NON-RECURRENT
B109: Asset Management | E109: 0 | F109: 0 | G109: 0 | H109: 0 | I109: 710229 | J109: 0 | K109: 0
B110: Billing Systems | E110: 0 | F110: 0 | G110: 0 | H110: 0 | I110: 0 | J110: 2951350 | K110: 2973815
B111: Geospatial Systems | E111: 0 | F111: 0 | G111: 0 | H111: 0 | I111: 0 | J111: 0 | K111: 0
B112: IT Systems Other | E112: 0 | F112: 0 | G112: 0 | H112: 0 | I112: 0 | J112: 0 | K112: 0
B113: Minor IT | E113: 0 | F113: 871812 | G113: 2106493 | H113: 2018522 | I113: 215670 | J113: 3593469 | K113: 3620821
B114: Outage Management | E114: 0 | F114: 0 | G114: 2484421 | H114: 0 | I114: 0 | J114: 857212 | K114: 1818393
B115: Outsystems | E115: 0 | F115: 0 | G115: 0 | H115: 0 | I115: 0 | J115: 0 | K115: 0
B116: Works Management | E116: 0 | F116: 0 | G116: 0 | H116: 2534273 | I116: 2554860 | J116: 0 | K116: 0

Sheet 2.10 Overheads
B1: =INDEX(dms_Worksheet_List,MATCH(dms_Model,dms_Model_List)) -> REGULATORY REPORTING STATEMENT
B2: =INDEX(dms_TradingNameFull_List,MATCH(dms_TradingName,dms_TradingName_List)) -> Evoenergy Distribution
B3: =CONCATENATE("REGULATORY PERIOD FROM ", FRCP_y1," TO ",dms_MultiYear_FinalYear_Result) -> REGULATORY PERIOD FROM 2024-25 TO 2028-29
B4: 2.10 OVERHEADS
B6: There are TWO tables on this worksheet. Each table has been 'grouped' (and sub-grouped) for easy navigation. See the Instructions sheet on how to group or ungroup data.
B8: 2.10.1 - NETWORK OVERHEADS EXPENDITURE
D9: =CONCATENATE("EXPENDITURE ($0's, real ", dms_DollarReal, ")") -> EXPENDITURE ($0's, real June 2024)
D10: =CRCP_y4 -> 2022-23 | E10: =CRCP_y5 -> 2023-24 | F10: =FRCP_y1 -> 2024-25 | G10: =FRCP_y2 -> 2025-26 | H10: =FRCP_y3 -> 2026-27 | I10: =FRCP_y4 -> 2027-28 | J10: =FRCP_y5 -> 2028-29
B11: OPEX
B12: Standard Control Services | C12: Total | D12: 29432510 | E12: 28925983 | F12: 31152132 | G12: 31838624 | H12: 32415770 | I12: 32927737 | J12: 33510137
B13: Alternative Control Services | C13: Total
B14: CAPEX
B15: Standard Control Services | C15: Total
B16: Alternative Control Services | C16: Total
B17: OTHER DISTRIBUTION SERVICES
B18: Negotiated Services | C18: Total
B19: Unregulated Distribution Services | C19: Total
B23: 2.10.2 - CORPORATE OVERHEADS EXPENDITURE
D24: =CONCATENATE("EXPENDITURE ($0's, real ", dms_DollarReal, ")") -> EXPENDITURE ($0's, real June 2024)
D25: =CRCP_y4 -> 2022-23 | E25: =CRCP_y5 -> 2023-24 | F25: =FRCP_y1 -> 2024-25 | G25: =FRCP_y2 -> 2025-26 | H25: =FRCP_y3 -> 2026-27 | I25: =FRCP_y4 -> 2027-28 | J25: =FRCP_y5 -> 2028-29
B26: OPEX
B27: Standard Control Services | C27: Total | D27: 10529652 | E27: 8609222 | F27: 10102316 | G27: 10258305 | H27: 10391931 | I27: 10516688 | J27: 10671968
B28: Alternative Control Services | C28: Total | D28: 918169 | E28: 844409 | F28: 863104 | G28: 837533 | H28: 799865 | I28: 740056 | J28: 627414
B29: CAPEX
B30: Standard Control Services | C30: Total | D30: 19368205 | E30: 16844209 | F30: 14781155 | G30: 14991184 | H30: 17222545 | I30: 19510558 | J30: 21137107
B31: Alternative Control Services | C31: Total | D31: 318734 | E31: 304900 | F31: 441304 | G31: 431904 | H31: 420608 | I31: 407687 | J31: 395443
B32: OTHER DISTRIBUTION SERVICES
B33: Negotiated Services | C33: Total
B34: Unregulated Distribution Services | C34: Total

Sheet 2.11 Labour
B1: =INDEX(dms_Worksheet_List,MATCH(dms_Model,dms_Model_List)) -> REGULATORY REPORTING STATEMENT
B2: =INDEX(dms_TradingNameFull_List,MATCH(dms_TradingName,dms_TradingName_List)) -> Evoenergy Distribution
B3: =CONCATENATE("REGULATORY PERIOD FROM ", FRCP_y1," TO ",dms_MultiYear_FinalYear_Result) -> REGULATORY PERIOD FROM 2024-25 TO 2028-29
B4: 2.11 LABOUR
B6: Table numbering on this worksheet starts at 2.11.3.
B8: 2.11.3 - LABOUR / NON-LABOUR EXPENDITURE SPLIT - STANDARD CONTROL SERVICES
C9: =CONCATENATE("EXPENDITURE ($0's, real ", dms_DollarReal, ")") -> EXPENDITURE ($0's, real June 2024)
C10: =CRCP_y4 -> 2022-23 | D10: =CRCP_y5 -> 2023-24 | E10: =FRCP_y1 -> 2024-25 | F10: =FRCP_y2 -> 2025-26 | G10: =FRCP_y3 -> 2026-27 | H10: =FRCP_y4 -> 2027-28 | I10: =FRCP_y5 -> 2028-29
B11: OPEX
B12: In-house labour expenditure | C12: 50656730 | D12: 50552100 | E12: 54323749 | F12: 54938771 | G12: 55675690 | H12: 56535715 | I12: 57368713
B13: Labour expenditure outsourced to related parties | C13: 0 | D13: 0 | E13: 0 | F13: 0 | G13: 0 | H13: 0 | I13: 0
B14: Labour expenditure outsourced to unrelated parties | C14: 453413 | D14: 452476 | E14: 486235 | F14: 491740 | G14: 498336 | H14: 506034 | I14: 513489
B15: Controllable non-labour expenditure | C15: 19749674 | D15: 19708882 | E15: 21179345 | F15: 21419125 | G15: 21706430 | H15: 22041730 | I15: 22366493
B16: Uncontrollable non-labour expenditure | C16: 0 | D16: 0 | E16: 0 | F16: 0 | G16: 0 | H16: 0 | I16: 0
B17: Total | C17: =SUM(C12:C16) -> 70859817 | D17: 70713458 | E17: 75989329 | F17: 76849636 | G17: 77880456 | H17: 79083479 | I17: 80248695
B18: CAPEX
B19: In-house labour expenditure | C19: 25528070 | D19: 25188883 | E19: 33670703 | F19: 33945919 | G19: 35407103 | H19: 38390010 | I19: 40553107
B20: Labour expenditure outsourced to related parties
B21: Labour expenditure outsourced to unrelated parties
B22: Controllable non-labour expenditure | C22: 102411713 | D22: 75741282 | E22: 65827583 | F22: 67515923 | G22: 76515754 | H22: 87590000 | I22: 98126948
B23: Uncontrollable non-labour expenditure
B24: Total | C24: =SUM(C19:C23) -> 127939783 | D24: 100930165 | E24: 99498286 | F24: 101461842 | G24: 111922857 | H24: 125980010 | I24: 138680055

Sheet 2.14 Forecast price changes
B1: =INDEX(dms_Worksheet_List,MATCH(dms_Model,dms_Model_List)) -> REGULATORY REPORTING STATEMENT
B2: =INDEX(dms_TradingNameFull_List,MATCH(dms_TradingName,dms_TradingName_List)) -> Evoenergy Distribution
B3: =CONCATENATE("REGULATORY PERIOD FROM ", FRCP_y1," TO ",dms_MultiYear_FinalYear_Result) -> REGULATORY PERIOD FROM 2024-25 TO 2028-29
B4: 2.14 FORECAST PRICE CHANGES
B6: There is ONE table on this worksheet.
B8: Instructions
B9: =CONCATENATE(dms_TradingName, " must provide all forecast price changes used to forecast opex and capex, including forecast changes in CPI. Forecast price changes must be expressed in real terms, except for CPI. "&"If the same escalators are not used for capex and opex, report capex and opex escalators separately. Add additional rows as required. If price changes for a given year were not used to forecast either opex or capex enter '0' for that year.") -> Evoenergy Distribution must provide all forecast price changes used to forecast opex and capex, including forecast changes in CPI. Forecast price changes must be expressed in real terms, except for CPI. If the same escalators are not used for capex and opex, report capex and opex escalators separately. Add additional rows as required. If price changes for a given year were not used to forecast either opex or capex enter '0' for that year.
B11: 2.14.2 - FORECAST CAPEX AND OPEX PRICE CHANGES
C12: Price changes (% YoY real) Current regulatory period | E12: Price changes (%YoY real) Forthcoming regulatory period
C13: Forecast
B14: DESCRIPTION | C14: =CRCP_y4 -> 2022-23 | D14: =CRCP_y5 -> 2023-24 | E14: =FRCP_y1 -> 2024-25 | F14: =FRCP_y2 -> 2025-26 | G14: =FRCP_y3 -> 2026-27 | H14: =FRCP_y4 -> 2027-28 | I14: =FRCP_y5 -> 2028-29
B15: OPEX
B16: Labour escalators | E16: 1.06% | F16: 0.94% | G16: 0.76% | H16: 0.51% | I16: 0.83%
B19: CAPEX
B20: NSP to insert description for capex price changes

Sheet 2.16 Opex Summary
B1: =INDEX(dms_Worksheet_List,MATCH(dms_Model,dms_Model_List)) -> REGULATORY REPORTING STATEMENT
B2: =INDEX(dms_TradingNameFull_List,MATCH(dms_TradingName,dms_TradingName_List)) -> Evoenergy Distribution
B3: =CONCATENATE("REGULATORY PERIOD FROM ", FRCP_y1," TO ",dms_MultiYear_FinalYear_Result) -> REGULATORY PERIOD FROM 2024-25 TO 2028-29
B4: 2.16 OPEX SUMMARY
B6: There are FOUR tables on this worksheet. Each table has been 'grouped' (and 'sub-grouped') for easy navigation. See the Instructions sheet on how to group or ungroup data.
B8: Instructions | J8: IMPORTANT!
B9: =CONCATENATE("Complete the tables below in accordance with the regulatory information notice. ",dms_TradingName,"'s total forecast opex must reconcile to Table 2.16.1 (and if ",dms_TradingName," owns any dual function assets Table 2.16.3). If ",dms_TradingName," did not forecast its total opex using a Base Year approach, total forecast opex must reconcile to Table 2.16.2 (and if ",dms_TradingName," owns any dual function assets Table 2.16.4).") -> Complete the tables below in accordance with the regulatory information notice. Evoenergy Distribution's total forecast opex must reconcile to Table 2.16.1 (and if Evoenergy Distribution owns any dual function assets Table 2.16.3). If Evoenergy Distribution did not forecast its total opex using a Base Year approach, total forecast opex must reconcile to Table 2.16.2 (and if Evoenergy Distribution owns any dual function assets Table 2.16.4). | J9: =CONCATENATE("Has ",dms_TradingName," used a base-step-trend model to derive its opex forecast? ") -> Has Evoenergy Distribution used a base-step-trend model to derive its opex forecast? | L9: Yes
B10: =CONCATENATE("If ",dms_TradingName," does not own any dual function assets,Table 2.16.3 and 2.16.4 may be left blank.") -> If Evoenergy Distribution does not own any dual function assets,Table 2.16.3 and 2.16.4 may be left blank. | J10: Yes / No
B11: The total step changes in Table 2.16.1 and Table 2.16.3 must "&"reconcile (in each year) to the total step changes for each year in Table 2.17.1 and Table 2.17.3 of worksheet '2.17 Step Changes', respectively.") | J11: Please nominate the base year. | L11: 2021-22
B14: 2.16.1 - STANDARD CONTROL SERVICES - OPEX BY DRIVER
C15: =CONCATENATE("EXPENDITURE ($0's, real ", dms_DollarReal, ")") -> EXPENDITURE ($0's, real June 2024)
C16: =CRCP_y1 -> 2019-20 | D16: =CRCP_y2 -> 2020-21 | E16: =CRCP_y3 -> 2021-22 | F16: =CRCP_y4 -> 2022-23 | G16: =CRCP_y5 -> 2023-24 | H16: =FRCP_y1 -> 2024-25 | I16: =FRCP_y2 -> 2025-26 | J16: =FRCP_y3 -> 2026-27 | K16: =FRCP_y4 -> 2027-28 | L16: =FRCP_y5 -> 2028-29
B17: Base year total opex, excluding category specific | E17: 57508289 | F17: 59375277 | G17: 59102715 | H17: 56304258 | I17: 56304258 | J17: 56304258 | K17: 56304258 | L17: 56304258
B18: Increment from base year to final year | H18: 1206547 | I18: 1206547 | J18: 1206547 | K18: 1206547 | L18: 1206547
B19: Price growth | H19: 360670 | I19: 681358 | J19: 942864 | K19: 1119385 | L19: 1407184
B20: Output growth | H20: 684313 | I20: 1566577 | J20: 2387703 | K20: 3250998 | L20: 4192433
B21: Productivity growth | H21: -292779 | I21: -596093 | J21: -908065 | K21: -1228372 | L21: -1562062
B22: Step changes | H22: 5201342 | I22: 5026556 | J22: 5125857 | K22: 5411916 | L22: 5483992
B23: Category specific | E23: 388827 | F23: 307741 | G23: 457029 | H23: 539096 | I23: 538854 | J23: 537119 | K23: 544821 | L23: 558626
B24: Total opex | C24: =SUM(C17:C23) -> 0 | D24: 0 | E24: 57897116 | F24: 59683018 | G24: 59559744 | H24: 64003447 | I24: 64728057 | J24: 65596283 | K24: 66609553 | L24: 67590978
B27: 2.16.2 - STANDARD CONTROL SERVICES - OPEX BY CATEGORY
C28: =CONCATENATE("EXPENDITURE ($0's, real ", dms_DollarReal, ")") -> EXPENDITURE ($0's, real June 2024)
C29: =CRCP_y1 -> 2019-20 | D29: =CRCP_y2 -> 2020-21 | E29: =CRCP_y3 -> 2021-22 | F29: =CRCP_y4 -> 2022-23 | G29: =CRCP_y5 -> 2023-24 | H29: =FRCP_y1 -> 2024-25 | I29: =FRCP_y2 -> 2025-26 | J29: =FRCP_y3 -> 2026-27 | K29: =FRCP_y4 -> 2027-28 | L29: =FRCP_y5 -> 2028-29
B30: Vegetation management
B31: Maintenance
B32: Emergency response
B33: Non-network
B34: Metering
B35: Network overheads
B36: Corporate overheads
B37: Total opex | C37: =SUM(C30:C36) -> 0 | D37: 0 | E37: 0 | F37: 0 | G37: 0 | H37: 0 | I37: 0 | J37: 0 | K37: 0 | L37: 0
B40: 2.16.3 - DUAL FUNCTION ASSETS - OPEX BY DRIVER
C41: =CONCATENATE("EXPENDITURE ($0's, real ", dms_DollarReal, ")") -> EXPENDITURE ($0's, real June 2024)
C42: 2017 | D42: 2018 | E42: 2019 | F42: 2020 | G42: 2021 | H42: =FRCP_y1 -> 2024-25 | I42: =FRCP_y2 -> 2025-26 | J42: =FRCP_y3 -> 2026-27 | K42: =FRCP_y4 -> 2027-28 | L42: =FRCP_y5 -> 2028-29
B43: Base year total opex, excluding category specific | E43: 10769539 | F43: 11119168 | G43: 11068126 | H43: 10544061 | I43: 10544061 | J43: 10544061 | K43: 10544061 | L43: 10544061
B44: Increment from base year to final year | H44: 225949 | I44: 225949 | J44: 225949 | K44: 225949 | L44: 225949
B45: Price growth | H45: 67542 | I45: 127598 | J45: 176570 | K45: 209626 | L45: 263522
B46: Output growth | H46: 128151 | I46: 293372 | J46: 447144 | K46: 608812 | L46: 785114
B47: Productivity growth | H47: -54829 | I47: -111630 | J47: -170053 | K47: -230036 | L47: -292526
B48: Step changes | H48: 974052 | I48: 941320 | J48: 959916 | K48: 1013486 | L48: 1026983
B49: Category specific | E49: 72815 | F49: 57630 | G49: 85588 | H49: 100956 | I49: 100911 | J49: 100586 | K49: 102028 | L49: 104614
B50: Total opex | C50: =SUM(C43:C49) -> 0 | D50: 0 | E50: 10842354 | F50: 11176798 | G50: 11153714 | H50: 11985882 | I50: 12121581 | J50: 12284173 | K50: 12473926 | L50: 12657717
B53: 2.16.4 - DUAL FUNCTION ASSETS - OPEX BY CATEGORY
C54: =CONCATENATE("EXPENDITURE ($0's, real ", dms_DollarReal, ")") -> EXPENDITURE ($0's, real June 2024)
C55: =CRCP_y1 -> 2019-20 | D55: =CRCP_y2 -> 2020-21 | E55: =CRCP_y3 -> 2021-22 | F55: =CRCP_y4 -> 2022-23 | G55: =CRCP_y5 -> 2023-24 | H55: =FRCP_y1 -> 2024-25 | I55: =FRCP_y2 -> 2025-26 | J55: =FRCP_y3 -> 2026-27 | K55: =FRCP_y4 -> 2027-28 | L55: =FRCP_y5 -> 2028-29
B56: Vegetation management
B57: Maintenance
B58: Emergency response
B59: Non-network
B60: Metering
B61: Network overheads
B62: Corporate overheads
B63: Total opex | C63: =SUM(C56:C62) -> 0 | D63: 0 | E63: 0 | F63: 0 | G63: 0 | H63: 0 | I63: 0 | J63: 0 | K63: 0 | L63: 0

Sheet 2.17 Step Changes
B1: =INDEX(dms_Worksheet_List,MATCH(dms_Model,dms_Model_List)) -> REGULATORY REPORTING STATEMENT
B2: =INDEX(dms_TradingNameFull_List,MATCH(dms_TradingName,dms_TradingName_List)) -> Evoenergy Distribution
B3: =CONCATENATE("REGULATORY PERIOD FROM ", FRCP_y1," TO ",dms_MultiYear_FinalYear_Result) -> REGULATORY PERIOD FROM 2024-25 TO 2028-29
B4: 2.17 STEP CHANGES
B6: There are FIVE tables on this worksheet. Each table has been 'grouped' (and 'sub-grouped') for easy navigation. See the Instructions sheet on how to group or ungroup data.
B8: 2.17.1 - STEP CHANGES FOR STANDARD CONTROL SERVICES - FORECAST OPEX
E9: =CONCATENATE("EXPENDITURE ($0's, real ", dms_DollarReal, ")") -> EXPENDITURE ($0's, real June 2024)
B10: STEP CHANGE | C10: DESCRIPTION | E10: =CRCP_y4 -> 2022-23 | F10: =CRCP_y5 -> 2023-24 | G10: =FRCP_y1 -> 2024-25 | H10: =FRCP_y2 -> 2025-26 | I10: =FRCP_y3 -> 2026-27 | J10: =FRCP_y4 -> 2027-28 | K10: =FRCP_y5 -> 2028-29
B11: Insurance premiums | G11: 543724 | H11: 725182 | I11: 871423 | J11: 985325 | K11: 1080915
B12: Security of Critical Infrastructure | G12: 2445155 | H12: 2438779 | I12: 2404801 | J12: 2545382 | K12: 2432465
B13: DER Integration | G13: 2212463 | H13: 1862595 | I13: 1849633 | J13: 1881209 | K13: 1970612
B21: Total | E21: =SUM(E11:E20) -> 0 | F21: 0 | G21: 5201342 | H21: 5026556 | I21: 5125857 | J21: 5411916 | K21: 5483992
B22: Check | G22: =IF(ROUND(G$21,0)-ROUND('2.16 Opex Summary'!H$22,0)=0,"OK","Error") -> OK | H22: =IF(ROUND(H$21,0)-ROUND('2.16 Opex Summary'!I$22,0)=0,"OK","Error") -> OK | I22: =IF(ROUND(I$21,0)-ROUND('2.16 Opex Summary'!J$22,0)=0,"OK","Error") -> OK | J22: =IF(ROUND(J$21,0)-ROUND('2.16 Opex Summary'!K$22,0)=0,"OK","Error") -> OK | K22: =IF(ROUND(K$21,0)-ROUND('2.16 Opex Summary'!L$22,0)=0,"OK","Error") -> OK
B24: 2.17.2 - STEP CHANGES FOR STANDARD CONTROL SERVICES - FORECAST CAPEX
E25: =CONCATENATE("EXPENDITURE ($0's, real ", dms_DollarReal, ")") -> EXPENDITURE ($0's, real June 2024)
B26: STEP CHANGE | C26: DESCRIPTION | E26: =CRCP_y4 -> 2022-23 | F26: =CRCP_y5 -> 2023-24 | G26: =FRCP_y1 -> 2024-25 | H26: =FRCP_y2 -> 2025-26 | I26: =FRCP_y3 -> 2026-27 | J26: =FRCP_y4 -> 2027-28 | K26: =FRCP_y5 -> 2028-29
B37: Total | E37: =SUM(E27:E36) -> 0 | F37: 0 | G37: 0 | H37: 0 | I37: 0 | J37: 0 | K37: 0
B39: 2.17.3 - STEP CHANGES FOR DUAL FUNCTION ASSETS - FORECAST OPEX
E40: =CONCATENATE("EXPENDITURE ($0's, real ", dms_DollarReal, ")") -> EXPENDITURE ($0's, real June 2024)
B41: STEP CHANGE | C41: DESCRIPTION | E41: =CRCP_y4 -> 2022-23 | F41: =CRCP_y5 -> 2023-24 | G41: =FRCP_y1 -> 2024-25 | H41: =FRCP_y2 -> 2025-26 | I41: =FRCP_y3 -> 2026-27 | J41: =FRCP_y4 -> 2027-28 | K41: =FRCP_y5 -> 2028-29
B42: Insurance premiums | G42: 101823 | H42: 135804 | I42: 163191 | J42: 184521 | K42: 202422
B43: Security of Critical Infrastructure | G43: 457903 | H43: 456708 | I43: 450346 | J43: 476672 | K43: 455526
B44: DER Integration | G44: 414327 | H44: 348807 | I44: 346380 | J44: 352293 | K44: 369035
B52: Total | E52: =SUM(E42:E51) -> 0 | F52: 0 | G52: 974053 | H52: 941319 | I52: 959917 | J52: 1013486 | K52: 1026983
B53: Check | G53: =IF(ROUND(G$21,0)-ROUND('2.16 Opex Summary'!H$48,0)=0,"OK","Error") -> Error | H53: =IF(ROUND(H$21,0)-ROUND('2.16 Opex Summary'!I$48,0)=0,"OK","Error") -> Error | I53: =IF(ROUND(I$21,0)-ROUND('2.16 Opex Summary'!J$48,0)=0,"OK","Error") -> Error | J53: =IF(ROUND(J$21,0)-ROUND('2.16 Opex Summary'!K$48,0)=0,"OK","Error") -> Error | K53: =IF(ROUND(K$21,0)-ROUND('2.16 Opex Summary'!L$48,0)=0,"OK","Error") -> Error
B55: 2.17.4 - STEP CHANGES FOR DUAL FUNCTION ASSETS - FORECAST CAPEX
E56: =CONCATENATE("EXPENDITURE ($0's, real ", dms_DollarReal, ")") -> EXPENDITURE ($0's, real June 2024)
B57: STEP CHANGE | C57: DESCRIPTION | E57: =CRCP_y4 -> 2022-23 | F57: =CRCP_y5 -> 2023-24 | G57: =FRCP_y1 -> 2024-25 | H57: =FRCP_y2 -> 2025-26 | I57: =FRCP_y3 -> 2026-27 | J57: =FRCP_y4 -> 2027-28 | K57: =FRCP_y5 -> 2028-29
B68: Total | E68: =SUM(E58:E67) -> 0 | F68: 0 | G68: 0 | H68: 0 | I68: 0 | J68: 0 | K68: 0
B71: 2.17.5 - FORECAST CATEGORY SPECIFIC OPEX
D72: EXPENDITURE ($0's, real June 2024)
B73: CATEGORY | C73: DESCRIPTION | D73: =CRCP_y3 -> 2021-22 | E73: =CRCP_y4 -> 2022-23 | F73: =CRCP_y5 -> 2023-24 | G73: =FRCP_y1 -> 2024-25 | H73: =FRCP_y2 -> 2025-26 | I73: =FRCP_y3 -> 2026-27 | J73: =FRCP_y4 -> 2027-28 | K73: =FRCP_y5 -> 2028-29
B74: Debt raising costs | G74: 640052 | H74: 639764 | I74: 637704 | J74: 646850 | K74: 663240
B84: Total | D84: =SUM(D74:D83) -> 0 | E84: 0 | F84: 0 | G84: 640052 | H84: 639764 | I84: 637704 | J84: 646850 | K84: 663240

Sheet 3.1 Revenue
B1: =INDEX(dms_Worksheet_List,MATCH(dms_Model,dms_Model_List)) -> REGULATORY REPORTING STATEMENT
B2: =INDEX(dms_TradingNameFull_List,MATCH(dms_TradingName,dms_TradingName_List)) -> Evoenergy Distribution
B3: =CONCATENATE("REGULATORY PERIOD FROM ", FRCP_y1," TO ",dms_MultiYear_FinalYear_Result) -> REGULATORY PERIOD FROM 2024-25 TO 2028-29
B4: 3.1 REVENUE
B6: There are THREE tables on this worksheet. Each table has been 'grouped' (and 'sub-grouped') for easy navigation. See the Instructions sheet on how to group or ungroup data.
B8: 3.1.1 - REVENUE GROUPING BY CHARGEABLE QUANTITY
C9: Standard control services | K9: Alternative control services
C10: =CONCATENATE("REVENUE Forecast ($0's, real ", dms_DollarReal,")") -> REVENUE Forecast ($0's, real June 2024) | K10: =CONCATENATE("REVENUE Forecast ($0's, real ", dms_DollarReal,")") -> REVENUE Forecast ($0's, real June 2024)
C11: =CRCP_y4 -> 2022-23 | D11: =CRCP_y5 -> 2023-24 | E11: =FRCP_y1 -> 2024-25 | F11: =FRCP_y2 -> 2025-26 | G11: =FRCP_y3 -> 2026-27 | H11: =FRCP_y4 -> 2027-28 | I11: =FRCP_y5 -> 2028-29 | K11: =CRCP_y4 -> 2022-23 | L11: =CRCP_y5 -> 2023-24 | M11: =FRCP_y1 -> 2024-25 | N11: =FRCP_y2 -> 2025-26 | O11: =FRCP_y3 -> 2026-27 | P11: =FRCP_y4 -> 2027-28 | Q11: =FRCP_y5 -> 2028-29
A12: DREV0101 | B12: Revenue from Fixed Customer Charges | C12: 24905979 | D12: 25599958 | E12: 29651084 | F12: 30001001 | G12: 30324381 | H12: 30716549 | I12: 30940688
A13: DREV0102 | B13: Revenue from Energy Delivery charges where time of use is not a determinant | C13: 44009674 | D13: 49697468 | E13: 55943277 | F13: 48744845 | G13: 33634114 | H13: 25058140 | I13: 19820286
A14: DREV0103 | B14: Revenue from On–Peak Energy Delivery charges | C14: 18855010 | D14: 22990504 | E14: 28969990 | F14: 29741088 | G14: 25644665 | H14: 25420174 | I14: 25549645
A15: DREV0104 | B15: Revenue from Shoulder period Energy Delivery Charges | C15: 6065437 | D15: 7264072 | E15: 9659394 | F15: 8637782 | G15: 5677727 | H15: 4303484 | I15: 4213979
A16: DREV0105 | B16: Revenue from Off–Peak Energy Delivery charges | C16: 5840156 | D16: 8210331 | E16: 11393804 | F16: 10828675 | G16: 8091633 | H16: 6768898 | I16: 6844646
A17: DREV0106 | B17: Revenue from controlled load customer charges | C17: 266574 | D17: 262524 | E17: 307831 | F17: 309501 | G17: 308141 | H17: 308949 | I17: 310944
A18: DREV0107 | B18: Revenue from unmetered supplies | C18: 1367461 | D18: 1302111 | E18: 1477316 | F18: 1490068 | G18: 1498747 | H18: 1501594 | I18: 1513534
A19: DREV0108 | B19: Revenue from Contracted Maximum Demand charges
A20: DREV0109 | B20: Revenue from Measured Maximum Demand charges | C20: 48020003 | D20: 34244629 | E20: 36221698 | F20: 44711337 | G20: 69920942 | H20: 81729608 | I20: 87327229
A21: DREV0110 | B21: Revenue from metering charges | K21: 11286261 | L21: 9678924 | M21: 9038442 | N21: 8580963 | O21: 8126595 | P21: 7675247 | Q21: 7226895
A22: DREV0111 | B22: Revenue from connection charges | K22: 4481076 | L22: 4286717 | M22: 5932621 | N22: 5806252 | O22: 5654397 | P22: 5480698 | Q22: 5316101
A23: DREV0112 | B23: Revenue from public lighting charges
A24: DREV0113 | B24: Revenue from other Sources | C24: -2743 | D24: -17827 | E24: 52444 | F24: 98816 | G24: 208225 | H24: 291158 | I24: 351207
A25: DREV01 | B25: Total revenue by chargeable quantity | C25: =SUM(C12:C24) -> 149327551 | D25: 149553770 | E25: 173676838 | F25: 174563113 | G25: 175308575 | H25: 176098554 | I25: 176872158 | K25: =SUM(K12:K24) -> 15767337 | L25: 13965641 | M25: 14971063 | N25: 14387215 | O25: 13780992 | P25: 13155945 | Q25: 12542996
B28: 3.1.2 - REVENUE GROUPING BY CUSTOMER TYPE OR CLASS
C29: Standard control services | K29: Alternative control services
C30: =CONCATENATE("REVENUE Forecast ($0's, real ", dms_DollarReal,")") -> REVENUE Forecast ($0's, real June 2024) | K30: =CONCATENATE("REVENUE Forecast ($0's, real ", dms_DollarReal,")") -> REVENUE Forecast ($0's, real June 2024)
C31: =CRCP_y4 -> 2022-23 | D31: =CRCP_y5 -> 2023-24 | E31: =FRCP_y1 -> 2024-25 | F31: =FRCP_y2 -> 2025-26 | G31: =FRCP_y3 -> 2026-27 | H31: =FRCP_y4 -> 2027-28 | I31: =FRCP_y5 -> 2028-29 | K31: =CRCP_y4 -> 2022-23 | L31: =CRCP_y5 -> 2023-24 | M31: =FRCP_y1 -> 2024-25 | N31: =FRCP_y2 -> 2025-26 | O31: =FRCP_y3 -> 2026-27 | P31: =FRCP_y4 -> 2027-28 | Q31: =FRCP_y5 -> 2028-29
A32: DREV0201 | B32: Revenue from residential Customers | C32: 69878605 | D32: 69877875 | E32: 78447530 | F32: 78191666 | G32: 78181558 | H32: 78663312 | I32: 79218075 | K32: 9209564 | L32: 8309144 | M32: 7814407 | N32: 7431040 | O32: 7050279 | P32: 6672038 | Q32: 6296358
A33: DREV0202 | B33: Revenue from Non residential customers not on demand tariffs | C33: 21912838 | D33: 18682730 | E33: 19513825 | F33: 17358033 | G33: 15188241 | H33: 13014638 | I33: 10888133 | K33: 1319736 | L33: 1076518 | M33: 974147 | N33: 900910 | O33: 828174 | P33: 755936 | Q33: 684129
A34: DREV0203 | B34: Revenue from Non-residential low voltage demand tariff customers | C34: 46664414 | D34: 49275362 | E34: 59012633 | F34: 61376231 | G34: 64010008 | H34: 66525915 | I34: 68893177 | K34: 756960 | L34: 293262 | M34: 249888 | N34: 249014 | O34: 248142 | P34: 247274 | Q34: 246408
A35: DREV0204 | B35: Revenue from Non-residential high voltage demand tariff customers | C35: 9305970 | D35: 9910731 | E35: 14126582 | F35: 15048684 | G35: 15347061 | H35: 15316505 | I35: 15286463
A36: DREV0205 | B36: Revenue from unmetered supplies | C36: 1374311 | D36: 1309141 | E36: 1477316 | F36: 1490068 | G36: 1498747 | H36: 1501594 | I36: 1513534
A37: DREV0206 | B37: Revenue from Other Customers | C37: 191414 | D37: 497934 | E37: 1098952 | F37: 1098429 | G37: 1082961 | H37: 1076592 | I37: 1072776 | K37: 4481076 | L37: 4286717 | M37: 5932621 | N37: 5806252 | O37: 5654397 | P37: 5480698 | Q37: 5316101
A38: DREV02 | B38: Total revenue by customer class | C38: =SUM(C32:C37) -> 149327552 | D38: 149553773 | E38: 173676838 | F38: 174563111 | G38: 175308576 | H38: 176098556 | I38: 176872158 | K38: =SUM(K32:K37) -> 15767336 | L38: 13965641 | M38: 14971063 | N38: 14387216 | O38: 13780992 | P38: 13155946 | Q38: 12542996
B41: 3.1.3 - REVENUE (penalties) ALLOWED (deducted) THROUGH INCENTIVE SCHEMES
C42: Standard control services | K42: Alternative control services
C43: =CONCATENATE("REVENUE Forecast ($0's, real ", dms_DollarReal,")") -> REVENUE Forecast ($0's, real June 2024) | K43: =CONCATENATE("REVENUE Forecast ($0's, real ", dms_DollarReal,")") -> REVENUE Forecast ($0's, real June 2024)
C44: =CRCP_y4 -> 2022-23 | D44: =CRCP_y5 -> 2023-24 | E44: =FRCP_y1 -> 2024-25 | F44: =FRCP_y2 -> 2025-26 | G44: =FRCP_y3 -> 2026-27 | H44: =FRCP_y4 -> 2027-28 | I44: =FRCP_y5 -> 2028-29 | K44: =CRCP_y4 -> 2022-23 | L44: =CRCP_y5 -> 2023-24 | M44: =FRCP_y1 -> 2024-25 | N44: =FRCP_y2 -> 2025-26 | O44: =FRCP_y3 -> 2026-27 | P44: =FRCP_y4 -> 2027-28 | Q44: =FRCP_y5 -> 2028-29
A45: DREV0301 | B45: EBSS | C45: 0 | D45: 0 | E45: 0 | F45: 0 | G45: 0 | H45: 0 | I45: 0 | K45: 0 | L45: 0 | M45: 0 | N45: 0 | O45: 0 | P45: 0 | Q45: 0
A46: DREV0302 | B46: STPIS | C46: 0 | D46: 0 | E46: 0 | F46: 0 | G46: 0 | H46: 0 | I46: 0 | K46: 0 | L46: 0 | M46: 0 | N46: 0 | O46: 0 | P46: 0 | Q46: 0
A47: DREV0303 | B47: F-Factor | C47: 0 | D47: 0 | E47: 0 | F47: 0 | G47: 0 | H47: 0 | I47: 0 | K47: 0 | L47: 0 | M47: 0 | N47: 0 | O47: 0 | P47: 0 | Q47: 0
A48: DREV0304 | B48: S-Factor True up | C48: 0 | D48: 0 | E48: 0 | F48: 0 | G48: 0 | H48: 0 | I48: 0 | K48: 0 | L48: 0 | M48: 0 | N48: 0 | O48: 0 | P48: 0 | Q48: 0
A49: DREV0305 | B49: Other | C49: 0 | D49: 0 | E49: 0 | F49: 0 | G49: 0 | H49: 0 | I49: 0 | K49: 0 | L49: 0 | M49: 0 | N49: 0 | O49: 0 | P49: 0 | Q49: 0
A50: DREV03 | B50: Total revenue of incentive schemes | C50: =SUM(C45:C49) -> 0 | D50: 0 | E50: 0 | F50: 0 | G50: 0 | H50: 0 | I50: 0 | K50: =SUM(K45:K49) -> 0 | L50: 0 | M50: 0 | N50: 0 | O50: 0 | P50: 0 | Q50: 0

Sheet 3.2 Operating expenditure
B1: =INDEX(dms_Worksheet_List,MATCH(dms_Model,dms_Model_List)) -> REGULATORY REPORTING STATEMENT
B2: =INDEX(dms_TradingNameFull_List,MATCH(dms_TradingName,dms_TradingName_List)) -> Evoenergy Distribution
B3: =CONCATENATE("REGULATORY PERIOD FROM ", FRCP_y1," TO ",dms_MultiYear_FinalYear_Result) -> REGULATORY PERIOD FROM 2024-25 TO 2028-29
B4: 3.2 OPERATING EXPENDITURE
B6: There are TWO tables on this worksheet. Both ROWS and COLUMNS have been grouped for ease of navigation. see the Instructions sheet on how to group or ungroup tables.
B8: 3.2.1 - OPEX CATEGORIES
B9: CURRENT OPEX CATEGORIES AND COST ALLOCATIONS
C10: Standard control services | K10: Alternative control services
C11: =CONCATENATE("EXPENDITURE ($0's, real ", dms_DollarReal, ")") -> EXPENDITURE ($0's, real June 2024) | K11: =CONCATENATE("EXPENDITURE ($0's, real ", dms_DollarReal, ")") -> EXPENDITURE ($0's, real June 2024)
C12: =CRCP_y4 -> 2022-23 | D12: =CRCP_y5 -> 2023-24 | E12: =FRCP_y1 -> 2024-25 | F12: =FRCP_y2 -> 2025-26 | G12: =FRCP_y3 -> 2026-27 | H12: =FRCP_y4 -> 2027-28 | I12: =FRCP_y5 -> 2028-29 | K12: =CRCP_y4 -> 2022-23 | L12: =CRCP_y5 -> 2023-24 | M12: =FRCP_y1 -> 2024-25 | N12: =FRCP_y2 -> 2025-26 | O12: =FRCP_y3 -> 2026-27 | P12: =FRCP_y4 -> 2027-28 | Q12: =FRCP_y5 -> 2028-29
A13: DOPEX0101 | B13: SCS- Vegetation management | C13: 5039525 | D13: 5429694 | E13: 4799975 | F13: 4874091 | G13: 4937582 | H13: 4996858 | I13: 5070637
A14: DOPEX0102 | B14: SCS - Maintenance | C14: 10288086 | D14: 11084608 | E14: 9382037 | F14: 9526905 | G14: 9651004 | H14: 9766866 | I14: 9911075
A15: DOPEX0103 | B15: SCS - Emergency response | C15: 3340642 | D15: 3599281 | E15: 3583953 | F15: 3639293 | G15: 3686699 | H15: 3730958 | I15: 3786046
A16: DOPEX0104 | B16: SCS - Non-network | C16: 9906134 | D16: 10673085 | E16: 11350036 | F16: 11472895 | G16: 11544286 | H16: 11815508 | I16: 11811280
A17: DOPEX0105 | B17: SCS - Network overheads | C17: 29067139 | D17: 28383367 | E17: 31152132 | F17: 31838624 | G17: 32415770 | H17: 32927737 | I17: 33510137
A18: DOPEX0106 | B18: SCS - Export Services | C18: 2323267 | D18: 2391585 | E18: 4978828 | F18: 4599757 | G18: 4615480 | H18: 4682015 | I18: 4824312
A19: DOPEX0107 | B19: SCS - Corporate overheads | C19: 10529652 | D19: 8609222 | E19: 10102316 | F19: 10258305 | G19: 10391931 | H19: 10516688 | I19: 10671968
A20: DOPEX0108 | B20: SCS - Debt raising costs | C20: 0 | D20: 0 | E20: 640052 | F20: 639764 | G20: 637704 | H20: 646850 | I20: 663240
A21: DOPEX0109 | B21: ACS - Metering Maintenance | K21: 411129 | L21: 378102 | M21: 484922 | N21: 467181 | O21: 438701 | P21: 388876 | Q21: 283930
A22: DOPEX0110 | B22: ACS - Metering | K22: 2117242 | L22: 1947156 | M22: 2259738 | N22: 2177063 | O22: 2044349 | P22: 1812165 | Q22: 1323114
A23: DOPEX0111 | B23: ACS - Fee and quoted | K23: 2197164 | L23: 2020658 | M23: 2243396 | N23: 2195610 | O23: 2138187 | P23: 2072503 | Q23: 2010261
A24: DOPEX0112 | B24: ACS - Network overheads | K24: 0 | L24: 0
A25: DOPEX0113 | B25: ACS - Corporate overheads | K25: 918169 | L25: 844409 | M25: 863104 | N25: 837533 | O25: 799865 | P25: 740056 | Q25: 627414
A26: DOPEX0114
A27: DOPEX0115
A28: DOPEX0116
A29: DOPEX0117
A30: DOPEX0118
A31: DOPEX0119
A32: DOPEX0120
A33: DOPEX0121
A34: DOPEX0122
A35: DOPEX0123
A36: DOPEX0124
A37: DOPEX0125
A38: DOPEX0126
A39: DOPEX0127
A40: DOPEX0128
A41: DOPEX0129
A42: DOPEX0130
A43: DOPEX0131
A44: DOPEX0132
A45: DOPEX0133
A46: DOPEX0134
A47: DOPEX0135
A48: DOPEX0136
A49: DOPEX0137
A50: DOPEX0138
A51: DOPEX0139
A52: DOPEX0140
A53: DOPEX0141
A54: DOPEX0142
A55: DOPEX0143
A56: DOPEX0144
A57: DOPEX0145
A58: DOPEX0146
A59: DOPEX0147
A60: DOPEX0148
A61: DOPEX0149
A62: DOPEX01 | B62: Total opex | C62: =SUM(C13:C61) -> 70494445 | D62: 70170842 | E62: 75989329 | F62: 76849634 | G62: 77880456 | H62: 79083480 | I62: 80248695 | K62: =SUM(K13:K61) -> 5643704 | L62: 5190325 | M62: 5851160 | N62: 5677387 | O62: 5421102 | P62: 5013600 | Q62: 4244719
B65: 3.2.2 - OPEX CONSISTENCY
B66: OPEX CONSISTENCY - CURRENT COST ALLOCATION APPROACH
C67: Standard control services | K67: Alternative control services
C68: =CONCATENATE("EXPENDITURE ($0's, real ", dms_DollarReal, ")") -> EXPENDITURE ($0's, real June 2024) | K68: =CONCATENATE("EXPENDITURE ($0's, real ", dms_DollarReal, ")") -> EXPENDITURE ($0's, real June 2024)
C69: =CRCP_y4 -> 2022-23 | D69: =CRCP_y5 -> 2023-24 | E69: =FRCP_y1 -> 2024-25 | F69: =FRCP_y2 -> 2025-26 | G69: =FRCP_y3 -> 2026-27 | H69: =FRCP_y4 -> 2027-28 | I69: =FRCP_y5 -> 2028-29 | K69: =CRCP_y4 -> 2022-23 | L69: =CRCP_y5 -> 2023-24 | M69: =FRCP_y1 -> 2024-25 | N69: =FRCP_y2 -> 2025-26 | O69: =FRCP_y3 -> 2026-27 | P69: =FRCP_y4 -> 2027-28 | Q69: =FRCP_y5 -> 2028-29
A70: DOPEX0201 | B70: Opex for network services | C70: 70494445 | D70: 70170842 | E70: 75989329 | F70: 76849634 | G70: 77880456 | H70: 79083480 | I70: 80248695 | K70: 2624072 | L70: 2413270 | M70: 2636400 | N70: 2580242 | O70: 2512759 | P70: 2435569 | Q70: 2362424
A71: DOPEX0202 | B71: Opex for metering | K71: 3019632 | L71: 2777054 | M71: 3214760 | N71: 3097144 | O71: 2908343 | P71: 2578031 | Q71: 1882295
A72: DOPEX0203 | B72: Opex for connection services
A73: DOPEX0204 | B73: Opex for public lighting
A74: DOPEX0205 | B74: Opex for amounts payable for easement levy or similar direct charges on DNSP
A75: DOPEX0207 | B75: Opex for transmission connection point planning

Sheet 3.3 Assets (RAB)
B1: =INDEX(dms_Worksheet_List,MATCH(dms_Model,dms_Model_List)) -> REGULATORY REPORTING STATEMENT
B2: =INDEX(dms_TradingNameFull_List,MATCH(dms_TradingName,dms_TradingName_List)) -> Evoenergy Distribution
B3: =CONCATENATE("REGULATORY PERIOD FROM ", FRCP_y1," TO ",dms_MultiYear_FinalYear_Result) -> REGULATORY PERIOD FROM 2024-25 TO 2028-29
B4: 3.3 ASSETS
B6: There are FOUR tables on this worksheet. Both ROWS and COLUMNS in each have been grouped (and sub-grouped) for ease of navigation. see the Instructions sheet on how to group or ungroup tables.
B8: 3.3.1 - REGULATORY ASSET BASE VALUES
C9: Network services | K9: Standard control services | S9: Alternative control services
C10: =CONCATENATE(" VALUE Forecast ($0's, nominal) ") -> VALUE Forecast ($0's, nominal) | K10: =CONCATENATE(" VALUE Forecast ($0's, nominal) ") -> VALUE Forecast ($0's, nominal) | S10: =CONCATENATE(" VALUE Forecast ($0's, nominal) ") -> VALUE Forecast ($0's, nominal)
C11: =CRCP_y4 -> 2022-23 | D11: =CRCP_y5 -> 2023-24 | E11: =FRCP_y1 -> 2024-25 | F11: =FRCP_y2 -> 2025-26 | G11: =FRCP_y3 -> 2026-27 | H11: =FRCP_y4 -> 2027-28 | I11: =FRCP_y5 -> 2028-29 | K11: =CRCP_y4 -> 2022-23 | L11: =CRCP_y5 -> 2023-24 | M11: =FRCP_y1 -> 2024-25 | N11: =FRCP_y2 -> 2025-26 | O11: =FRCP_y3 -> 2026-27 | P11: =FRCP_y4 -> 2027-28 | Q11: =FRCP_y5 -> 2028-29 | S11: =CRCP_y4 -> 2022-23 | T11: =CRCP_y5 -> 2023-24 | U11: =FRCP_y1 -> 2024-25 | V11: =FRCP_y2 -> 2025-26 | W11: =FRCP_y3 -> 2026-27 | X11: =FRCP_y4 -> 2027-28 | Y11: =FRCP_y5 -> 2028-29
B12: For total asset base:
A13: DRAB0101 | B13: Opening value | C13: 1013524077 | D13: 1120631178 | E13: 1131232958 | F13: 1162843734 | G13: 1192109197 | H13: 1243691505 | I13: 1311600590 | K13: 1013524077 | L13: 1120631178 | M13: 1131232958 | N13: 1162843734 | O13: 1192109197 | P13: 1243691505 | Q13: 1311600590 | S13: 35380282 | T13: 34251865 | U13: 31588863 | V13: 27491149 | W13: 23134237 | X13: 18506682 | Y13: 13596596
A14: DRAB0102 | B14: Inflation addition | C14: 81081926 | D14: 52669665 | E14: 32236771 | F14: 33137584 | G14: 33971562 | H14: 35441505 | I14: 37376711 | K14: 81081926 | L14: 52669665 | M14: 32236771 | N14: 33137584 | O14: 33971562 | P14: 35441505 | Q14: 37376711 | S14: 2830423 | T14: 1609838 | U14: 900189 | V14: 783416 | W14: 659257 | X14: 527385 | Y14: 387463
A15: DRAB0103 | B15: Straight line depreciation | C15: -78428885 | D15: -86810769 | E15: -92353254 | F15: -100632057 | G15: -93637424 | H15: -97983168 | I15: -88981361 | K15: -78428885 | L15: -86810769 | M15: -92353254 | N15: -100632057 | O15: -93637424 | P15: -97983168 | Q15: -88981361 | S15: -3958840 | T15: -4275547 | U15: -4997903 | V15: -5140328 | W15: -5286812 | X15: -5437470 | Y15: -5592422
A16: DRAB0105 | B16: Actual additions (recognised in RAB) | C16: 105120660 | D16: 51419963 | E16: 92660797 | F16: 97727223 | G16: 111742119 | H16: 130946942 | I16: 148340611 | K16: 105120660 | L16: 51419963 | M16: 92660797 | N16: 97727223 | O16: 111742119 | P16: 130946942 | Q16: 148340611 | S16: 0 | T16: 0 | U16: 0 | V16: 0 | W16: 0 | X16: 0 | Y16: 0
A17: DRAB0106 | B17: Disposals | C17: -666600 | D17: -761129 | E17: -933538 | F17: -967288 | G17: -493949 | H17: -496193 | I17: -513092 | K17: -666600 | L17: -761129 | M17: -933538 | N17: -967288 | O17: -493949 | P17: -496193 | Q17: -513092 | S17: 0 | T17: 0 | U17: 0 | V17: 0 | W17: 0 | X17: 0 | Y17: 0
A18: DRAB0107 | B18: Closing value | C18: =SUM(C13+C14+C15+C16+C17) -> 1120631178 | D18: 1137148908 | E18: 1162843734 | F18: 1192109196 | G18: 1243691505 | H18: 1311600591 | I18: 1407823459 | K18: =SUM(K13+K14+K15+K16+K17) -> 1120631178 | L18: 1137148908 | M18: 1162843734 | N18: 1192109196 | O18: 1243691505 | P18: 1311600591 | Q18: 1407823459 | S18: =SUM(S13+S14+S15+S16+S17) -> 34251865 | T18: 31586156 | U18: 27491149 | V18: 23134237 | W18: 18506682 | X18: 13596597 | Y18: 8391637
B21: 3.3.2 - ASSET VALUE ROLL FORWARD
C22: Network services | K22: Standard control services | S22: Alternative control services
C23: =CONCATENATE(" VALUE Forecast ($0's, nominal) ") -> VALUE Forecast ($0's, nominal) | K23: =CONCATENATE(" VALUE Forecast ($0's, nominal) ") -> VALUE Forecast ($0's, nominal) | S23: =CONCATENATE(" VALUE Forecast ($0's, nominal) ") -> VALUE Forecast ($0's, nominal)
C24: =CRCP_y4 -> 2022-23 | D24: =CRCP_y5 -> 2023-24 | E24: =FRCP_y1 -> 2024-25 | F24: =FRCP_y2 -> 2025-26 | G24: =FRCP_y3 -> 2026-27 | H24: =FRCP_y4 -> 2027-28 | I24: =FRCP_y5 -> 2028-29 | K24: =CRCP_y4 -> 2022-23 | L24: =CRCP_y5 -> 2023-24 | M24: =FRCP_y1 -> 2024-25 | N24: =FRCP_y2 -> 2025-26 | O24: =FRCP_y3 -> 2026-27 | P24: =FRCP_y4 -> 2027-28 | Q24: =FRCP_y5 -> 2028-29 | S24: =CRCP_y4 -> 2022-23 | T24: =CRCP_y5 -> 2023-24 | U24: =FRCP_y1 -> 2024-25 | V24: =FRCP_y2 -> 2025-26 | W24: =FRCP_y3 -> 2026-27 | X24: =FRCP_y4 -> 2027-28 | Y24: =FRCP_y5 -> 2028-29
B25: For overhead network assets less than 33kV:
A26: DRAB0201 | B26: Opening value | C26: 149219725 | D26: 167482750 | E26: 180163484 | F26: 195276631 | G26: 210807173 | H26: 233256431 | I26: 259882605 | K26: 149219725 | L26: 167482750 | M26: 180163484 | N26: 195276631 | O26: 210807173 | P26: 233256431 | Q26: 259882605 | U26: 0 | V26: 0 | W26: 0 | X26: 0 | Y26: 0
A27: DRAB0202 | B27: Inflation addition | C27: 11937578 | D27: 7871689 | E27: 5134123 | F27: 5564803 | G27: 6007377 | H27: 6647114 | I27: 7405880 | K27: 11937578 | L27: 7871689 | M27: 5134123 | N27: 5564803 | O27: 6007377 | P27: 6647114 | Q27: 7405880 | U27: 0 | V27: 0 | W27: 0 | X27: 0 | Y27: 0
A28: DRAB0203 | B28: Straight line depreciation | C28: -3629668 | D28: -4176083 | E28: -4367204 | F28: -4786758 | G28: -5226624 | H28: -5821287 | I28: -6517888 | K28: -3629668 | L28: -4176083 | M28: -4367204 | N28: -4786758 | O28: -5226624 | P28: -5821287 | Q28: -6517888 | U28: 0 | V28: 0 | W28: 0 | X28: 0 | Y28: 0
A29: DRAB0205 | B29: Actual additions (recognised in RAB) | C29: 9955115 | D29: 12135529 | E29: 14346228 | F29: 14752497 | G29: 21668506 | H29: 25800347 | I29: 24928284 | K29: 9955115 | L29: 12135529 | M29: 14346228 | N29: 14752497 | O29: 21668506 | P29: 25800347 | Q29: 24928284 | U29: 0 | V29: 0 | W29: 0 | X29: 0 | Y29: 0
A30: DRAB0206 | B30: Disposals | C30: 0 | D30: 0 | E30: 0 | F30: 0 | G30: 0 | H30: 0 | I30: 0 | K30: 0 | L30: 0 | M30: 0 | N30: 0 | O30: 0 | P30: 0 | Q30: 0 | S30: 0 | U30: 0 | V30: 0 | W30: 0 | X30: 0 | Y30: 0
A31: DRAB0207 | B31: Closing value | C31: =SUM(C26+C27+C28+C29+C30) -> 167482750 | D31: 183313885 | E31: 195276631 | F31: 210807173 | G31: 233256432 | H31: 259882605 | I31: 285698881 | K31: =SUM(K26+K27+K28+K29+K30) -> 167482750 | L31: 183313885 | M31: 195276631 | N31: 210807173 | O31: 233256432 | P31: 259882605 | Q31: 285698881 | S31: =SUM(S26+S27+S28+S29+S30) -> 0 | T31: 0 | U31: 0 | V31: 0 | W31: 0 | X31: 0 | Y31: 0
B32: For underground network assets less than 33kV:
A33: DRAB0301 | B33: Opening value | C33: 214267258 | D33: 250215070 | E33: 280223153 | F33: 314461587 | G33: 344956286 | H33: 389017476 | I33: 440532195 | K33: 214267258 | L33: 250215070 | M33: 280223153 | N33: 314461587 | O33: 344956286 | P33: 389017476 | Q33: 440532195 | U33: 0 | V33: 0 | W33: 0 | X33: 0 | Y33: 0
A34: DRAB0302 | B34: Inflation addition | C34: 17141381 | D34: 11760108 | E34: 7985525 | F34: 8961219 | G34: 9830227 | H34: 11085840 | I34: 12553856 | K34: 17141381 | L34: 11760108 | M34: 7985525 | N34: 8961219 | O34: 9830227 | P34: 11085840 | Q34: 12553856 | U34: 0 | V34: 0 | W34: 0 | X34: 0 | Y34: 0
A35: DRAB0303 | B35: Straight line depreciation | C35: -4176055 | D35: -4880371 | E35: -5407929 | F35: -6104756 | G35: -6752488 | H35: -7647436 | I35: -8689471 | K35: -4176055 | L35: -4880371 | M35: -5407929 | N35: -6104756 | O35: -6752488 | P35: -7647436 | Q35: -8689471 | U35: 0 | V35: 0 | W35: 0 | X35: 0 | Y35: 0
A36: DRAB0305 | B36: Actual additions (recognised in RAB) | C36: 22982486 | D36: 17341070 | E36: 31660837 | F36: 27638237 | G36: 40983451 | H36: 48076316 | I36: 45584540 | K36: 22982486 | L36: 17341070 | M36: 31660837 | N36: 27638237 | O36: 40983451 | P36: 48076316 | Q36: 45584540 | U36: 0 | V36: 0 | W36: 0 | X36: 0 | Y36: 0
A37: DRAB0306 | B37: Disposals | C37: 0 | D37: 0 | E37: 0 | F37: 0 | G37: 0 | H37: 0 | I37: 0 | K37: 0 | L37: 0 | M37: 0 | N37: 0 | O37: 0 | P37: 0 | Q37: 0 | S37: 0 | U37: 0 | V37: 0 | W37: 0 | X37: 0 | Y37: 0
A38: DRAB0307 | B38: Closing value | C38: =SUM(C33+C34+C35+C36+C37) -> 250215070 | D38: 274435877 | E38: 314461586 | F38: 344956287 | G38: 389017476 | H38: 440532196 | I38: 489981120 | K38: =SUM(K33+K34+K35+K36+K37) -> 250215070 | L38: 274435877 | M38: 314461586 | N38: 344956287 | O38: 389017476 | P38: 440532196 | Q38: 489981120 | S38: =SUM(S33+S34+S35+S36+S37) -> 0 | T38: 0 | U38: 0 | V38: 0 | W38: 0 | X38: 0 | Y38: 0
B39: For distribution substations and transformers:
A40: DRAB0401 | B40: Opening value | C40: 110423987 | D40: 121417122 | E40: 135215638 | F40: 143551914 | G40: 151835384 | H40: 161095989 | I40: 170590766 | K40: 110423987 | L40: 121417122 | M40: 135215638 | N40: 143551914 | O40: 151835384 | P40: 161095989 | Q40: 170590766 | U40: 0 | V40: 0 | W40: 0 | X40: 0 | Y40: 0
A41: DRAB0402 | B41: Inflation addition | C41: 8833919 | D41: 5706605 | E41: 3853243 | F41: 4090802 | G41: 4326856 | H41: 4590756 | I41: 4861329 | K41: 8833919 | L41: 5706605 | M41: 3853243 | N41: 4090802 | O41: 4326856 | P41: 4590756 | Q41: 4861329 | U41: 0 | V41: 0 | W41: 0 | X41: 0 | Y41: 0
A42: DRAB0403 | B42: Straight line depreciation | C42: -3470875 | D42: -3994292 | E42: -4327420 | F42: -4677277 | G42: -5038633 | H42: -5438633 | I42: -5859553 | K42: -3470875 | L42: -3994292 | M42: -4327420 | N42: -4677277 | O42: -5038633 | P42: -5438633 | Q42: -5859553 | S42: 0 | U42: 0 | V42: 0 | W42: 0 | X42: 0 | Y42: 0
A43: DRAB0405 | B43: Actual additions (recognised in RAB) | C43: 5630091 | D43: 6801588 | E43: 8810454 | F43: 8869944 | G43: 9972382 | H43: 10342654 | I43: 12466603 | K43: 5630091 | L43: 6801588 | M43: 8810454 | N43: 8869944 | O43: 9972382 | P43: 10342654 | Q43: 12466603 | U43: 0 | V43: 0 | W43: 0 | X43: 0 | Y43: 0
A44: DRAB0406 | B44: Disposals | C44: 0 | D44: 0 | E44: 0 | F44: 0 | G44: 0 | H44: 0 | I44: 0 | K44: 0 | L44: 0 | M44: 0 | N44: 0 | O44: 0 | P44: 0 | Q44: 0 | S44: 0 | U44: 0 | V44: 0 | W44: 0 | X44: 0 | Y44: 0
A45: DRAB0407 | B45: Closing value | C45: =SUM(C40+C41+C42+C43+C44) -> 121417122 | D45: 129931023 | E45: 143551915 | F45: 151835383 | G45: 161095989 | H45: 170590766 | I45: 182059145 | K45: =SUM(K40+K41+K42+K43+K44) -> 121417122 | L45: 129931023 | M45: 143551915 | N45: 151835383 | O45: 161095989 | P45: 170590766 | Q45: 182059145 | S45: =SUM(S40+S41+S42+S43+S44) -> 0 | T45: 0 | U45: 0 | V45: 0 | W45: 0 | X45: 0 | Y45: 0
B46: For overhead network assets 33kV and above:
A47: DRAB0501 | B47: Opening value | C47: 50068009 | D47: 53995817 | E47: 52782470 | F47: 54059552 | G47: 55337611 | H47: 57042288 | I47: 59181631 | K47: 50068009 | L47: 53995817 | M47: 52782470 | N47: 54059552 | O47: 55337611 | P47: 57042288 | Q47: 59181631 | U47: 0 | V47: 0 | W47: 0 | X47: 0 | Y47: 0
A48: DRAB0502 | B48: Inflation addition | C48: 4005441 | D48: 2537803 | E48: 1504143 | F48: 1540536 | G48: 1576957 | H48: 1625535 | I48: 1686500 | K48: 4005441 | L48: 2537803 | M48: 1504143 | N48: 1540536 | O48: 1576957 | P48: 1625535 | Q48: 1686500 | U48: 0 | V48: 0 | W48: 0 | X48: 0 | Y48: 0
A49: DRAB0503 | B49: Straight line depreciation | C49: -1490147 | D49: -1629305 | E49: -1775270 | F49: -1865668 | G49: -1960056 | H49: -2069594 | I49: -2194997 | K49: -1490147 | L49: -1629305 | M49: -1775270 | N49: -1865668 | O49: -1960056 | P49: -2069594 | Q49: -2194997 | S49: 0 | U49: 0 | V49: 0 | W49: 0 | X49: 0 | Y49: 0
A50: DRAB0505 | B50: Actual additions (recognised in RAB) | C50: 1412514 | D50: 412035 | E50: 1548209 | F50: 1603191 | G50: 2087776 | H50: 2583401 | I50: 7791926 | K50: 1412514 | L50: 412035 | M50: 1548209 | N50: 1603191 | O50: 2087776 | P50: 2583401 | Q50: 7791926 | U50: 0 | V50: 0 | W50: 0 | X50: 0 | Y50: 0
A51: DRAB0506 | B51: Disposals | C51: 0 | D51: 0 | E51: 0 | F51: 0 | G51: 0 | H51: 0 | I51: 0 | K51: 0 | L51: 0 | M51: 0 | N51: 0 | O51: 0 | P51: 0 | Q51: 0 | S51: 0 | U51: 0 | V51: 0 | W51: 0 | X51: 0 | Y51: 0
A52: DRAB0507 | B52: Closing value | C52: =SUM(C47+C48+C49+C50+C51) -> 53995817 | D52: 55316350 | E52: 54059552 | F52: 55337611 | G52: 57042288 | H52: 59181630 | I52: 66465060 | K52: =SUM(K47+K48+K49+K50+K51) -> 53995817 | L52: 55316350 | M52: 54059552 | N52: 55337611 | O52: 57042288 | P52: 59181630 | Q52: 66465060 | S52: =SUM(S47+S48+S49+S50+S51) -> 0 | T52: 0 | U52: 0 | V52: 0 | W52: 0 | X52: 0 | Y52: 0
B53: For underground network assets 33kV and above:
A54: DRAB0601 | B54: Opening value | C54: 1005393 | D54: 1047975 | E54: 421917 | F54: 425953 | G54: 429875 | H54: 433676 | I54: 437344 | K54: 1005393 | L54: 1047975 | M54: 421917 | N54: 425953 | O54: 429875 | P54: 433676 | Q54: 437344 | U54: 0 | V54: 0 | W54: 0 | X54: 0 | Y54: 0
A55: DRAB0602 | B55: Inflation addition | C55: 80431 | D55: 49255 | E55: 12023 | F55: 12138 | G55: 12250 | H55: 12358 | I55: 12463 | K55: 80431 | L55: 49255 | M55: 12023 | N55: 12138 | O55: 12250 | P55: 12358 | Q55: 12463 | U55: 0 | V55: 0 | W55: 0 | X55: 0 | Y55: 0
A56: DRAB0603 | B56: Straight line depreciation | C56: -37849 | D56: -40877 | E56: -7988 | F56: -8216 | G56: -8450 | H56: -8691 | I56: -8938 | K56: -37849 | L56: -40877 | M56: -7988 | N56: -8216 | O56: -8450 | P56: -8691 | Q56: -8938 | U56: 0 | V56: 0 | W56: 0 | X56: 0 | Y56: 0
A57: DRAB0605 | B57: Actual additions (recognised in RAB) | C57: 0 | D57: 0 | E57: 0 | F57: 0 | G57: 0 | H57: 0 | I57: 0 | K57: 0 | L57: 0 | M57: 0 | N57: 0 | O57: 0 | P57: 0 | Q57: 0 | U57: 0 | V57: 0 | W57: 0 | X57: 0 | Y57: 0
A58: DRAB0606 | B58: Disposals | C58: 0 | D58: 0 | E58: 0 | F58: 0 | G58: 0 | H58: 0 | I58: 0 | K58: 0 | L58: 0 | M58: 0 | N58: 0 | O58: 0 | P58: 0 | Q58: 0 | U58: 0 | V58: 0 | W58: 0 | X58: 0 | Y58: 0
A59: DRAB0607 | B59: Closing value | C59: =SUM(C54+C55+C56+C57+C58) -> 1047975 | D59: 1056353 | E59: 425952 | F59: 429875 | G59: 433675 | H59: 437343 | I59: 440869 | K59: =SUM(K54+K55+K56+K57+K58) -> 1047975 | L59: 1056353 | M59: 425952 | N59: 429875 | O59: 433675 | P59: 437343 | Q59: 440869 | S59: =SUM(S54+S55+S56+S57+S58) -> 0 | T59: 0 | U59: 0 | V59: 0 | W59: 0 | X59: 0 | Y59: 0
B60: Zone substations and transformers
A61: DRAB0701 | B61: Opening value | C61: 78812295 | D61: 105285260 | E61: 90774341 | F61: 108566858 | G61: 131262278 | H61: 149906510 | I61: 169601851 | K61: 78812295 | L61: 105285260 | M61: 90774341 | N61: 108566858 | O61: 131262278 | P61: 149906510 | Q61: 169601851 | U61: 0 | V61: 0 | W61: 0 | X61: 0 | Y61: 0
A62: DRAB0702 | B62: Inflation addition | C62: 6304984 | D62: 4948407 | E62: 2586798 | F62: 3093832 | G62: 3740584 | H62: 4271889 | I62: 4833148 | K62: 6304984 | L62: 4948407 | M62: 2586798 | N62: 3093832 | O62: 3740584 | P62: 4271889 | Q62: 4833148 | U62: 0 | V62: 0 | W62: 0 | X62: 0 | Y62: 0
A63: DRAB0703 | B63: Straight line depreciation | C63: -2307343 | D63: -2508394 | E63: -483496 | F63: -735447 | G63: -1048129 | H63: -1322657 | I63: -1602916 | K63: -2307343 | L63: -2508394 | M63: -483496 | N63: -735447 | O63: -1048129 | P63: -1322657 | Q63: -1602916 | U63: 0 | V63: 0 | W63: 0 | X63: 0 | Y63: 0
A64: DRAB0705 | B64: Actual additions (recognised in RAB) | C64: 22475324 | D64: -13823640 | E64: 15689215 | F64: 20337035 | G64: 15951777 | H64: 16746108 | I64: 18970569 | K64: 22475324 | L64: -13823640 | M64: 15689215 | N64: 20337035 | O64: 15951777 | P64: 16746108 | Q64: 18970569 | U64: 0 | V64: 0 | W64: 0 | X64: 0 | Y64: 0
A65: DRAB0706 | B65: Disposals | C65: 0 | D65: 0 | E65: 0 | F65: 0 | G65: 0 | H65: 0 | I65: 0 | K65: 0 | L65: 0 | M65: 0 | N65: 0 | O65: 0 | P65: 0 | Q65: 0 | S65: 0 | U65: 0 | V65: 0 | W65: 0 | X65: 0 | Y65: 0
A66: DRAB0707 | B66: Closing value | C66: =SUM(C61+C62+C63+C64+C65) -> 105285260 | D66: 93901633 | E66: 108566858 | F66: 131262278 | G66: 149906510 | H66: 169601850 | I66: 191802652 | K66: =SUM(K61+K62+K63+K64+K65) -> 105285260 | L66: 93901633 | M66: 108566858 | N66: 131262278 | O66: 149906510 | P66: 169601850 | Q66: 191802652 | S66: =SUM(S61+S62+S63+S64+S65) -> 0 | T66: 0 | U66: 0 | V66: 0 | W66: 0 | X66: 0 | Y66: 0
B67: For easements:
A68: DRAB0801 | B68: Opening value | C68: 4816003 | D68: 5560972 | E68: 5299190 | F68: 5739611 | G68: 6317724 | H68: 6786220 | I68: 7315507 | K68: 4816003 | L68: 5560972 | M68: 5299190 | N68: 5739611 | O68: 6317724 | P68: 6786220 | Q68: 7315507 | U68: 0 | V68: 0 | W68: 0 | X68: 0 | Y68: 0
A69: DRAB0802 | B69: Inflation addition | C69: 385280 | D69: 261366 | E69: 151011 | F69: 163562 | G69: 180036 | H69: 193387 | I69: 208470 | K69: 385280 | L69: 261366 | M69: 151011 | N69: 163562 | O69: 180036 | P69: 193387 | Q69: 208470 | U69: 0 | V69: 0 | W69: 0 | X69: 0 | Y69: 0
A70: DRAB0803 | B70: Actual additions (recognised in RAB) | C70: 359689 | D70: -544686 | E70: 289409 | F70: 414552 | G70: 288460 | H70: 335900 | I70: 385502 | K70: 359689 | L70: -544686 | M70: 289409 | N70: 414552 | O70: 288460 | P70: 335900 | Q70: 385502 | U70: 0 | V70: 0 | W70: 0 | X70: 0 | Y70: 0
A71: DRAB0804 | B71: Disposals | C71: 0 | D71: 0 | E71: 0 | F71: 0 | G71: 0 | H71: 0 | I71: 0 | K71: 0 | L71: 0 | M71: 0 | N71: 0 | O71: 0 | P71: 0 | Q71: 0 | S71: 0 | U71: 0 | V71: 0 | W71: 0 | X71: 0 | Y71: 0
A72: DRAB0805 | B72: Closing value | C72: =SUM(C68+C69+C70+C71) -> 5560972 | D72: 5277652 | E72: 5739610 | F72: 6317725 | G72: 6786220 | H72: 7315507 | I72: 7909479 | K72: =SUM(K68+K69+K70+K71) -> 5560972 | L72: 5277652 | M72: 5739610 | N72: 6317725 | O72: 6786220 | P72: 7315507 | Q72: 7909479 | S72: =SUM(S68+S69+S70+S71) -> 0 | T72: 0 | U72: 0 | V72: 0 | W72: 0 | X72: 0 | Y72: 0
B73: For meters:
A74: DRAB0901 | B74: Opening value | C74: 0 | D74: 0 | E74: 0 | F74: 0 | G74: 0 | H74: 0 | I74: 0 | K74: 0 | L74: 0 | M74: 0 | N74: 0 | O74: 0 | P74: 0 | Q74: 0 | S74: 35380282 | T74: 34251865 | U74: 31588863 | V74: 27491149 | W74: 23134237 | X74: 18506682 | Y74: 13596596
A75: DRAB0902 | B75: Inflation addition | C75: 0 | D75: 0 | E75: 0 | F75: 0 | G75: 0 | H75: 0 | I75: 0 | K75: 0 | L75: 0 | M75: 0 | N75: 0 | O75: 0 | P75: 0 | Q75: 0 | S75: 2830423 | T75: 1609838 | U75: 900189 | V75: 783416 | W75: 659257 | X75: 527385 | Y75: 387463
A76: DRAB0903 | B76: Straight line depreciation | C76: 0 | D76: 0 | E76: 0 | F76: 0 | G76: 0 | H76: 0 | I76: 0 | K76: 0 | L76: 0 | M76: 0 | N76: 0 | O76: 0 | P76: 0 | Q76: 0 | S76: -3958840 | T76: -4275547 | U76: -4997903 | V76: -5140328 | W76: -5286812 | X76: -5437470 | Y76: -5592422
A77: DRAB0905 | B77: Actual additions (recognised in RAB) | C77: 0 | D77: 0 | E77: 0 | F77: 0 | G77: 0 | H77: 0 | I77: 0 | K77: 0 | L77: 0 | M77: 0 | N77: 0 | O77: 0 | P77: 0 | Q77: 0 | S77: 0 | T77: 0 | U77: 0 | V77: 0 | W77: 0 | X77: 0 | Y77: 0
A78: DRAB0906 | B78: Disposals | C78: 0 | D78: 0 | E78: 0 | F78: 0 | G78: 0 | H78: 0 | I78: 0 | K78: 0 | L78: 0 | M78: 0 | N78: 0 | O78: 0 | P78: 0 | Q78: 0 | S78: 0 | T78: 0 | U78: 0 | V78: 0 | W78: 0 | X78: 0 | Y78: 0
A79: DRAB0907 | B79: Closing value | C79: =SUM(C74+C75+C76+C77+C78) -> 0 | D79: 0 | E79: 0 | F79: 0 | G79: 0 | H79: 0 | I79: 0 | K79: =SUM(K74+K75+K76+K77+K78) -> 0 | L79: 0 | M79: 0 | N79: 0 | O79: 0 | P79: 0 | Q79: 0 | S79: =SUM(S74+S75+S76+S77+S78) -> 34251865 | T79: 31586156 | U79: 27491149 | V79: 23134237 | W79: 18506682 | X79: 13596597 | Y79: 8391637
B80: For “other” asset items with long lives:
A81: DRAB1001 | B81: Opening value | C81: 262971116 | D81: 244104556 | E81: 212480880 | F81: 172139993 | G81: 129327364 | H81: 83934879 | I81: 35850269 | K81: 262971116 | L81: 244104556 | M81: 212480880 | N81: 172139993 | O81: 129327364 | P81: 83934879 | Q81: 35850269 | U81: 0 | V81: 0 | W81: 0 | X81: 0 | Y81: 0
A82: DRAB1002 | B82: Inflation addition | C82: 0 | D82: 0 | E82: 6055072 | F82: 4905477 | G82: 3685445 | H82: 2391894 | I82: 1021626 | K82: 0 | L82: 0 | M82: 6055072 | N82: 4905477 | O82: 3685445 | P82: 2391894 | Q82: 1021626 | U82: 0 | V82: 0 | W82: 0 | X82: 0 | Y82: 0
A83: DRAB1003 | B83: Straight line depreciation | C83: -18866561 | D83: -31623676 | E83: -46395959 | F83: -47718106 | G83: -49077930 | H83: -50476505 | I83: -36871895 | K83: -18866561 | L83: -31623676 | M83: -46395959 | N83: -47718106 | O83: -49077930 | P83: -50476505 | Q83: -36871895 | S83: 0 | U83: 0 | V83: 0 | W83: 0 | X83: 0 | Y83: 0
A84: DRAB1005 | B84: Actual additions (recognised in RAB) | C84: 0 | D84: 0 | E84: 0 | F84: 0 | G84: 0 | H84: 0 | I84: 0 | K84: 0 | L84: 0 | M84: 0 | N84: 0 | O84: 0 | P84: 0 | Q84: 0 | S84: 0 | U84: 0 | V84: 0 | W84: 0 | X84: 0 | Y84: 0
A85: DRAB1006 | B85: Disposals | C85: 0 | D85: 0 | E85: 0 | F85: 0 | G85: 0 | H85: 0 | I85: 0 | K85: 0 | L85: 0 | M85: 0 | N85: 0 | O85: 0 | P85: 0 | Q85: 0 | S85: 0 | U85: 0 | V85: 0 | W85: 0 | X85: 0 | Y85: 0
A86: DRAB1007 | B86: Closing value | C86: =SUM(C81+C82+C83+C84+C85) -> 244104555 | D86: 212480880 | E86: 172139993 | F86: 129327364 | G86: 83934879 | H86: 35850268 | I86: 0 | K86: =SUM(K81+K82+K83+K84+K85) -> 244104555 | L86: 212480880 | M86: 172139993 | N86: 129327364 | O86: 83934879 | P86: 35850268 | Q86: 0 | S86: =SUM(S81+S82+S83+S84+S85) -> 0 | T86: 0 | U86: 0 | V86: 0 | W86: 0 | X86: 0 | Y86: 0
B87: For “other” asset items with short lives:
A88: DRAB1101 | B88: Opening value | C88: 141940292 | D88: 171521657 | E88: 173871885 | F88: 170396906 | G88: 165527029 | H88: 167974817 | I88: 176198850 | K88: 141940292 | L88: 171521657 | M88: 173871885 | N88: 170396906 | O88: 165527029 | P88: 167974817 | Q88: 176198850 | U88: 0 | V88: 0 | W88: 0 | X88: 0 | Y88: 0
A89: DRAB1102 | B89: Inflation addition | C89: 11355223 | D89: 8061518 | E89: 4954831 | F89: 4855804 | G89: 4717027 | H89: 4786782 | I89: 5021143 | K89: 11355223 | L89: 8061518 | M89: 4954831 | N89: 4855804 | O89: 4717027 | P89: 4786782 | Q89: 5021143 | U89: 0 | V89: 0 | W89: 0 | X89: 0 | Y89: 0
A90: DRAB1103 | B90: Straight line depreciation | C90: -23412699 | D90: -26484856 | E90: -27812718 | F90: -32870160 | G90: -22565058 | H90: -23128772 | I90: -25040706 | K90: -23412699 | L90: -26484856 | M90: -27812718 | N90: -32870160 | O90: -22565058 | P90: -23128772 | Q90: -25040706 | U90: 0 | V90: 0 | W90: 0 | X90: 0 | Y90: 0
A91: DRAB1105 | B91: Actual additions (recognised in RAB) | C91: 42305441 | D91: 29098067 | E91: 20316445 | F91: 24111767 | G91: 20789768 | H91: 27062215 | I91: 38213187 | K91: 42305441 | L91: 29098067 | M91: 20316445 | N91: 24111767 | O91: 20789768 | P91: 27062215 | Q91: 38213187 | U91: 0 | V91: 0 | W91: 0 | X91: 0 | Y91: 0
A92: DRAB1106 | B92: Disposals | C92: -666600 | D92: -761129 | E92: -933538 | F92: -967288 | G92: -493949 | H92: -496193 | I92: -513092 | K92: -666600 | L92: -761129 | M92: -933538 | N92: -967288 | O92: -493949 | P92: -496193 | Q92: -513092 | U92: 0 | V92: 0 | W92: 0 | X92: 0 | Y92: 0
A93: DRAB1107 | B93: Closing value | C93: =SUM(C88+C89+C90+C91+C92) -> 171521657 | D93: 181435257 | E93: 170396905 | F93: 165527029 | G93: 167974817 | H93: 176198849 | I93: 193879382 | K93: =SUM(K88+K89+K90+K91+K92) -> 171521657 | L93: 181435257 | M93: 170396905 | N93: 165527029 | O93: 167974817 | P93: 176198849 | Q93: 193879382 | S93: =SUM(S88+S89+S90+S91+S92) -> 0 | T93: 0 | U93: 0 | V93: 0 | W93: 0 | X93: 0 | Y93: 0
B97: 3.3.3 - TOTAL DISAGGREGATED RAB ASSET VALUES
C98: Network services | K98: Standard control services | S98: Alternative control services
C99: =CONCATENATE(" VALUE Forecast ($0's, nominal) ") -> VALUE Forecast ($0's, nominal) | K99: =CONCATENATE(" VALUE Forecast ($0's, nominal) ") -> VALUE Forecast ($0's, nominal) | S99: =CONCATENATE(" VALUE Forecast ($0's, nominal) ") -> VALUE Forecast ($0's, nominal)
C100: =CRCP_y4 -> 2022-23 | D100: =CRCP_y5 -> 2023-24 | E100: =FRCP_y1 -> 2024-25 | F100: =FRCP_y2 -> 2025-26 | G100: =FRCP_y3 -> 2026-27 | H100: =FRCP_y4 -> 2027-28 | I100: =FRCP_y5 -> 2028-29 | K100: =CRCP_y4 -> 2022-23 | L100: =CRCP_y5 -> 2023-24 | M100: =FRCP_y1 -> 2024-25 | N100: =FRCP_y2 -> 2025-26 | O100: =FRCP_y3 -> 2026-27 | P100: =FRCP_y4 -> 2027-28 | Q100: =FRCP_y5 -> 2028-29 | S100: =CRCP_y4 -> 2022-23 | T100: =CRCP_y5 -> 2023-24 | U100: =FRCP_y1 -> 2024-25 | V100: =FRCP_y2 -> 2025-26 | W100: =FRCP_y3 -> 2026-27 | X100: =FRCP_y4 -> 2027-28 | Y100: =FRCP_y5 -> 2028-29
A101: DRAB1201 | B101: Overhead network assets less than 33kV (wires and poles) | C101: 167482750 | D101: 180163484 | E101: 189866015 | F101: 199287155 | G101: 214399866 | H101: 232254992 | I101: 248252338 | K101: 167482750 | L101: 180163484 | M101: 189866015 | N101: 199287155 | O101: 214399866 | P101: 232254992 | Q101: 248252338 | S101: 0 | T101: 0 | U101: 0 | V101: 0 | W101: 0 | X101: 0 | Y101: 0
A102: DRAB1202 | B102: Underground network assets less than 33kV (cables) | C102: 250215070 | D102: 280223153 | E102: 305748660 | F102: 326105397 | G102: 357569112 | H102: 393700076 | I102: 425759309 | K102: 250215070 | L102: 280223153 | M102: 305748660 | N102: 326105397 | O102: 357569112 | P102: 393700076 | Q102: 425759309 | S102: 0 | T102: 0 | U102: 0 | V102: 0 | W102: 0 | X102: 0 | Y102: 0
A103: DRAB1203 | B103: Distribution substations including transformers | C103: 121417122 | D103: 135215638 | E103: 139574458 | F103: 143538008 | G103: 148072910 | H103: 152455594 | I103: 158196658 | K103: 121417122 | L103: 135215638 | M103: 139574458 | N103: 143538008 | O103: 148072910 | P103: 152455594 | Q103: 158196658 | S103: 0 | T103: 0 | U103: 0 | V103: 0 | W103: 0 | X103: 0 | Y103: 0
A104: DRAB1204 | B104: Overhead network assets 33kV and above (wires and towers / poles etc) | C104: 53995817 | D104: 52782470 | E104: 52561700 | F104: 52313566 | G104: 52430962 | H104: 52890147 | I104: 57753487 | K104: 53995817 | L104: 52782470 | M104: 52561700 | N104: 52313566 | O104: 52430962 | P104: 52890147 | Q104: 57753487 | S104: 0 | T104: 0 | U104: 0 | V104: 0 | W104: 0 | X104: 0 | Y104: 0
A105: DRAB1205 | B105: Underground network assets 33kV and above(cables, ducts etc) | C105: 1047975 | D105: 421917 | E105: 414151 | F105: 406384 | G105: 398617 | H105: 390850 | I105: 383084 | K105: 1047975 | L105: 421917 | M105: 414151 | N105: 406384 | O105: 398617 | P105: 390850 | Q105: 383084 | S105: 0 | T105: 0 | U105: 0 | V105: 0 | W105: 0 | X105: 0 | Y105: 0
A106: DRAB1206 | B106: Zone substations and transformers | C106: 105285260 | D106: 90774341 | E106: 99310542 | F106: 109340929 | G106: 117123515 | H106: 124372445 | I106: 132193224 | K106: 105285260 | L106: 90774341 | M106: 99310542 | N106: 109340929 | O106: 117123515 | P106: 124372445 | Q106: 132193224 | S106: 0 | T106: 0 | U106: 0 | V106: 0 | W106: 0 | X106: 0 | Y106: 0
A107: DRAB1207 | B107: Easements | C107: 5560972 | D107: 5299190 | E107: 5580581 | F107: 5972478 | G107: 6237619 | H107: 6537810 | I107: 6872785 | K107: 5560972 | L107: 5299190 | M107: 5580581 | N107: 5972478 | O107: 6237619 | P107: 6537810 | Q107: 6872785 | S107: 0 | T107: 0 | U107: 0 | V107: 0 | W107: 0 | X107: 0 | Y107: 0
A108: DRAB1208 | B108: Meters | C108: 0 | D108: 0 | E108: 0 | F108: 0 | G108: 0 | H108: 0 | I108: 0 | K108: 0 | L108: 0 | M108: 0 | N108: 0 | O108: 0 | P108: 0 | Q108: 0 | S108: 34.25 | T108: 31.59 | U108: 26.73 | V108: 21.87 | W108: 17.01 | X108: 12.15 | Y108: 7.29
A109: DRAB1209 | B109: “Other” assets with long lives | C109: 244104556 | D109: 212480880 | E109: 167370434 | F109: 122259988 | G109: 77149542 | H109: 32039097 | I109: 0 | K109: 244104556 | L109: 212480880 | M109: 167370434 | N109: 122259988 | O109: 77149542 | P109: 32039097 | Q109: 0 | S109: 0 | T109: 0 | U109: 0 | V109: 0 | W109: 0 | X109: 0 | Y109: 0
A110: DRAB1210 | B110: “Other” assets with short lives | C110: 171007046 | D110: 173353261 | E110: 164006928 | F110: 153713709 | G110: 151650184 | H110: 154839740 | I110: 166029431 | K110: 171007046 | L110: 173353261 | M110: 164006928 | N110: 153713709 | O110: 151650184 | P110: 154839740 | Q110: 166029431 | S110: 0 | T110: 0 | U110: 0 | V110: 0 | W110: 0 | X110: 0 | Y110: 0
A111: DRAB13 | B111: Value of Capital Contributions or Contributed Assets (included in the above) | C111: 0 | D111: 0 | E111: 0 | F111: 0 | G111: 0 | H111: 0 | I111: 0 | K111: 0 | L111: 0 | M111: 0 | N111: 0 | O111: 0 | P111: 0 | Q111: 0 | S111: 0 | T111: 0 | U111: 0 | V111: 0 | W111: 0 | X111: 0 | Y111: 0
B114: 3.3.4 - ASSET LIVES
C115: Network services | K115: Standard control services | S115: Alternative control services
C116: Forecast ( years ) | K116: Forecast ( years ) | S116: Forecast ( years )
C117: =CRCP_y4 -> 2022-23 | D117: =CRCP_y5 -> 2023-24 | E117: =FRCP_y1 -> 2024-25 | F117: =FRCP_y2 -> 2025-26 | G117: =FRCP_y3 -> 2026-27 | H117: =FRCP_y4 -> 2027-28 | I117: =FRCP_y5 -> 2028-29 | K117: =CRCP_y4 -> 2022-23 | L117: =CRCP_y5 -> 2023-24 | M117: =FRCP_y1 -> 2024-25 | N117: =FRCP_y2 -> 2025-26 | O117: =FRCP_y3 -> 2026-27 | P117: =FRCP_y4 -> 2027-28 | Q117: =FRCP_y5 -> 2028-29 | S117: =CRCP_y4 -> 2022-23 | T117: =CRCP_y5 -> 2023-24 | U117: =FRCP_y1 -> 2024-25 | V117: =FRCP_y2 -> 2025-26 | W117: =FRCP_y3 -> 2026-27 | X117: =FRCP_y4 -> 2027-28 | Y117: =FRCP_y5 -> 2028-29
B118: Estimated service life of new assets
A119: DRAB1401 | B119: Overhead network assets less than 33kV (wires and poles) | C119: 45 | D119: 45 | E119: 45 | F119: 45 | G119: 45 | H119: 45 | I119: 45 | K119: 45 | L119: 45 | M119: 45 | N119: 45 | O119: 45 | P119: 45 | Q119: 45 | S119: 0 | T119: 0 | U119: 0 | V119: 0 | W119: 0 | X119: 0 | Y119: 0
A120: DRAB1402 | B120: Underground network assets less than 33kV (cables) | C120: 50 | D120: 50 | E120: 50 | F120: 50 | G120: 50 | H120: 50 | I120: 50 | K120: 50 | L120: 50 | M120: 50 | N120: 50 | O120: 50 | P120: 50 | Q120: 50 | S120: 0 | T120: 0 | U120: 0 | V120: 0 | W120: 0 | X120: 0 | Y120: 0
A121: DRAB1403 | B121: Distribution substations including transformers | C121: 40 | D121: 40 | E121: 40 | F121: 40 | G121: 40 | H121: 40 | I121: 40 | K121: 40 | L121: 40 | M121: 40 | N121: 40 | O121: 40 | P121: 40 | Q121: 40 | S121: 0 | T121: 0 | U121: 0 | V121: 0 | W121: 0 | X121: 0 | Y121: 0
A122: DRAB1404 | B122: Overhead network assets 33kV and above (wires and towers / poles etc) | C122: 47.5 | D122: 47.5 | E122: 47.5 | F122: 47.5 | G122: 47.5 | H122: 47.5 | I122: 47.5 | K122: 47.5 | L122: 47.5 | M122: 47.5 | N122: 47.5 | O122: 47.5 | P122: 47.5 | Q122: 47.5 | S122: 0 | T122: 0 | U122: 0 | V122: 0 | W122: 0 | X122: 0 | Y122: 0
A123: DRAB1405 | B123: Underground network assets 33kV and above(cables, ducts etc) | C123: 47.5 | D123: 47.5 | E123: 47.5 | F123: 47.5 | G123: 47.5 | H123: 47.5 | I123: 47.5 | K123: 47.5 | L123: 47.5 | M123: 47.5 | N123: 47.5 | O123: 47.5 | P123: 47.5 | Q123: 47.5 | S123: 0 | T123: 0 | U123: 0 | V123: 0 | W123: 0 | X123: 0 | Y123: 0
A124: DRAB1406 | B124: Zone substations and transformers | C124: 40 | D124: 40 | E124: 40 | F124: 40 | G124: 40 | H124: 40 | I124: 40 | K124: 40 | L124: 40 | M124: 40 | N124: 40 | O124: 40 | P124: 40 | Q124: 40 | S124: 0 | T124: 0 | U124: 0 | V124: 0 | W124: 0 | X124: 0 | Y124: 0
A125: DRAB1407 | B125: Meters | C125: 0 | D125: 0 | E125: 0 | F125: 0 | G125: 0 | H125: 0 | I125: 0 | K125: 0 | L125: 0 | M125: 0 | N125: 0 | O125: 0 | P125: 0 | Q125: 0 | S125: 15 | T125: 15 | U125: 15 | V125: 15 | W125: 15 | X125: 15 | Y125: 15
A126: DRAB1408 | B126: “Other” assets with long lives | C126: 40 | D126: 40 | E126: 40 | F126: 40 | G126: 40 | H126: 40 | I126: 40 | K126: 40 | L126: 40 | M126: 40 | N126: 40 | O126: 40 | P126: 40 | Q126: 40 | S126: 0 | T126: 0 | U126: 0 | V126: 0 | W126: 0 | X126: 0 | Y126: 0
A127: DRAB1409 | B127: “Other” assets with short lives | C127: 6.72 | D127: 6.72 | E127: 6.72 | F127: 6.72 | G127: 6.72 | H127: 6.72 | I127: 6.72 | K127: 6.72 | L127: 6.72 | M127: 6.72 | N127: 6.72 | O127: 6.72 | P127: 6.72 | Q127: 6.72 | S127: 0 | T127: 0 | U127: 0 | V127: 0 | W127: 0 | X127: 0 | Y127: 0
B128: Estimated residual service life
A129: DRAB1501 | B129: Overhead network assets less than 33kV (wires and poles) | C129: 43.21 | D129: 42.74 | E129: 41.75 | F129: 40.76 | G129: 39.76 | H129: 38.77 | I129: 37.78 | K129: 43.21 | L129: 42.74 | M129: 41.75 | N129: 40.76 | O129: 39.76 | P129: 38.77 | Q129: 37.78 | S129: 0 | T129: 0 | U129: 0 | V129: 0 | W129: 0 | X129: 0 | Y129: 0
A130: DRAB1502 | B130: Underground network assets less than 33kV (cables) | C130: 54.05 | D130: 53.51 | E130: 52.51 | F130: 51.51 | G130: 50.52 | H130: 49.53 | I130: 48.53 | K130: 54.05 | L130: 53.51 | M130: 52.51 | N130: 51.51 | O130: 50.52 | P130: 49.53 | Q130: 48.53 | S130: 0 | T130: 0 | U130: 0 | V130: 0 | W130: 0 | X130: 0 | Y130: 0
A131: DRAB1503 | B131: Distribution substations including transformers | C131: 32.94 | D131: 32.38 | E131: 31.39 | F131: 30.4 | G131: 29.42 | H131: 28.43 | I131: 27.45 | K131: 32.94 | L131: 32.38 | M131: 31.39 | N131: 30.4 | O131: 29.42 | P131: 28.43 | Q131: 27.45 | S131: 0 | T131: 0 | U131: 0 | V131: 0 | W131: 0 | X131: 0 | Y131: 0
A132: DRAB1504 | B132: Overhead network assets 33kV and above (wires and towers / poles etc) | C132: 31.86 | D132: 30.93 | E132: 29.94 | F132: 28.95 | G132: 27.95 | H132: 26.96 | I132: 25.97 | K132: 31.86 | L132: 30.93 | M132: 29.94 | N132: 28.95 | O132: 27.95 | P132: 26.96 | Q132: 25.97 | S132: 0 | T132: 0 | U132: 0 | V132: 0 | W132: 0 | X132: 0 | Y132: 0
A133: DRAB1505 | B133: Underground network assets 33kV and above (cables, ducts etc) | C133: 55.72 | D133: 54.72 | E133: 53.72 | F133: 52.72 | G133: 51.72 | H133: 50.72 | I133: 49.72 | K133: 55.72 | L133: 54.72 | M133: 53.72 | N133: 52.72 | O133: 51.72 | P133: 50.72 | Q133: 49.72 | S133: 0 | T133: 0 | U133: 0 | V133: 0 | W133: 0 | X133: 0 | Y133: 0
A134: DRAB1506 | B134: Zone substations and transformers | C134: 32.87 | D134: 30.73 | E134: 29.73 | F134: 28.74 | G134: 27.74 | H134: 26.75 | I134: 25.75 | K134: 32.87 | L134: 30.73 | M134: 29.73 | N134: 28.74 | O134: 27.74 | P134: 26.75 | Q134: 25.75 | S134: 0 | T134: 0 | U134: 0 | V134: 0 | W134: 0 | X134: 0 | Y134: 0
A135: DRAB1507 | B135: Meters | C135: 0 | D135: 0 | E135: 0 | F135: 0 | G135: 0 | H135: 0 | I135: 0 | K135: 0 | L135: 0 | M135: 0 | N135: 0 | O135: 0 | P135: 0 | Q135: 0 | S135: 7.500509455 | T135: 6.500538843 | U135: 5.500578917 | V135: 4.500636801 | W135: 3.500727758 | X135: 2.500891471 | Y135: 1.501273422
A136: DRAB1508 | B136: “Other” assets with long lives | C136: 53.7 | D136: 53.25 | E136: 52.26 | F136: 51.27 | G136: 50.28 | H136: 49.29 | I136: 48.3 | K136: 53.7 | L136: 53.25 | M136: 52.26 | N136: 51.27 | O136: 50.28 | P136: 49.29 | Q136: 48.3 | S136: 0 | T136: 0 | U136: 0 | V136: 0 | W136: 0 | X136: 0 | Y136: 0
A137: DRAB1509 | B137: “Other” assets with short lives | C137: 6.28 | D137: 6.44 | E137: 6.1 | F137: 6.33 | G137: 5.53 | H137: 4.62 | I137: 3.75 | K137: 6.28 | L137: 6.44 | M137: 6.1 | N137: 6.33 | O137: 5.53 | P137: 4.62 | Q137: 3.75 | S137: 0 | T137: 0 | U137: 0 | V137: 0 | W137: 0 | X137: 0 | Y137: 0

Sheet 3.4 Operational data
B1: =INDEX(dms_Worksheet_List,MATCH(dms_Model,dms_Model_List)) -> REGULATORY REPORTING STATEMENT
B2: =INDEX(dms_TradingNameFull_List,MATCH(dms_TradingName,dms_TradingName_List)) -> Evoenergy Distribution
B3: =CONCATENATE("REGULATORY PERIOD FROM ", FRCP_y1," TO ",dms_MultiYear_FinalYear_Result) -> REGULATORY PERIOD FROM 2024-25 TO 2028-29
B4: 3.4 OPERATIONAL DATA
B6: There are TWO tables on this worksheet. Each table has been grouped for ease of navigation. See the Instructions sheet on how to group or ungroup tables.
B8: 3.4.1 - ENERGY DELIVERY
D9: Standard control services
D10: Forecast
C11: Units | D11: =CRCP_y4 -> 2022-23 | E11: =CRCP_y5 -> 2023-24 | F11: =FRCP_y1 -> 2024-25 | G11: =FRCP_y2 -> 2025-26 | H11: =FRCP_y3 -> 2026-27 | I11: =FRCP_y4 -> 2027-28 | J11: =FRCP_y5 -> 2028-29
A12: DOPED01 | B12: TOTAL ENERGY DELIVERED
B13: 3.4.1.1 - Energy grouping - delivery by chargeable quantity
A14: DOPED0201 | B14: Energy Delivery where time of use is not a determinant | C14: GWh | D14: 1396 | E14: 1424 | F14: 1386 | G14: 1290 | H14: 1187 | I14: 1093 | J14: 998
A15: DOPED0202 | B15: Energy Delivery at On-peak times | C15: GWh | D15: 510 | E15: 505 | F15: 507 | G15: 508 | H15: 500 | I15: 491 | J15: 479
A16: DOPED0203 | B16: Energy Delivery at Shoulder times | C16: GWh | D16: 280 | E16: 280 | F16: 290 | G16: 303 | H16: 311 | I16: 319 | J16: 328
A17: DOPED0204 | B17: Energy Delivery at Off-peak times | C17: GWh | D17: 652 | E17: 656 | F17: 730 | G17: 864 | H17: 980 | I17: 1092 | J17: 1207
A18: DOPED0205 | B18: Controlled load energy deliveries | C18: GWh | D18: 76 | E18: 75 | F18: 75 | G18: 75 | H18: 74 | I18: 74 | J18: 75
A19: DOPED0206 | B19: Energy Delivery to unmetered supplies | C19: GWh | D19: 24 | E19: 23 | F19: 22 | G19: 22 | H19: 22 | I19: 22 | J19: 22
B20: 3.4.1.2 - Energy - received from TNSP and other DNSPs by time of receipt
A21: DOPED0301 | B21: Energy into DNSP network at On-peak times | C21: GWh | D21: 521.38 | E21: 523.59 | F21: 530.12 | G21: 538 | H21: 537.97 | I21: 539.56 | J21: 541.45
A22: DOPED0302 | B22: Energy into DNSP network at Shoulder times | C22: GWh | D22: 843.45 | E22: 847.03 | F22: 857.59 | G22: 870.33 | H22: 870.29 | I22: 872.85 | J22: 875.92
A23: DOPED0303 | B23: Energy into DNSP network at Off-peak times | C23: GWh | D23: 1391.64 | E23: 1397.54 | F23: 1414.97 | G23: 1435.99 | H23: 1435.92 | I23: 1440.15 | J23: 1445.22
A24: DOPED0304 | B24: Energy received from TNSP and other DNSPs not included in the above categories | C24: GWh | D24: 0 | E24: 0 | F24: 0 | G24: 0 | H24: 0 | I24: 0 | J24: 0
B25: 3.4.1.3 - Energy - received into DNSP system from embedded generation by time of receipt
A26: DOPED0401 | B26: Energy into DNSP network at On-peak times from non-residential embedded generation | C26: GWh | D26: 9.54 | E26: 9.58 | F26: 9.7 | G26: 9.84 | H26: 9.84 | I26: 9.87 | J26: 9.9
A27: DOPED0402 | B27: Energy into DNSP network at Shoulder times from non-residential embedded generation | C27: GWh | D27: 50.95 | E27: 51.16 | F27: 51.8 | G27: 52.57 | H27: 52.57 | I27: 52.72 | J27: 52.91
A28: DOPED0403 | B28: Energy into DNSP network at Off-peak times from non-residential embedded generation | C28: GWh | D28: 36.61 | E28: 36.77 | F28: 37.23 | G28: 37.78 | H28: 37.78 | I28: 37.89 | J28: 38.02
A29: DOPED0404 | B29: Energy received from embedded generation not included in above categories from non-residential embedded generation | C29: GWh | D29: 10.19 | E29: 10.23 | F29: 10.36 | G29: 10.51 | H29: 10.51 | I29: 10.54 | J29: 10.58
A30: DOPED0405 | B30: Energy into DNSP network at On-peak times from residential embedded generation | C30: GWh | D30: 0 | E30: 0 | F30: 0 | G30: 0 | H30: 0 | I30: 0 | J30: 0
A31: DOPED0406 | B31: Energy into DNSP network at Shoulder times from residential embedded generation | C31: GWh | D31: 0 | E31: 0 | F31: 0 | G31: 0 | H31: 0 | I31: 0 | J31: 0
A32: DOPED0407 | B32: Energy into DNSP network at Off-peak times from residential embedded generation | C32: GWh | D32: 0 | E32: 0 | F32: 0 | G32: 0 | H32: 0 | I32: 0 | J32: 0
A33: DOPED0408 | B33: Energy received from embedded generation not included in above categories from residential embedded generation | C33: GWh | D33: 182.16 | E33: 196.65 | F33: 208.77 | G33: 219.7 | H33: 232.59 | I33: 242.4 | J33: 249.23
B34: 3.4.1.4 - Energy grouping - customer type or class
A35: DOPED0501 | B35: Residential customers energy deliveries | C35: GWh | D35: 1290 | E35: 1283 | F35: 1287 | G35: 1299 | H35: 1302 | I35: 1319 | J35: 1339
A36: DOPED0502 | B36: Non residential customers not on demand tariffs energy deliveries | C36: GWh | D36: 265 | E36: 224 | F36: 201 | G36: 182 | H36: 161 | I36: 141 | J36: 121
A37: DOPED0503 | B37: Non-residential low voltage demand tariff customers energy deliveries | C37: GWh | D37: 951 | E37: 992 | F37: 1017 | G37: 1043 | H37: 1066 | I37: 1089 | J37: 1109
A38: DOPED0504 | B38: Non-residential high voltage demand tariff customers energy deliveries | C38: GWh | D38: 408 | E38: 443 | F38: 483 | G38: 517 | H38: 525 | I38: 522 | J38: 518
A39: DOPED0505 | B39: Other Customer Class Energy Deliveries | C39: GWh | D39: 24 | E39: 23 | F39: 22 | G39: 22 | H39: 22 | I39: 22 | J39: 22
B43: 3.4.3 - SYSTEM DEMAND
D44: Standard control services
D45: Forecast
C46: Units | D46: =CRCP_y4 -> 2022-23 | E46: =CRCP_y5 -> 2023-24 | F46: =FRCP_y1 -> 2024-25 | G46: =FRCP_y2 -> 2025-26 | H46: =FRCP_y3 -> 2026-27 | I46: =FRCP_y4 -> 2027-28 | J46: =FRCP_y5 -> 2028-29
B47: 3.4.3.1 - Annual system maximum demand characteristics at the zone substation level – MW measure
A48: DOPSD0102 | B48: Non–coincident Summated Weather Adjusted System Annual Maximum Demand 10% POE | C48: MW | D48: 777 | E48: 822 | F48: 847 | G48: 832 | H48: 856 | I48: 888 | J48: 920
A49: DOPSD0103 | B49: Non–coincident Summated Weather Adjusted System Annual Maximum Demand 50% POE | C49: MW | D49: 712 | E49: 760 | F49: 786 | G49: 778 | H49: 806 | I49: 836 | J49: 868
A50: DOPSD0105 | B50: Coincident Weather Adjusted System Annual Maximum Demand 10% POE | C50: MW | D50: 665 | E50: 673 | F50: 684 | G50: 695 | H50: 709 | I50: 726 | J50: 744
A51: DOPSD0106 | B51: Coincident Weather Adjusted System Annual Maximum Demand 50% POE | C51: MW | D51: 636 | E51: 643 | F51: 654 | G51: 665 | H51: 679 | I51: 694 | J51: 712
B52: 3.4.3.2 - Annual system maximum demand characteristics at the transmission connection point – MW measure
A53: DOPSD0108 | B53: Non–coincident Summated Weather Adjusted System Annual Maximum Demand 10% POE | C53: MW | D53: 1145 | E53: 1155 | F53: 1168 | G53: 1180 | H53: 1202 | I53: 1222 | J53: 1246
A54: DOPSD0109 | B54: Non–coincident Summated Weather Adjusted System Annual Maximum Demand 50% POE | C54: MW | D54: 913 | E54: 924 | F54: 934 | G54: 953 | H54: 969 | I54: 985 | J54: 1007
A55: DOPSD0111 | B55: Coincident Weather Adjusted System Annual Maximum Demand 10% POE | C55: MW | D55: 669 | E55: 677 | F55: 688 | G55: 699 | H55: 713 | I55: 730 | J55: 749
A56: DOPSD0112 | B56: Coincident Weather Adjusted System Annual Maximum Demand 50% POE | C56: MW | D56: 640 | E56: 647 | F56: 658 | G56: 669 | H56: 683 | I56: 698 | J56: 716
B57: 3.4.3.3 - Annual system maximum demand characteristics at the zone substation level – MVA measure
A58: DOPSD0202 | B58: Non–coincident Summated Weather Adjusted System Annual Maximum Demand 10% POE | C58: MVA | D58: 777 | E58: 822 | F58: 847 | G58: 832 | H58: 856 | I58: 888 | J58: 920
A59: DOPSD0203 | B59: Non–coincident Summated Weather Adjusted System Annual Maximum Demand 50% POE | C59: MVA | D59: 712 | E59: 760 | F59: 786 | G59: 778 | H59: 806 | I59: 836 | J59: 868
A60: DOPSD0205 | B60: Coincident Weather Adjusted System Annual Maximum Demand 10% POE | C60: MVA | D60: 665 | E60: 673 | F60: 684 | G60: 695 | H60: 709 | I60: 726 | J60: 744
A61: DOPSD0206 | B61: Coincident Weather Adjusted System Annual Maximum Demand 50% POE | C61: MVA | D61: 636 | E61: 643 | F61: 654 | G61: 665 | H61: 679 | I61: 694 | J61: 712
B62: 3.4.3.4 - Annual system maximum demand characteristics at the transmission connection point – MVA measure
A63: DOPSD0208 | B63: Non–coincident Summated Weather Adjusted System Annual Maximum Demand 10% POE | C63: MVA | D63: 1145 | E63: 1155 | F63: 1168 | G63: 1180 | H63: 1202 | I63: 1222 | J63: 1246
A64: DOPSD0209 | B64: Non–coincident Summated Weather Adjusted System Annual Maximum Demand 50% POE | C64: MVA | D64: 913 | E64: 924 | F64: 934 | G64: 953 | H64: 969 | I64: 985 | J64: 1007
A65: DOPSD0211 | B65: Coincident Weather Adjusted System Annual Maximum Demand 10% POE | C65: MVA | D65: 669 | E65: 677 | F65: 688 | G65: 699 | H65: 713 | I65: 730 | J65: 749
A66: DOPSD0212 | B66: Coincident Weather Adjusted System Annual Maximum Demand 50% POE | C66: MVA | D66: 640 | E66: 647 | F66: 658 | G66: 669 | H66: 683 | I66: 698 | J66: 716
B67: 3.4.3.5 - Power factor conversion between MVA and MW
A68: DOPSD0301 | B68: Average overall network power factor conversion between MVA and MW | C68: Factor | D68: 0.997 | E68: 0.997 | F68: 0.997 | G68: 0.997 | H68: 0.997 | I68: 0.997 | J68: 0.997
A69: DOPSD0302 | B69: Average power factor conversion for low voltage distribution lines | C69: Factor
A70: DOPSD0303 | B70: Average power factor conversion for 3.3 kV lines | C70: Factor
A71: DOPSD0304 | B71: Average power factor conversion for 6.6 kV lines | C71: Factor
A72: DOPSD0305 | B72: Average power factor conversion for 7.6 kV lines | C72: Factor
A73: DOPSD0306 | B73: Average power factor conversion for 11 kV lines | C73: Factor | D73: 0.997 | E73: 0.997 | F73: 0.997 | G73: 0.997 | H73: 0.997 | I73: 0.997 | J73: 0.997
A74: DOPSD0307 | B74: Average power factor conversion for SWER lines | C74: Factor
A75: DOPSD0308 | B75: Average power factor conversion for 22 kV lines | C75: Factor | D75: 0.997 | E75: 0.997 | F75: 0.997 | G75: 0.997 | H75: 0.997 | I75: 0.997 | J75: 0.997
A76: DOPSD0309 | B76: Average power factor conversion for 33 kV lines | C76: Factor
A77: DOPSD0310 | B77: Average power factor conversion for 44 kV lines | C77: Factor
A78: DOPSD0311 | B78: Average power factor conversion for 66 kV lines | C78: Factor | D78: 0.997 | E78: 0.997 | F78: 0.997 | G78: 0.997 | H78: 0.997 | I78: 0.997 | J78: 0.997
A79: DOPSD0312 | B79: Average power factor conversion for 110 kV lines | C79: Factor
A80: DOPSD0313 | B80: Average power factor conversion for 132 kV lines | C80: Factor | D80: 0.997 | E80: 0.997 | F80: 0.997 | G80: 0.997 | H80: 0.997 | I80: 0.997 | J80: 0.997
A81: DOPSD0314 | B81: Average power factor conversion for 220 kV lines | C81: Factor
B82: 3.4.3.6 - Demand supplied (for customers charged on this basis) – MW measure
A83: DOPSD0401 | B83: Summated Chargeable Contracted Maximum Demand | C83: MW
A84: DOPSD0402 | B84: Summated Chargeable Measured Maximum Demand | C84: MW
B85: 3.4.3.7 - Demand supplied (for customers charged on this basis) – MVA measure
A86: DOPSD0403 | B86: Summated Chargeable Contracted Maximum Demand | C86: MVA
A87: DOPSD0404 | B87: Summated Chargeable Measured Maximum Demand | C87: MVA

Sheet 3.5 Physical assets
B1: =INDEX(dms_Worksheet_List,MATCH(dms_Model,dms_Model_List)) -> REGULATORY REPORTING STATEMENT
B2: =INDEX(dms_TradingNameFull_List,MATCH(dms_TradingName,dms_TradingName_List)) -> Evoenergy Distribution
B3: =CONCATENATE("REGULATORY PERIOD FROM ", FRCP_y1," TO ",dms_MultiYear_FinalYear_Result) -> REGULATORY PERIOD FROM 2024-25 TO 2028-29
B4: 3.5 PHYSICAL ASSETS DATA
B6: There are THREE tables on this worksheet. Each table has been grouped (and sub-grouped) for ease of navigation. See the Instructions sheet on how to group or ungroup tables.
B8: 3.5.1 - NETWORK CAPACITIES VARIABLES
D9: Forecast
C10: Units | D10: 2022-23 | E10: 2023-24 | F10: 2024-25 | G10: 2025-26 | H10: 2026-27 | I10: 2027-28 | J10: 2028-29
B11: CIRCUIT LENGTH
B12: 3.5.1.1 - Overhead network length of circuit at each voltage
A13: DPA0101 | B13: Overhead low voltage distribution | C13: km | D13: 1147 | E13: 1144 | F13: 1141 | G13: 1138 | H13: 1135 | I13: 1132 | J13: 1129
A14: DPA0102 | B14: Overhead 2.2 kV | C14: km | D14: 0 | E14: 0 | F14: 0 | G14: 0 | H14: 0 | I14: 0 | J14: 0
A15: DPA0103 | B15: Overhead 7.6 kV | C15: km | D15: 0 | E15: 0 | F15: 0 | G15: 0 | H15: 0 | I15: 0 | J15: 0
A16: DPA0104 | B16: Overhead 11 kV | C16: km | D16: 933 | E16: 931 | F16: 930 | G16: 928 | H16: 927 | I16: 925 | J16: 924
A17: DPA0105 | B17: Overhead SWER | C17: km | D17: 0 | E17: 0 | F17: 0 | G17: 0 | H17: 0 | I17: 0 | J17: 0
A18: DPA0106 | B18: Overhead 22 kV | C18: km | D18: 33.86 | E18: 33.86 | F18: 33.86 | G18: 33.86 | H18: 33.86 | I18: 33.86 | J18: 33.86
A19: DPA0107 | B19: Overhead 33 kV | C19: km | D19: 0 | E19: 0 | F19: 0 | G19: 0 | H19: 0 | I19: 0 | J19: 0
A20: DPA0108 | B20: Overhead 44 kV | C20: km | D20: 0 | E20: 0 | F20: 0 | G20: 0 | H20: 0 | I20: 0 | J20: 0
A21: DPA0109 | B21: Overhead 66 kV | C21: km | D21: 7.46 | E21: 7.46 | F21: 0 | G21: 0 | H21: 0 | I21: 0 | J21: 0
A22: DPA0110 | B22: Overhead 132 kV | C22: km | D22: 176 | E22: 171 | F22: 175 | G22: 175 | H22: 176 | I22: 176 | J22: 176
A23: DPA0111 | B23: Overhead 6.6kv | C23: km | D23: 0 | E23: 0 | F23: 0 | G23: 0 | H23: 0 | I23: 0 | J23: 0
A24: DPA0112 | B24: Overhead 110kV | C24: km | D24: 0 | E24: 0 | F24: 0 | G24: 0 | H24: 0 | I24: 0 | J24: 0
A25: DPA0113 | B25: Overhead 220kV | C25: km | D25: 0 | E25: 0 | F25: 0 | G25: 0 | H25: 0 | I25: 0 | J25: 0
A26: DPA0114 | B26: Other | C26: km | D26: 0 | E26: 0 | F26: 0 | G26: 0 | H26: 0 | I26: 0 | J26: 0
A27: DPA01 | B27: Total overhead circuit km | D27: =SUM(D13:D26) -> 2297.32 | E27: 2287.32 | F27: 2279.86 | G27: 2274.86 | H27: 2271.86 | I27: 2266.86 | J27: 2262.86
B28: 3.5.1.2 - Underground network circuit length at each voltage
A29: DPA0201 | B29: Underground low voltage distribution | C29: km | D29: 1323 | E29: 1344 | F29: 1368 | G29: 1389 | H29: 1409 | I29: 1428 | J29: 1445
A30: DPA0202 | B30: Underground 5 kV | C30: km | D30: 0 | E30: 0 | F30: 0 | G30: 0 | H30: 0 | I30: 0 | J30: 0
A31: DPA0203 | B31: Underground 6.6 Kv | C31: km | D31: 0 | E31: 0 | F31: 0 | G31: 0 | H31: 0 | I31: 0 | J31: 0
A32: DPA0204 | B32: Underground 7.6 kV | C32: km | D32: 0 | E32: 0 | F32: 0 | G32: 0 | H32: 0 | I32: 0 | J32: 0
A33: DPA0205 | B33: Underground 11 kV | C33: km | D33: 1259 | E33: 1287 | F33: 1314 | G33: 1337 | H33: 1370 | I33: 1411 | J33: 1458
A34: DPA0206 | B34: Underground SWER | C34: km | D34: 0 | E34: 0 | F34: 0 | G34: 0 | H34: 0 | I34: 0 | J34: 0
A35: DPA0207 | B35: Underground 22 kV | C35: km | D35: 2.38 | E35: 2.38 | F35: 2.38 | G35: 2.38 | H35: 2.38 | I35: 2.38 | J35: 2.38
A36: DPA0208 | B36: Underground 33 kV | C36: km | D36: 0 | E36: 0 | F36: 0 | G36: 0 | H36: 0 | I36: 0 | J36: 0
A37: DPA0209 | B37: Underground 66 kV | C37: km | D37: 0 | E37: 0 | F37: 0 | G37: 0 | H37: 0 | I37: 0 | J37: 0
A38: DPA0210 | B38: Underground 110 kV | C38: km | D38: 0 | E38: 0 | F38: 0 | G38: 0 | H38: 0 | I38: 0 | J38: 0
A39: DPA0211 | B39: Underground 132 kV | C39: km | D39: 5 | E39: 14 | F39: 14 | G39: 14 | H39: 14 | I39: 14 | J39: 14
A40: DPA0212 | B40: Other | C40: km | D40: 0 | E40: 0 | F40: 0 | G40: 0 | H40: 0 | I40: 0 | J40: 0
A41: DPA02 | B41: Total underground circuit km | D41: =SUM(D29:D40) -> 2589.38 | E41: 2647.38 | F41: 2698.38 | G41: 2742.38 | H41: 2795.38 | I41: 2855.38 | J41: 2919.38
B43: CIRCUIT CAPACITY MVA
B44: 3.5.1.3 - Estimated overhead network weighted average MVA capacity by voltage class
A45: DPA0301 | B45: Overhead low voltage distribution | C45: MVA | D45: 0.26 | E45: 0.26 | F45: 0.26 | G45: 0.26 | H45: 0.26 | I45: 0.26 | J45: 0.26
A46: DPA0302 | B46: Overhead 6.6 kV | C46: MVA | D46: 0 | E46: 0 | F46: 0 | G46: 0 | H46: 0 | I46: 0 | J46: 0
A47: DPA0303 | B47: Overhead 7.6 kV | C47: MVA | D47: 0 | E47: 0 | F47: 0 | G47: 0 | H47: 0 | I47: 0 | J47: 0
A48: DPA0304 | B48: Overhead 11 kV | C48: MVA | D48: 6.29 | E48: 6.29 | F48: 6.29 | G48: 6.29 | H48: 6.29 | I48: 6.29 | J48: 6.29
A49: DPA0305 | B49: Overhead SWER | C49: MVA | D49: 0 | E49: 0 | F49: 0 | G49: 0 | H49: 0 | I49: 0 | J49: 0
A50: DPA0306 | B50: Overhead 22 kV | C50: MVA | D50: 13.69 | E50: 13.69 | F50: 13.69 | G50: 13.69 | H50: 13.69 | I50: 13.69 | J50: 13.69
A51: DPA0307 | B51: Overhead 33 kV | C51: MVA | D51: 0 | E51: 0 | F51: 0 | G51: 0 | H51: 0 | I51: 0 | J51: 0
A52: DPA0308 | B52: Overhead 44 kV | C52: MVA | D52: 0 | E52: 0 | F52: 0 | G52: 0 | H52: 0 | I52: 0 | J52: 0
A53: DPA0309 | B53: Overhead 66 kV | C53: MVA | D53: 57.16 | E53: 57.16 | F53: 0 | G53: 0 | H53: 0 | I53: 0 | J53: 0
A54: DPA0310 | B54: Overhead 110 kV | C54: MVA | D54: 0 | E54: 0 | F54: 0 | G54: 0 | H54: 0 | I54: 0 | J54: 0
A55: DPA0311 | B55: Overhead 132 kV | C55: MVA | D55: 352.13 | E55: 352.13 | F55: 352.13 | G55: 352.13 | H55: 352.13 | I55: 352.13 | J55: 352.13
A56: DPA0312 | B56: Overhead 220 kV | C56: MVA | D56: 0 | E56: 0 | F56: 0 | G56: 0 | H56: 0 | I56: 0 | J56: 0
A57: DPA0313 | B57: Other | C57: MVA | D57: 0 | E57: 0 | F57: 0 | G57: 0 | H57: 0 | I57: 0 | J57: 0
B58: 3.5.1.4 - Estimated underground network weighted average MVA capacity by voltage class
A59: DPA0401 | B59: Underground low voltage distribution | C59: MVA | D59: 0.25 | E59: 0.25 | F59: 0.25 | G59: 0.25 | H59: 0.25 | I59: 0.25 | J59: 0.25
A60: DPA0402 | B60: Underground 5 kV | C60: MVA | D60: 0 | E60: 0 | F60: 0 | G60: 0 | H60: 0 | I60: 0 | J60: 0
A61: DPA0403 | B61: Underground 6.6 kV | C61: MVA | D61: 0 | E61: 0 | F61: 0 | G61: 0 | H61: 0 | I61: 0 | J61: 0
A62: DPA0404 | B62: Underground 7.6 kV | C62: MVA | D62: 0 | E62: 0 | F62: 0 | G62: 0 | H62: 0 | I62: 0 | J62: 0
A63: DPA0405 | B63: Underground 11 kV | C63: MVA | D63: 6.93 | E63: 6.93 | F63: 6.93 | G63: 6.93 | H63: 6.93 | I63: 6.93 | J63: 6.93
A64: DPA0406 | B64: Underground SWER | C64: MVA | D64: 0 | E64: 0 | F64: 0 | G64: 0 | H64: 0 | I64: 0 | J64: 0
A65: DPA0407 | B65: Underground 12.7 kV | C65: MVA | D65: 0 | E65: 0 | F65: 0 | G65: 0 | H65: 0 | I65: 0 | J65: 0
A66: DPA0408 | B66: Underground 22 kV | C66: MVA | D66: 8.74 | E66: 8.74 | F66: 8.74 | G66: 8.74 | H66: 8.74 | I66: 8.74 | J66: 8.74
A67: DPA0409 | B67: Underground 33 kV | C67: MVA | D67: 0 | E67: 0 | F67: 0 | G67: 0 | H67: 0 | I67: 0 | J67: 0
A68: DPA0410 | B68: Underground 66 kV | C68: MVA | D68: 0 | E68: 0 | F68: 0 | G68: 0 | H68: 0 | I68: 0 | J68: 0
A69: DPA0411 | B69: Underground 110 kV | C69: MVA | D69: 0 | E69: 0 | F69: 0 | G69: 0 | H69: 0 | I69: 0 | J69: 0
A70: DPA0412 | B70: Underground 132 kV | C70: MVA | D70: 173.81 | E70: 173.81 | F70: 173.81 | G70: 173.81 | H70: 173.81 | I70: 173.81 | J70: 173.81
A71: DPA0413 | B71: Other | C71: MVA | D71: 0 | E71: 0 | F71: 0 | G71: 0 | H71: 0 | I71: 0 | J71: 0
B75: 3.5.2 - TRANSFORMER CAPACITIES VARIABLES
D76: VOLUMES
C77: Units | D77: =CRCP_y4 -> 2022-23 | E77: =CRCP_y5 -> 2023-24 | F77: =FRCP_y1 -> 2024-25 | G77: =FRCP_y2 -> 2025-26 | H77: =FRCP_y3 -> 2026-27 | I77: =FRCP_y4 -> 2027-28 | J77: =FRCP_y5 -> 2028-29
B78: Distribution transformer total installed capacity
A79: DPA0501 | B79: Distribution transformer capacity owned by utility | C79: MVA | D79: 2479 | E79: 2509 | F79: 2553 | G79: 2598 | H79: 2649 | I79: 2702 | J79: 2770
A80: DPA0502 | B80: Distribution transformer capacity owned by High Voltage Customers | C80: MVA | D80: 214 | E80: 220 | F80: 226 | G80: 232 | H80: 238 | I80: 244 | J80: 250
A81: DPA0503 | B81: Cold spare capacity included in DPA0501 | C81: MVA | D81: 77 | E81: 80 | F81: 82 | G81: 84 | H81: 86 | I81: 88 | J81: 90
B82: Zone substation transformer capacity
A83: DPA0601 | B83: Total installed capacity for first step transformation where there are two steps to reach distribution voltage | C83: MVA | D83: 0 | E83: 0 | F83: 0 | G83: 0 | H83: 0 | I83: 0 | J83: 0
A84: DPA0602 | B84: Total installed capacity for second step transformation where there are two steps to reach distribution voltage | C84: MVA | D84: 0 | E84: 0 | F84: 0 | G84: 0 | H84: 0 | I84: 0 | J84: 0
A85: DPA0603 | B85: Total zone substation transformer capacity where there is only a single step transformation to reach distribution voltage | C85: MVA | D85: 1548 | E85: 1503 | F85: 1668 | G85: 1668 | H85: 1723 | I85: 1778 | J85: 1778
A86: DPA0604 | B86: Total zone substation transformer capacity | C86: MVA | D86: 1548 | E86: 1503 | F86: 1668 | G86: 1668 | H86: 1723 | I86: 1778 | J86: 1778
A87: DPA0605 | B87: Cold spare capacity of zone substation transformers included in DPA0604 | C87: MVA | D87: 0 | E87: 0 | F87: 0 | G87: 0 | H87: 0 | I87: 0 | J87: 0
B91: 3.5.3 - PUBLIC LIGHTING
D92: VOLUMES
C93: Units | D93: =CRCP_y4 -> 2022-23 | E93: =CRCP_y5 -> 2023-24 | F93: =FRCP_y1 -> 2024-25 | G93: =FRCP_y2 -> 2025-26 | H93: =FRCP_y3 -> 2026-27 | I93: =FRCP_y4 -> 2027-28 | J93: =FRCP_y5 -> 2028-29
A94: DPA0701 | B94: Public lighting luminaires | C94: 0's
A95: DPA0702 | B95: Public lighting poles | C95: 0's

Sheet 3.6 Quality of service
B1: =INDEX(dms_Worksheet_List,MATCH(dms_Model,dms_Model_List)) -> REGULATORY REPORTING STATEMENT
B2: =INDEX(dms_TradingNameFull_List,MATCH(dms_TradingName,dms_TradingName_List)) -> Evoenergy Distribution
B3: =CONCATENATE("REGULATORY PERIOD FROM ", FRCP_y1," TO ",dms_MultiYear_FinalYear_Result) -> REGULATORY PERIOD FROM 2024-25 TO 2028-29
B4: 3.6 QUALITY OF SERVICE DATA
B6: 3.6.2 - ENERGY NOT SUPPLIED
D7: FORECAST
C8: Units | D8: 2022-23 | E8: 2023-24 | F8: 2024-25 | G8: 2025-26 | H8: 2026-27 | I8: 2027-28 | J8: 2028-29
A9: DQS0201 | B9: Energy Not Supplied (planned) | C9: GWh | D9: 0.452 | E9: 0.452 | F9: 0.452 | G9: 0.452 | H9: 0.452 | I9: 0.452 | J9: 0.452
A10: DQS0202 | B10: Energy Not Supplied (unplanned) | C10: GWh | D10: 0.493 | E10: 0.493 | F10: 0.493 | G10: 0.493 | H10: 0.493 | I10: 0.493 | J10: 0.493
A11: DQS02 | B11: Total | D11: =SUM(D9:D10) -> 0.945 | E11: 0.945 | F11: 0.945 | G11: 0.945 | H11: 0.945 | I11: 0.945 | J11: 0.945
B13: 3.6.3 - SYSTEM LOSSES
D14: FORECAST
C15: Units | D15: 2022-23 | E15: 2023-24 | F15: 2024-25 | G15: 2025-26 | H15: 2026-27 | I15: 2027-28 | J15: 2028-29
A16: DQS03 | B16: System losses | C16: % | D16: 3.543100278405209% | E16: 3.532896128622798% | F16: 3.5423356213988733% | G16: 3.519050498941645% | H16: 3.528503797682836% | I16: 3.524039451275418% | J16: 3.543960561300308%
B18: 3.6.4 - CAPACITY UTILISATION
D19: FORECAST
C20: Units | D20: 2022-23 | E20: 2023-24 | F20: 2024-25 | G20: 2025-26 | H20: 2026-27 | I20: 2027-28 | J20: 2028-29
A21: DQS04 | B21: Overall utilisation | C21: % | D21: 46.0% | E21: 50.6% | F21: 47.1% | G21: 46.6% | H21: 46.8% | I21: 47.0% | J21: 48.8%

Sheet 3.7 Operating Environment
B1: =INDEX(dms_Worksheet_List,MATCH(dms_Model,dms_Model_List)) -> REGULATORY REPORTING STATEMENT
B2: =INDEX(dms_TradingNameFull_List,MATCH(dms_TradingName,dms_TradingName_List)) -> Evoenergy Distribution
B3: =CONCATENATE("REGULATORY PERIOD FROM ", FRCP_y1," TO ",dms_MultiYear_FinalYear_Result) -> REGULATORY PERIOD FROM 2024-25 TO 2028-29
B4: 3.7 OPERATING ENVIRONMENT FACTORS
B6: There are THREE tables on this worksheet. Each table has been grouped (and sub-grouped) for ease of navigation. See the Instructions sheet on how to group or ungroup tables.
A8: DOEF01 | B8: 3.7.1 - DENSITY FACTORS
D9: Forecast
C10: Units | D10: 2022-23 | E10: 2023-24 | F10: 2024-25 | G10: 2025-26 | H10: 2026-27 | I10: 2027-28 | J10: 2028-29
A11: DOEF0101 | B11: Customer density | C11: Customer / km | D11: 49.4759
A12: DOEF0102 | B12: Energy density | C12: MWh/customer | D12: 14.1219
A13: DOEF0103 | B13: Demand density | C13: kVA / customer | D13: 3.422
A15: DOEF02 | B15: 3.7.2 - TERRAIN FACTORS
D16: Forecast
C17: Units | D17: 2022-23 | E17: 2023-24 | F17: 2024-25 | G17: 2025-26 | H17: 2026-27 | I17: 2027-28 | J17: 2028-29
A18: DOEF0201 | B18: Rural proportion | C18: % | D18: 25.4%
A19: DOEF0202 | B19: Urban and CBD vegetation maintenance spans | C19: 0's | D19: 85618
A20: DOEF0203 | B20: Rural vegetation maintenance spans | C20: 0's | D20: 8781
A21: DOEF0204 | B21: Total vegetation maintenance spans | C21: 0's | D21: 94399
A22: DOEF0205 | B22: Total number of spans | C22: 0's | D22: 94399
A23: DOEF0206 | B23: Average urban and CBD vegetation maintenance span cycle | C23: Years | D23: 3
A24: DOEF0207 | B24: Average rural vegetation maintenance span cycle | C24: Years | D24: 1
A25: DOEF0208 | B25: Average number of trees per urban and CBD vegetation maintenance span | C25: Trees | D25: 8.14
A26: DOEF0209 | B26: Average number of trees per rural vegetation maintenance span | C26: Trees | D26: 11.56
A27: DOEF0210 | B27: Average number of defects per urban and CBD vegetation maintenance span | C27: Defects | D27: 0.499
A28: DOEF0211 | B28: Average number of defects per rural vegetation maintenance span | C28: Defects | D28: 0.286
A29: DOEF0212 | B29: Tropical proportion | C29: Spans | D29: 0
A30: DOEF0213 | B30: Standard vehicle access | C30: km | D30: 216.15 | E30: 208.69 | F30: 208.69 | G30: 208.69 | H30: 208.69 | I30: 208.69 | J30: 208.69
A31: DOEF0214 | B31: Bushfire risk | C31: Spans | D31: 8781
A33: DOEF03 | B33: 3.7.3 - SERVICE AREA FACTORS
D34: Forecast
C35: Units | D35: 2022-23 | E35: 2023-24 | F35: 2024-25 | G35: 2025-26 | H35: 2026-27 | I35: 2027-28 | J35: 2028-29
A36: DOEF0301 | B36: Route Line length | C36: km | D36: 4197 | E36: 4241 | F36: 4287 | G36: 4327 | H36: 4376 | I36: 4431 | J36: 4500

Sheet 4.1 Public lighting
B1: =INDEX(dms_Worksheet_List,MATCH(dms_Model,dms_Model_List)) -> REGULATORY REPORTING STATEMENT
B2: =INDEX(dms_TradingNameFull_List,MATCH(dms_TradingName,dms_TradingName_List)) -> Evoenergy Distribution
B3: =CONCATENATE("REGULATORY PERIOD FROM ", FRCP_y1," TO ",dms_MultiYear_FinalYear_Result) -> REGULATORY PERIOD FROM 2024-25 TO 2028-29
B4: 4.1 PUBLIC LIGHTING
B6: There are TWO tables on this worksheet. Each table has been grouped (and sub-grouped) for ease of navigation. See the Instructions sheet on how to group or ungroup tables.
B8: 4.1.2 - DESCRIPTOR METRICS ANNUALLY
D9: VOLUMES & EXPENDITURE
C10: Units | D10: =CRCP_y4 -> 2022-23 | E10: =CRCP_y5 -> 2023-24 | F10: =FRCP_y1 -> 2024-25 | G10: =FRCP_y2 -> 2025-26 | H10: =FRCP_y3 -> 2026-27 | I10: =FRCP_y4 -> 2027-28 | J10: =FRCP_y5 -> 2028-29
B11: LIGHT INSTALLATION
B12: Number of lights installed | C12: 0's
B13: Number of poles installed | C13: 0's
B14: Total expenditure | C14: $0's
B15: LIGHT REPLACEMENT
B16: Number of lights replaced | C16: 0's
B17: Number of poles replaced | C17: 0's
B18: Total expenditure | C18: $0's
B19: LIGHT MAINTENANCE
B20: Number of lights maintained | C20: 0's
B21: Number of poles maintained | C21: 0's
B22: Total expenditure | C22: $0's
B23: QUALITY OF SUPPLY
B24: Mean days to rectify/replace public lighting assets | C24: days
B25: GSO breaches | C25: 0's
B26: GSL payments | C26: $0's
B27: Customer complaints | C27: 0's
B31: 4.1.3 - COST METRICS
D32: =CONCATENATE("AVERAGE UNIT COST ($0's, real ",dms_DollarReal, ")") -> AVERAGE UNIT COST ($0's, real June 2024)
D33: =CRCP_y4 -> 2022-23 | E33: =CRCP_y5 -> 2023-24 | F33: =FRCP_y1 -> 2024-25 | G33: =FRCP_y2 -> 2025-26 | H33: =FRCP_y3 -> 2026-27 | I33: =FRCP_y4 -> 2027-28 | J33: =FRCP_y5 -> 2028-29
B34: LIGHT INSTALLATION
B95: LIGHT REPLACEMENT
B156: LIGHT MAINTENANCE

Sheet 5.4 MD & utilisation-Spatial
B1: =INDEX(dms_Worksheet_List,MATCH(dms_Model,dms_Model_List)) -> REGULATORY REPORTING STATEMENT
B2: =INDEX(dms_TradingNameFull_List,MATCH(dms_TradingName,dms_TradingName_List)) -> Evoenergy Distribution
B3: =CONCATENATE("REGULATORY PERIOD FROM ", FRCP_y1," TO ",dms_MultiYear_FinalYear_Result) -> REGULATORY PERIOD FROM 2024-25 TO 2028-29
B4: 5.4 MAXIMUM DEMAND AND UTILISATION AT SPATIAL LEVEL
B6: There are two tables on this worksheet. The tables have been sub-grouped for ease of navigation. See the Instructions sheet on how to group or ungroup tables.
B8: 5.4.1 - NON-COINCIDENT & COINCIDENT MAXIMUM DEMAND
B9: SUBTRANSMISSION SUBSTATION
F10: DEMAND
B11: SUBSTATION | C11: FORECASTING ELEMENTS | D11: UNIT | E11: MAX DEMAND | F11: =CRCP_y4 -> 2022-23 | G11: =CRCP_y5 -> 2023-24 | H11: =FRCP_y1 -> 2024-25 | I11: =FRCP_y2 -> 2025-26 | J11: =FRCP_y3 -> 2026-27 | K11: =FRCP_y4 -> 2027-28 | L11: =FRCP_y5 -> 2028-29
B12: Canberra | C12: Substation Rating | D12: MVA | E12: Non-Coincident | F12: 750 | G12: 750 | H12: 750 | I12: 750 | J12: 750 | K12: 750 | L12: 750
E13: Coincident | F13: 750 | G13: 750 | H13: 750 | I13: 750 | J13: 750 | K13: 750 | L13: 750
C14: Raw Adjusted MD | D14: MW | E14: Non-Coincident
E15: Coincident
C16: Raw Adjusted MD | D16: MVA | E16: Non-Coincident
E17: Coincident
C18: Date MD occurred | E18: Non-Coincident
E19: Coincident
C20: Half hour time period MD occurred | E20: Non-Coincident
E21: Coincident
C22: Winter/Summer Peaking | E22: Non-Coincident | F22: Winter | G22: Winter | H22: Winter | I22: Winter | J22: Winter | K22: Winter | L22: Winter
E23: Coincident | F23: Winter | G23: Winter | H23: Winter | I23: Winter | J23: Winter | K23: Winter | L23: Winter
C24: Adjustments - Embedded generation | D24: MW | E24: Non-Coincident
E25: Coincident
C26: Weather Corrected 10% POE | D26: MW | E26: Non-Coincident | F26: 562 | G26: 566 | H26: 570 | I26: 592 | J26: 601 | K26: 610 | L26: 620
E27: Coincident
C28: Weather Corrected MD 10% POE | D28: MVA | E28: Non-Coincident | F28: 562 | G28: 566 | H28: 570 | I28: 592 | J28: 601 | K28: 610 | L28: 620
E29: Coincident
C30: Weather Corrected MD 50% POE | D30: MW | E30: Non-Coincident | F30: 449 | G30: 453 | H30: 457 | I30: 479 | J30: 485 | K30: 492 | L30: 501
E31: Coincident
C32: Weather Corrected MD 50% POE | D32: MVA | E32: Non-Coincident | F32: 449 | G32: 453 | H32: 457 | I32: 479 | J32: 485 | K32: 492 | L32: 501
E33: Coincident
B34: Queanbeyan | C34: Substation Rating | D34: MVA | E34: Non-Coincident | F34: 82 | G34: 82 | H34: 82 | I34: 82 | J34: 82 | K34: 82 | L34: 82
E35: Coincident | F35: 82 | G35: 82 | H35: 82 | I35: 82 | J35: 82 | K35: 82 | L35: 82
C36: Raw Adjusted MD | D36: MW | E36: Non-Coincident
E37: Coincident
C38: Raw Adjusted MD | D38: MVA | E38: Non-Coincident
E39: Coincident
C40: Date MD occurred | E40: Non-Coincident
E41: Coincident
C42: Half hour time period MD occurred | E42: Non-Coincident
E43: Coincident
C44: Winter/Summer Peaking | E44: Non-Coincident | F44: Summer | G44: Summer | H44: Summer | I44: Summer | J44: Summer | K44: Summer | L44: Summer
E45: Coincident | F45: Winter | G45: Winter | H45: Winter | I45: Winter | J45: Winter | K45: Winter | L45: Winter
C46: Adjustments - Embedded generation | D46: MW | E46: Non-Coincident
E47: Coincident
C48: Weather Corrected 10% POE | D48: MW | E48: Non-Coincident | F48: 35 | G48: 35 | H48: 36 | I48: 0 | J48: 0 | K48: 0 | L48: 0
E49: Coincident
C50: Weather Corrected MD 10% POE | D50: MVA | E50: Non-Coincident | F50: 35 | G50: 35 | H50: 36 | I50: 0 | J50: 0 | K50: 0 | L50: 0
E51: Coincident
C52: Weather Corrected MD 50% POE | D52: MW | E52: Non-Coincident | F52: 29 | G52: 30 | H52: 30 | I52: 0 | J52: 0 | K52: 0 | L52: 0
E53: Coincident
C54: Weather Corrected MD 50% POE | D54: MVA | E54: Non-Coincident | F54: 29 | G54: 30 | H54: 30 | I54: 0 | J54: 0 | K54: 0 | L54: 0
E55: Coincident
B56: Williamsdale | C56: Substation Rating | D56: MVA | E56: Non-Coincident | F56: 444 | G56: 444 | H56: 444 | I56: 444 | J56: 444 | K56: 444 | L56: 444
E57: Coincident | F57: 444 | G57: 444 | H57: 444 | I57: 444 | J57: 444 | K57: 444 | L57: 444
C58: Raw Adjusted MD | D58: MW | E58: Non-Coincident
E59: Coincident
C60: Raw Adjusted MD | D60: MVA | E60: Non-Coincident
E61: Coincident
C62: Date MD occurred | E62: Non-Coincident
E63: Coincident
C64: Half hour time period MD occurred | E64: Non-Coincident
E65: Coincident
C66: Winter/Summer Peaking | E66: Non-Coincident | F66: Winter | G66: Winter | H66: Winter | I66: Winter | J66: Winter | K66: Winter | L66: Winter
E67: Coincident | F67: Winter | G67: Winter | H67: Winter | I67: Winter | J67: Winter | K67: Winter | L67: Winter
C68: Adjustments - Embedded generation | D68: MW | E68: Non-Coincident
E69: Coincident
C70: Weather Corrected 10% POE | D70: MW | E70: Non-Coincident | F70: 273 | G70: 278 | H70: 284 | I70: 299 | J70: 307 | K70: 314 | L70: 323
E71: Coincident
C72: Weather Corrected MD 10% POE | D72: MVA | E72: Non-Coincident | F72: 273 | G72: 278 | H72: 284 | I72: 299 | J72: 307 | K72: 314 | L72: 323
E73: Coincident
C74: Weather Corrected MD 50% POE | D74: MW | E74: Non-Coincident | F74: 216 | G74: 220 | H74: 224 | I74: 240 | J74: 247 | K74: 253 | L74: 261
E75: Coincident
C76: Weather Corrected MD 50% POE | D76: MVA | E76: Non-Coincident | F76: 216 | G76: 220 | H76: 224 | I76: 240 | J76: 247 | K76: 253 | L76: 261
E77: Coincident
B78: Stockdill | C78: Substation Rating | D78: MVA | E78: Non-Coincident | F78: 375 | G78: 375 | H78: 375 | I78: 375 | J78: 375 | K78: 375 | L78: 375
E79: Coincident | F79: 375 | G79: 375 | H79: 375 | I79: 375 | J79: 375 | K79: 375 | L79: 375
C80: Raw Adjusted MD | D80: MW | E80: Non-Coincident
E81: Coincident
C82: Raw Adjusted MD | D82: MVA | E82: Non-Coincident
E83: Coincident
C84: Date MD occurred | E84: Non-Coincident
E85: Coincident
C86: Half hour time period MD occurred | E86: Non-Coincident
E87: Coincident
C88: Winter/Summer Peaking | E88: Non-Coincident | F88: Winter | G88: Winter | H88: Winter | I88: Winter | J88: Winter | K88: Winter | L88: Winter
E89: Coincident | F89: Winter | G89: Winter | H89: Winter | I89: Winter | J89: Winter | K89: Winter | L89: Winter
C90: Adjustments - Embedded generation | D90: MW | E90: Non-Coincident
E91: Coincident
C92: Weather Corrected 10% POE | D92: MW | E92: Non-Coincident | F92: 275 | G92: 276 | H92: 278 | I92: 289 | J92: 294 | K92: 298 | L92: 303
E93: Coincident
C94: Weather Corrected MD 10% POE | D94: MVA | E94: Non-Coincident | F94: 275 | G94: 276 | H94: 278 | I94: 289 | J94: 294 | K94: 298 | L94: 303
E95: Coincident
C96: Weather Corrected MD 50% POE | D96: MW | E96: Non-Coincident | F96: 219 | G96: 221 | H96: 223 | I96: 234 | J96: 237 | K96: 240 | L96: 245
E97: Coincident
C98: Weather Corrected MD 50% POE | D98: MVA | E98: Non-Coincident | F98: 219 | G98: 221 | H98: 223 | I98: 234 | J98: 237 | K98: 240 | L98: 245
E99: Coincident
B100: <Enter substation name> | C100: Substation Rating | D100: MVA | E100: Non-Coincident
E101: Coincident
C102: Raw Adjusted MD | D102: MW | E102: Non-Coincident
E103: Coincident
C104: Raw Adjusted MD | D104: MVA | E104: Non-Coincident
E105: Coincident
C106: Date MD occurred | E106: Non-Coincident
E107: Coincident
C108: Half hour time period MD occurred | E108: Non-Coincident
E109: Coincident
C110: Winter/Summer Peaking | E110: Non-Coincident
E111: Coincident
C112: Adjustments - Embedded generation | D112: MW | E112: Non-Coincident
E113: Coincident
C114: Weather Corrected 10% POE | D114: MW | E114: Non-Coincident
E115: Coincident
C116: Weather Corrected MD 10% POE | D116: MVA | E116: Non-Coincident
E117: Coincident
C118: Weather Corrected MD 50% POE | D118: MW | E118: Non-Coincident
E119: Coincident
C120: Weather Corrected MD 50% POE | D120: MVA | E120: Non-Coincident
E121: Coincident
B122: <Enter substation name> | C122: Substation Rating | D122: MVA | E122: Non-Coincident
E123: Coincident
C124: Raw Adjusted MD | D124: MW | E124: Non-Coincident
E125: Coincident
C126: Raw Adjusted MD | D126: MVA | E126: Non-Coincident
E127: Coincident
C128: Date MD occurred | E128: Non-Coincident
E129: Coincident
C130: Half hour time period MD occurred | E130: Non-Coincident
E131: Coincident
C132: Winter/Summer Peaking | E132: Non-Coincident
E133: Coincident
C134: Adjustments - Embedded generation | D134: MW | E134: Non-Coincident
E135: Coincident
C136: Weather Corrected 10% POE | D136: MW | E136: Non-Coincident
E137: Coincident
C138: Weather Corrected MD 10% POE | D138: MVA | E138: Non-Coincident
E139: Coincident
C140: Weather Corrected MD 50% POE | D140: MW | E140: Non-Coincident
E141: Coincident
C142: Weather Corrected MD 50% POE | D142: MVA | E142: Non-Coincident
E143: Coincident
B144: <Enter substation name> | C144: Substation Rating | D144: MVA | E144: Non-Coincident
E145: Coincident
C146: Raw Adjusted MD | D146: MW | E146: Non-Coincident
E147: Coincident
C148: Raw Adjusted MD | D148: MVA | E148: Non-Coincident
E149: Coincident
C150: Date MD occurred | E150: Non-Coincident
E151: Coincident
C152: Half hour time period MD occurred | E152: Non-Coincident
E153: Coincident
C154: Winter/Summer Peaking | E154: Non-Coincident
E155: Coincident
C156: Adjustments - Embedded generation | D156: MW | E156: Non-Coincident
E157: Coincident
C158: Weather Corrected 10% POE | D158: MW | E158: Non-Coincident
E159: Coincident
C160: Weather Corrected MD 10% POE | D160: MVA | E160: Non-Coincident
E161: Coincident
C162: Weather Corrected MD 50% POE | D162: MW | E162: Non-Coincident
E163: Coincident
C164: Weather Corrected MD 50% POE | D164: MVA | E164: Non-Coincident
E165: Coincident
B166: <Enter substation name> | C166: Substation Rating | D166: MVA | E166: Non-Coincident
E167: Coincident
C168: Raw Adjusted MD | D168: MW | E168: Non-Coincident
E169: Coincident
C170: Raw Adjusted MD | D170: MVA | E170: Non-Coincident
E171: Coincident
C172: Date MD occurred | E172: Non-Coincident
E173: Coincident
C174: Half hour time period MD occurred | E174: Non-Coincident
E175: Coincident
C176: Winter/Summer Peaking | E176: Non-Coincident
E177: Coincident
C178: Adjustments - Embedded generation | D178: MW | E178: Non-Coincident
E179: Coincident
C180: Weather Corrected 10% POE | D180: MW | E180: Non-Coincident
E181: Coincident
C182: Weather Corrected MD 10% POE | D182: MVA | E182: Non-Coincident
E183: Coincident
C184: Weather Corrected MD 50% POE | D184: MW | E184: Non-Coincident
E185: Coincident
C186: Weather Corrected MD 50% POE | D186: MVA | E186: Non-Coincident
E187: Coincident
B188: <Enter substation name> | C188: Substation Rating | D188: MVA | E188: Non-Coincident
E189: Coincident
C190: Raw Adjusted MD | D190: MW | E190: Non-Coincident
E191: Coincident
C192: Raw Adjusted MD | D192: MVA | E192: Non-Coincident
E193: Coincident
C194: Date MD occurred | E194: Non-Coincident
E195: Coincident
C196: Half hour time period MD occurred | E196: Non-Coincident
E197: Coincident
C198: Winter/Summer Peaking | E198: Non-Coincident
E199: Coincident
C200: Adjustments - Embedded generation | D200: MW | E200: Non-Coincident
E201: Coincident
C202: Weather Corrected 10% POE | D202: MW | E202: Non-Coincident
... 11370 more rows

Sheet 6.2 Reliability & Cust serv
B1: =INDEX(dms_Worksheet_List,MATCH(dms_Model,dms_Model_List)) -> REGULATORY REPORTING STATEMENT
B2: =INDEX(dms_TradingNameFull_List,MATCH(dms_TradingName,dms_TradingName_List)) -> Evoenergy Distribution
B3: =CONCATENATE("REGULATORY PERIOD FROM ", FRCP_y1," TO ",dms_MultiYear_FinalYear_Result) -> REGULATORY PERIOD FROM 2024-25 TO 2028-29
B4: 6.2 RELIABILITY AND CUSTOMER SERVICE PERFORMANCE
B6: There are FIVE tables on this worksheet. Each table has been grouped for ease of navigation. See the Instructions sheet on how to group or ungroup tables.
B8: 6.2.1 - UNPLANNED MINUTES OFF SUPPLY (SAIDI)
E9: Proposed target
B10: SAIDI | E10: =FRCP_y1 -> 2024-25 | F10: =FRCP_y2 -> 2025-26 | G10: =FRCP_y3 -> 2026-27 | H10: =FRCP_y4 -> 2027-28 | I10: =FRCP_y5 -> 2028-29
B11: Total sustained minutes off supply after removing excluded events
B12: =INDEX(dms_FeederName_1,MATCH(dms_TradingName,dms_TradingName_List)) -> CBD | E12: 0 | F12: 0 | G12: 0 | H12: 0 | I12: 0
B13: =INDEX(dms_FeederName_2,MATCH(dms_TradingName,dms_TradingName_List)) -> Urban | E13: 34.494 | F13: 34.494 | G13: 34.494 | H13: 34.494 | I13: 34.494
B14: =INDEX(dms_FeederName_3,MATCH(dms_TradingName,dms_TradingName_List)) -> Short rural | E14: 46.638 | F14: 46.638 | G14: 46.638 | H14: 46.638 | I14: 46.638
B15: =INDEX(dms_FeederName_4,MATCH(dms_TradingName,dms_TradingName_List)) -> Long rural | E15: 0 | F15: 0 | G15: 0 | H15: 0 | I15: 0
B16: =IF(ISBLANK(INDEX(dms_FeederName_5,MATCH(dms_TradingName,dms_TradingName_List))),"",INDEX(dms_FeederName_5,MATCH(dms_TradingName,dms_TradingName_List))) -> 
B17: Total | E17: =SUM(E12:E16) -> 81.132 | F17: =SUM(F12:F16) -> 81.132 | G17: =SUM(G12:G16) -> 81.132 | H17: =SUM(H12:H16) -> 81.132 | I17: =SUM(I12:I16) -> 81.132
B20: 6.2.2 - UNPLANNED INTERRUPTIONS TO SUPPLY (SAIFI)
E21: Proposed target
B22: SAIFI | E22: =FRCP_y1 -> 2024-25 | F22: =FRCP_y2 -> 2025-26 | G22: =FRCP_y3 -> 2026-27 | H22: =FRCP_y4 -> 2027-28 | I22: =FRCP_y5 -> 2028-29
B23: Total sustained interruptions after removing excluded events
B24: =INDEX(dms_FeederName_1,MATCH(dms_TradingName,dms_TradingName_List)) -> CBD | E24: 0 | F24: 0 | G24: 0 | H24: 0 | I24: 0
B25: =INDEX(dms_FeederName_2,MATCH(dms_TradingName,dms_TradingName_List)) -> Urban | E25: 0.55 | F25: 0.55 | G25: 0.55 | H25: 0.55 | I25: 0.55
B26: =INDEX(dms_FeederName_3,MATCH(dms_TradingName,dms_TradingName_List)) -> Short rural | E26: 0.687 | F26: 0.687 | G26: 0.687 | H26: 0.687 | I26: 0.687
B27: =INDEX(dms_FeederName_4,MATCH(dms_TradingName,dms_TradingName_List)) -> Long rural | E27: 0 | F27: 0 | G27: 0 | H27: 0 | I27: 0
B28: =IF(ISBLANK(INDEX(dms_FeederName_5,MATCH(dms_TradingName,dms_TradingName_List))),"",INDEX(dms_FeederName_5,MATCH(dms_TradingName,dms_TradingName_List))) -> 
B29: Total | E29: =SUM(E24:E28) -> 1.237 | F29: =SUM(F24:F28) -> 1.237 | G29: =SUM(G24:G28) -> 1.237 | H29: =SUM(H24:H28) -> 1.237 | I29: =SUM(I24:I28) -> 1.237
B32: 6.2.3 - UNPLANNED MOMENTARY INTERRUPTIONS TO SUPPLY (MAIFI)
E33: Proposed target
B34: MAIFI | E34: =FRCP_y1 -> 2024-25 | F34: =FRCP_y2 -> 2025-26 | G34: =FRCP_y3 -> 2026-27 | H34: =FRCP_y4 -> 2027-28 | I34: =FRCP_y5 -> 2028-29
B35: Total momentary interruptions after removing excluded events
B36: =INDEX(dms_FeederName_1,MATCH(dms_TradingName,dms_TradingName_List)) -> CBD
B37: =INDEX(dms_FeederName_2,MATCH(dms_TradingName,dms_TradingName_List)) -> Urban
B38: =INDEX(dms_FeederName_3,MATCH(dms_TradingName,dms_TradingName_List)) -> Short rural
B39: =INDEX(dms_FeederName_4,MATCH(dms_TradingName,dms_TradingName_List)) -> Long rural
B40: =IF(ISBLANK(INDEX(dms_FeederName_5,MATCH(dms_TradingName,dms_TradingName_List))),"",INDEX(dms_FeederName_5,MATCH(dms_TradingName,dms_TradingName_List))) -> 
B41: Total | E41: =SUM(E36:E40) -> 0 | F41: =SUM(F36:F40) -> 0 | G41: =SUM(G36:G40) -> 0 | H41: =SUM(H36:H40) -> 0 | I41: =SUM(I36:I40) -> 0
B44: 6.2.3(B) - UNPLANNED MOMENTARY INTERRUPTIONS TO SUPPLY (MAIFIe)
E45: Proposed target
B46: MAIFIe | E46: =FRCP_y1 -> 2024-25 | F46: =FRCP_y2 -> 2025-26 | G46: =FRCP_y3 -> 2026-27 | H46: =FRCP_y4 -> 2027-28 | I46: =FRCP_y5 -> 2028-29
B47: Total momentary interruptions after removing excluded events
B48: =INDEX(dms_FeederName_1,MATCH(dms_TradingName,dms_TradingName_List)) -> CBD
B49: =INDEX(dms_FeederName_2,MATCH(dms_TradingName,dms_TradingName_List)) -> Urban
B50: =INDEX(dms_FeederName_3,MATCH(dms_TradingName,dms_TradingName_List)) -> Short rural
B51: =INDEX(dms_FeederName_4,MATCH(dms_TradingName,dms_TradingName_List)) -> Long rural
B52: =IF(ISBLANK(INDEX(dms_FeederName_5,MATCH(dms_TradingName,dms_TradingName_List))),"",INDEX(dms_FeederName_5,MATCH(dms_TradingName,dms_TradingName_List))) -> 
B53: Total | E53: =SUM(E48:E52) -> 0 | F53: =SUM(F48:F52) -> 0 | G53: =SUM(G48:G52) -> 0 | H53: =SUM(H48:H52) -> 0 | I53: =SUM(I48:I52) -> 0
B56: The number of distribution customers is calculated as the average of the number of customers at the beginning of the reporting period and the number of customers at the end of the reporting period.
B58: 6.2.4 - DISTRIBUTION CUSTOMER NUMBERS
C59: Forecast
B60: Average customer numbers | C60: =CRCP_y4 -> 2022-23 | D60: =CRCP_y5 -> 2023-24 | E60: =FRCP_y1 -> 2024-25 | F60: =FRCP_y2 -> 2025-26 | G60: =FRCP_y3 -> 2026-27 | H60: =FRCP_y4 -> 2027-28 | I60: =FRCP_y5 -> 2028-29
B61: =INDEX(dms_FeederName_1,MATCH(dms_TradingName,dms_TradingName_List)) -> CBD | C61: 0 | D61: 0 | E61: 0 | F61: 0 | G61: 0 | H61: 0 | I61: 0
B62: =INDEX(dms_FeederName_2,MATCH(dms_TradingName,dms_TradingName_List)) -> Urban | C62: 156748 | D62: 158028 | E62: 159754 | F62: 161789 | G62: 163808 | H62: 165802 | I62: 167778
B63: =INDEX(dms_FeederName_3,MATCH(dms_TradingName,dms_TradingName_List)) -> Short rural | C63: 51298 | D63: 51718 | E63: 52282 | F63: 52949 | G63: 53609 | H63: 54262 | I63: 54909
B64: =INDEX(dms_FeederName_4,MATCH(dms_TradingName,dms_TradingName_List)) -> Long rural | C64: 0 | D64: 0 | E64: 0 | F64: 0 | G64: 0 | H64: 0 | I64: 0
B65: =IF(ISBLANK(INDEX(dms_FeederName_5,MATCH(dms_TradingName,dms_TradingName_List))),"",INDEX(dms_FeederName_5,MATCH(dms_TradingName,dms_TradingName_List))) -> 
B66: Total | C66: =SUM(C61:C65) -> 208046 | D66: 209746 | E66: 212036 | F66: 214738 | G66: 217417 | H66: 220064 | I66: 222687
B68: The AER's definition of calls answered within 30 seconds is as follows: Calls to the fault line answered in 30 seconds where the time to answer a call is measured from when the call enters the telephone system of the call centre (including that time when it may be ringing unanswered by any response) and the caller speaks with a human operator, but excluding the time that the caller is connected to an automated interactive service that provides substantive information. This measure does not apply to: - calls to payment lines and automated interactive services; - calls abandoned by the customer within 30 seconds of the call being queued for response by a human operator. Where the time in which a telephone call is abandoned is not measured, then an estimate of the number of calls abandoned within 30 seconds will be determined by taking 20 per cent of all calls abandoned. Note: Being placed in a queuing system (automated or otherwise) does not constitute a response. 'Calls answered within 30 seconds' and 'Calls received' should be calculated excluding calls abandoned within 30 seconds of being queued for a human operator; and calls to payment lines and automated interactive services.
B70: 6.2.5 - CUSTOMER SERVICE
E71: Proposed target
E72: =FRCP_y1 -> 2024-25 | F72: =FRCP_y2 -> 2025-26 | G72: =FRCP_y3 -> 2026-27 | H72: =FRCP_y4 -> 2027-28 | I72: =FRCP_y5 -> 2028-29
B73: Number of calls received | E73: 19917 | F73: 20726 | G73: 21585 | H73: 22498 | I73: 23472
B74: Number of calls answered within 30 seconds | E74: 15571 | F74: 16380 | G74: 17239 | H74: 18152 | I74: 19126
B75: Percentage of calls answered within 30 seconds | E75: =IFERROR((E74/E73),"") -> 0.781794447 | F75: =IFERROR((F74/F73),"") -> 0.7903116858 | G75: =IFERROR((G74/G73),"") -> 0.7986564744 | H75: =IFERROR((H74/H73),"") -> 0.8068272735 | I75: =IFERROR((I74/I73),"") -> 0.8148432175

Sheet 7.1 Policies and Procedures
B1: =INDEX(dms_Worksheet_List,MATCH(dms_Model,dms_Model_List)) -> REGULATORY REPORTING STATEMENT
B2: =INDEX(dms_TradingNameFull_List,MATCH(dms_TradingName,dms_TradingName_List)) -> Evoenergy Distribution
B3: =CONCATENATE("REGULATORY PERIOD FROM ", FRCP_y1," TO ",dms_MultiYear_FinalYear_Result) -> REGULATORY PERIOD FROM 2024-25 TO 2028-29
B4: 7.1 PLANS, POLICIES, PROCEDURES AND STRATEGIES
B6: 7.1.1 - PLANS, POLICIES, PROCEDURES AND STRATEGIES
C7: Brief description | D7: Relevance to regulatory proposal | E7: Expenditure impact
C8: Description of the plan, policy, procedure or strategy. | D8: Identify the element of the proposal/supporting documents that the policy, plan, procedure or strategy is relevant to e.g. replacement capex, capacity utilisation thresholds, opex | E8: Is this policy, plan or procedure identified in the response to section 4 'Step Changes' of the notice (yes or no)?
B9: Corporate
B10: Financial Governance
B13: Governance framework
B14: Risk Management Policy (PO04)
B15: Health and Safety Strategy 2023-25
B31: Accounting policies, procedures and methodologies (including a capitalisation policy, depreciation policy and an approved expenditure allocation methodology)
B32: Cost Allocation Methodology
B33: Evoenergy Distribution Network Expenditure Forecasting Methodology 2024-29
B35: Asset management plan or equivalent documentation
B36: Asset Management Policies
B37: <insert relevant policy, plan, strategy etc>
B39: Asset Management Strategies
B40: <insert relevant policy, plan, strategy etc>
B44: Asset Management Plans
B45: <insert relevant policy, plan, strategy etc>
B64: Asset Management Policy
B68: Strategic Asset Management Plan (SAMP)
B69: DER Integration Strategy
B70: Quality of Supply Strategy
B71: Network Reliability Strategy
B72: Internal standards for network planning, design, maintenance and operation
B73: <insert relevant policy, plan, strategy etc>
B74: Distribution Annual Planning Report
B75: Asset Portfolio Strategy - Ground Assets
B76: Asset Portfolio Strategy - Overhead Assets
B77: Asset Portfolio Strategy - Secondary System Assets
B78: Asset Portfolio Strategy - Zone Substation Assets
B79: Vegetation Management Portfolio Strategy
B136: Distribution Network Augmentation Standard
B152: Procurement and contracting out policies
B153: <insert relevant policy, plan, strategy etc>
B155: Information technology policies or strategies
B156: <insert relevant policy, plan, strategy etc>
B192: Demand management policies or strategies
B193: <insert relevant policy, plan, strategy etc>
B196: Self insurance guidelines or policy
B197: <insert relevant policy, plan, strategy etc>
B199: Land and easement acquisition polices
B200: <insert relevant policy, plan, strategy etc>
B204: Asset security plans and policies
B205: <insert relevant policy, plan, strategy etc>
B215: Disaster recovery policy
B216: Procurement and Contract Management Policy

Sheet 7.2 Contingent projects
B1: =INDEX(dms_Worksheet_List,MATCH(dms_Model,dms_Model_List)) -> REGULATORY REPORTING STATEMENT
B2: =INDEX(dms_TradingNameFull_List,MATCH(dms_TradingName,dms_TradingName_List)) -> Evoenergy Distribution
B3: =CONCATENATE("REGULATORY PERIOD FROM ", FRCP_y1," TO ",dms_MultiYear_FinalYear_Result) -> REGULATORY PERIOD FROM 2024-25 TO 2028-29
B4: 7.2 CONTINGENT PROJECTS
B6: 7.2.1 - PROPOSED CONTINGENT PROJECTS FOR THE FORTHCOMING REGULATORY CONTROL PERIOD
B7: Proposed contingent project name | C7: Proposed contingent capital expenditure ($0's, nominal) | D7: Proposed trigger events | E7: =CONCATENATE("Proposed annual revenue requirement for ", FRCP_y1, " ($0's, nominal)") -> Proposed annual revenue requirement for 2024-25 ($0's, nominal) | F7: =CONCATENATE("5% of the annual revenue requirement for ",FRCP_y1,"") -> 5% of the annual revenue requirement for 2024-25
B8: Accelerated net zero energy transition project | C8: 171440000 | D8: (i) Accelerated EV take-up above Evoenergy's demand forecast, (ii) Higher recorded or forecast peak demand at zone substations, (iii) Successful completion of a RIT-D for required augmentation expenditure. | E8: 204060366 | F8: =+E8*0.05 -> 10203018.3
E9: =+$E$8 -> 204060366 | F9: 10203018.3
E10: 204060366 | F10: 10203018.3
E11: 204060366 | F11: 10203018.3
E12: 204060366 | F12: 10203018.3
E13: 204060366 | F13: 10203018.3
E14: 204060366 | F14: 10203018.3
E15: 204060366 | F15: 10203018.3
E16: 204060366 | F16: 10203018.3
E17: 204060366 | F17: 10203018.3
E18: 204060366 | F18: 10203018.3
E19: 204060366 | F19: 10203018.3
E20: 204060366 | F20: 10203018.3
E21: 204060366 | F21: 10203018.3
E22: 204060366 | F22: 10203018.3
E23: 204060366 | F23: 10203018.3
E24: 204060366 | F24: 10203018.3
E25: 204060366 | F25: 10203018.3
E26: 204060366 | F26: 10203018.3
E27: 204060366 | F27: 10203018.3
E28: 204060366 | F28: 10203018.3
E29: 204060366 | F29: 10203018.3
E30: 204060366 | F30: 10203018.3
E31: 204060366 | F31: 10203018.3
E32: 204060366 | F32: 10203018.3
E33: 204060366 | F33: 10203018.3
E34: 204060366 | F34: 10203018.3
E35: 204060366 | F35: 10203018.3
E36: 204060366 | F36: 10203018.3
E37: 204060366 | F37: 10203018.3
E38: 204060366 | F38: 10203018.3
E39: 204060366 | F39: 10203018.3
E40: 204060366 | F40: 10203018.3
E41: 204060366 | F41: 10203018.3
E42: 204060366 | F42: 10203018.3
E43: 204060366 | F43: 10203018.3
E44: 204060366 | F44: 10203018.3
E45: 204060366 | F45: 10203018.3

Sheet 7.3 Obligations
B1: =INDEX(dms_Worksheet_List,MATCH(dms_Model,dms_Model_List)) -> REGULATORY REPORTING STATEMENT
B2: =INDEX(dms_TradingNameFull_List,MATCH(dms_TradingName,dms_TradingName_List)) -> Evoenergy Distribution
B3: =CONCATENATE("REGULATORY PERIOD FROM ", FRCP_y1," TO ",dms_MultiYear_FinalYear_Result) -> REGULATORY PERIOD FROM 2024-25 TO 2028-29
B4: 7.3 OBLIGATIONS, REQUIREMENTS & STANDARDS
B6: 7.3.1 - OBLIGATIONS OR REQUIREMENTS
C7: Brief description | D7: Relevance to regulatory proposal | E7: Expenditure impact
C8: Description of relevant obligations or requirements within the instrument (e.g. safety obligations, reliability targets) | D8: Identify what element of the proposal/supporting documents the obligation or requirement is relevant to e.g. replacement capex, capacity utilisation thresholds, opex | E8: Is the obligation or requirement identified in the response to section 4 'Step Changes' of the notice (yes or no)?
B9: LEGISLATION
B10: Urban Forest Act 2022 | C10: Regulation of all trees on public land. | E10: No
B11: Utilities Act 2000 | C11: Safe, reliable, efficient and high-quality provision of services by a Utility. | E11: No
B12: Critical Infrastructure Protection Act 2022 | C12: Risk management, preparedness, prevention and resilience, business as usual for the owners and operators of critical infrastructure assets and to improve information exchange between industry and government to build a more comprehensive understanding of th | E12: Yes
B13: Note: | C13: Evoenergy must comply with Commonwealth and jurisdictional obligations that impact all parts and all processes of the business. The instruments that these obligations are derived from are too numerous to list in this RIN template. Evoenergy can provide det
B221: LICENCES
B222: Utilities Service Licence | C222: Under the terms of the Utility Services Licence, a utility operating in the ACT must comply with all applicable laws, codes of practice, guidelines or directions, and inform the ICRC of any material breaches of the licence or any applicable laws, codes of | E222: No
B226: RULES
B227: National Electricity Rules | C227: The National Electricity Rules set out the detailed obligations of market participants. Key classes of obligations relate to system security, connection and planning, preparing a regulatory proposal and metering. | E227: No
B228: National Energy Retail Rules | C228: The National Energy Retail Rules are primarily focused on the sale and supply of energy to small retail customers, and provide the detailed content of the consumer protection measures and model contracts that govern the relationships between consumers, ret | E228: No
B231: ORDERS
B235: CODES
B236: Consumer Protection Code | C236: The Consumer Protection Code applies to both retail and distribution businesses, and contains both common and specific obligations. The Consumer Protection Code governs many aspects of ActewAGL Distributionâs relationship with its customers, including the | E236: No
B237: Contestable Work Accreditation Code | C237: The purposes of this Code is to require each Utility to prepare an Accreditation Scheme or adopt an Approved Accreditation Scheme; and set out those matters that must be included in an Approved Accreditation Scheme. | E237: No
B238: Electricity Distribution (Supply Standards) Code | C238: The Electricity Distribution (Supply Standards) Code sets out the technical parameters for the network as well as procedures for dealing with customer concerns over interference. | E238: No
B239: Electricity Service and Installation Rules Code | C239: This code requires electricity distributors to develop service and installation rules that set out the requirements and associated obligations and procedures for the safe, reliable and efficient connection of electrical installations to an electricity netw | E239: No
B240: Management of Electricity Network Assets Code | C240: This code requires electricity distributors to design, construct, operate and maintain their electricity networks with reasonable care to avoid injury to any person or property. | E240: No
B241: Electricity Powerline Vegetation Management Code | C241: This Code sets out technical requirements for a electrical utility in managing the clearance of vegetation near powerlines. | E241: No
B242: Electricity Transmission Supply Code | C242: This Code requires holders of electricity transmission licenses to: design, construct, operate and maintain their electricity networks to supply customers within the ACT. Meet the demand and protect the reliability and integrity of their network. Ensure th | E242: No
B243: Emergency Planning Code | C243: The purpose of this code is to ensure a utility has in place appropriate procedures, structures and arrangements for preventing, anticipating and responding to emergency events and potential emergency events. Utilities must develop, maintain and implement | E243: No
B251: GUIDELINES
B290: DEFAULT AGREEMENTS
B294: OTHER

Sheet 7.4 Shared Assets
B1: =INDEX(dms_Worksheet_List,MATCH(dms_Model,dms_Model_List)) -> REGULATORY REPORTING STATEMENT
B2: =INDEX(dms_TradingNameFull_List,MATCH(dms_TradingName,dms_TradingName_List)) -> Evoenergy Distribution
B3: =CONCATENATE("REGULATORY PERIOD FROM ", FRCP_y1," TO ",dms_MultiYear_FinalYear_Result) -> REGULATORY PERIOD FROM 2024-25 TO 2028-29
B4: 7.4 SHARED ASSETS
B6: 7.4.1 - TOTAL UNREGULATED REVENUE EARNED WITH SHARED ASSETS
B7: Name of shared asset unregulated service | C7: Description of shared assets used to provide the service | D7: =CONCATENATE("Shared asset unregulated revenue ($0's, real ", dms_DollarReal,")") -> Shared asset unregulated revenue ($0's, real June 2024)
D8: =CRCP_y4 -> 2022-23 | E8: =CRCP_y5 -> 2023-24 | F8: =FRCP_y1 -> 2024-25 | G8: =FRCP_y2 -> 2025-26 | H8: =FRCP_y3 -> 2026-27 | I8: =FRCP_y4 -> 2027-28 | J8: =FRCP_y5 -> 2028-29 | K8: =CONCATENATE("Total ",FRCP_y1," to ", FRCP_y5) -> Total 2024-25 to 2028-29
B9: NBN Facilities Access | C9: NBN Co Limited (NBN Co) requires an access right to Evoenergyâs electricity infrastructure for the purposes of deploying the National Broadband Network (NBN) in the ACT | D9: 835242.24 | E9: 835242.24 | F9: 835242.24 | G9: 835242.24 | H9: 835242.24 | I9: 835242.24 | J9: 835242.24 | K9: =SUM(F9:J9) -> 4176211.2
K10: 0
K11: 0
K12: 0
K13: 0
K14: 0
K15: 0
K16: 0
K17: 0
K18: 0
K19: 0
K20: 0
K21: 0
K22: 0
K23: 0
B25: 7.4.2 - SHARED ASSET UNREGULATED SERVICES - APPORTIONMENT METHODOLOGY
B26: Name of shared asset unregulated service for which revenues were apportioned | C26: Apportionment methodology
B27: NBN Facilities Access | C27: Evoenergy's unregulated revenue is forecast based on actuals indexed by CPI and is consistent with our contract with a third party. The shared asset cost reduction based on unregulated revenue does not meet the materiality threshold as outlined in the Shar

Sheet 7.7 TSS-LRMC
B1: =INDEX(dms_Worksheet_List,MATCH(dms_Model,dms_Model_List)) -> REGULATORY REPORTING STATEMENT
B2: =INDEX(dms_TradingNameFull_List,MATCH(dms_TradingName,dms_TradingName_List)) -> Evoenergy Distribution
B3: =CONCATENATE("REGULATORY PERIOD FROM ", FRCP_y1," TO ",dms_MultiYear_FinalYear_Result) -> REGULATORY PERIOD FROM 2024-25 TO 2028-29
B4: 7.7 - TARIFF STRUCTURE STATEMENT - INPUTS TO LRMC CALCULATION
D6: ="Is "&dms_TradingName&" using the 'Average Incremental Cost' approach?" -> Is Evoenergy Distribution using the 'Average Incremental Cost' approach?
F7: YES
B9: 7.7.1 - INPUTS TO LRMC CALCULATION - STANDARD CONTROL SERVICES - CAPEX
B10: 7.7.1.1 - SERIES A
C11: =CONCATENATE("Forecast ($0's, real ", dms_DollarReal) -> Forecast ($0's, real June 2024
C12: =CRCP_y4 -> 2022-23 | D12: =IF(dms_RPT="financial",(VALUE(LEFT(C12,4)+1)&"-"&MID(C12,3,2)+2),VALUE(LEFT(C12,4)+1)) -> 2023-24 | E12: 2024-25 | F12: 2025-26 | G12: 2026-27 | H12: 2027-28 | I12: 2028-29 | J12: 2029-30 | K12: 2030-31 | L12: 2031-32 | M12: 2032-33 | N12: 2033-34 | O12: 2034-35 | P12: 2035-36 | Q12: 2036-37 | R12: 2037-38 | S12: 2038-39 | T12: 2039-40 | U12: 2040-41 | V12: 2041-42
B13: Replacement expenditure
B14: Connections | E14: 13227393 | F14: 12507804 | G14: 13134642 | H14: 12971050 | I14: 14648004 | J14: 14648004 | K14: 11733795 | L14: 11733795 | M14: 11733795 | N14: 11733795
B15: Augmentation Expenditure | E15: 18514918 | F15: 20464011 | G15: 23189850 | H15: 24215344 | I15: 23041588 | J15: 20868682 | K15: 19593627 | L15: 23209651 | M15: 25659849 | N15: 25659849
B16: Non-network
B17: Export services | E17: 5336537 | F17: 66944 | G17: 0 | H17: 0 | I17: 66944 | J17: 0 | K17: 0 | L17: 0 | M17: 0 | N17: 0
B18: Capitalised network overheads
B19: Capitalised corporate overheads
B20: Total capex | C20: =SUM(C13:C19) -> 0 | D20: 0 | E20: 37078848 | F20: 33038759 | G20: 36324492 | H20: 37186394 | I20: 37756536 | J20: 35516686 | K20: 31327422 | L20: 34943446 | M20: 37393644 | N20: 37393644 | O20: 0 | P20: 0 | Q20: 0 | R20: 0 | S20: 0 | T20: 0 | U20: 0 | V20: 0
B22: 7.7.1.2 - SERIES B
C23: =CONCATENATE("Forecast ($0's, real ", dms_DollarReal) -> Forecast ($0's, real June 2024
C24: =CRCP_y4 -> 2022-23 | D24: =IF(dms_RPT="financial",(VALUE(LEFT(C24,4)+1)&"-"&MID(C24,3,2)+2),VALUE(LEFT(C24,4)+1)) -> 2023-24 | E24: 2024-25 | F24: 2025-26 | G24: 2026-27 | H24: 2027-28 | I24: 2028-29 | J24: 2029-30 | K24: 2030-31 | L24: 2031-32 | M24: 2032-33 | N24: 2033-34 | O24: 2034-35 | P24: 2035-36 | Q24: 2036-37 | R24: 2037-38 | S24: 2038-39 | T24: 2039-40 | U24: 2040-41 | V24: 2041-42
B25: Replacement expenditure
B26: Connections | E26: 3854464 | F26: 3751364 | G26: 3709196 | H26: 3687267 | I26: 3595000 | J26: 3595000 | K26: 3369369 | L26: 3369369 | M26: 3369369 | N26: 3369369
B27: Augmentation Expenditure | E27: 8041135 | F27: 6615035 | G27: 13126980 | H27: 18704856 | I27: 16429736 | J27: 24249524 | K27: 29444832 | L27: 25992233 | M27: 21841900 | N27: 21841900
B28: Non-network
B29: Export services
B30: Capitalised network overheads
B31: Capitalised corporate overheads
B32: Total capex | C32: =SUM(C25:C31) -> 0 | D32: 0 | E32: 11895599 | F32: 10366399 | G32: 16836176 | H32: 22392123 | I32: 20024736 | J32: 27844524 | K32: 32814201 | L32: 29361602 | M32: 25211269 | N32: 25211269 | O32: 0 | P32: 0 | Q32: 0 | R32: 0 | S32: 0 | T32: 0 | U32: 0 | V32: 0
B34: 7.7.1.3 - SERIES C
C35: =CONCATENATE("Forecast ($0's, real ", dms_DollarReal) -> Forecast ($0's, real June 2024
C36: =CRCP_y4 -> 2022-23 | D36: =IF(dms_RPT="financial",(VALUE(LEFT(C36,4)+1)&"-"&MID(C36,3,2)+2),VALUE(LEFT(C36,4)+1)) -> 2023-24 | E36: 2024-25 | F36: 2025-26 | G36: 2026-27 | H36: 2027-28 | I36: 2028-29 | J36: 2029-30 | K36: 2030-31 | L36: 2031-32 | M36: 2032-33 | N36: 2033-34 | O36: 2034-35 | P36: 2035-36 | Q36: 2036-37 | R36: 2037-38 | S36: 2038-39 | T36: 2039-40 | U36: 2040-41 | V36: 2041-42
B37: Replacement expenditure
B38: Connections | E38: 0 | F38: 0 | G38: 0 | H38: 0 | I38: 0 | J38: 0 | K38: 0 | L38: 0 | M38: 0 | N38: 0
B39: Augmentation Expenditure | E39: 1885771 | F39: 1436505 | G39: 3282331 | H39: 5285535 | I39: 4578220 | J39: 7022919 | K39: 8601124 | L39: 7187393 | M39: 6071526 | N39: 6071526
B40: Non-network
B41: Capitalised network overheads
B42: Capitalised corporate overheads
B43: Total capex | C43: =SUM(C36:C42) -> 0 | D43: 0 | E43: 1885771 | F43: 1436505 | G43: 3282331 | H43: 5285535 | I43: 4578220 | J43: 7022919 | K43: 8601124 | L43: 7187393 | M43: 6071526 | N43: 6071526 | O43: 0 | P43: 0 | Q43: 0 | R43: 0 | S43: 0 | T43: 0 | U43: 0 | V43: 0
B47: 7.7.2 - INPUTS TO LRMC CALCULATION - STANDARD CONTROL SERVICES - OPEX
B48: 7.7.2.1 - SERIES A
C49: =CONCATENATE("Forecast ($0's, real ", dms_DollarReal) -> Forecast ($0's, real June 2024
C50: =CRCP_y4 -> 2022-23 | D50: =IF(dms_RPT="financial",(VALUE(LEFT(C50,4)+1)&"-"&MID(C50,3,2)+2),VALUE(LEFT(C50,4)+1)) -> 2023-24 | E50: 2024-25 | F50: 2025-26 | G50: 2026-27 | H50: 2027-28 | I50: 2028-29 | J50: 2029-30 | K50: 2030-31 | L50: 2031-32 | M50: 2032-33 | N50: 2033-34 | O50: 2034-35 | P50: 2035-36 | Q50: 2036-37 | R50: 2037-38 | S50: 2038-39 | T50: 2039-40 | U50: 2040-41 | V50: 2041-42
B51: Import services opex | E51: 634846 | F51: 659436 | G51: 726490 | H51: 743728 | I51: 753792 | J51: 710334 | K51: 626548 | L51: 698869 | M51: 747873 | N51: 747873
B52: Export services opex | E52: 2626790 | F52: 2211402 | G52: 2196013 | H52: 2233502 | I52: 2339647 | J52: 2255160 | K52: 2258414 | L52: 2261229 | M52: 2264413 | N52: 2267597
B66: Total opex | C66: =SUM(C51:C65) -> 0 | D66: 0 | E66: 3261636 | F66: 2870838 | G66: 2922503 | H66: 2977230 | I66: 3093439 | J66: 2965494 | K66: 2884962 | L66: 2960098 | M66: 3012286 | N66: 3015470 | O66: 0 | P66: 0 | Q66: 0 | R66: 0 | S66: 0 | T66: 0 | U66: 0 | V66: 0
B68: 7.7.2.2- SERIES B
C69: =CONCATENATE("Forecast ($0's, real ", dms_DollarReal) -> Forecast ($0's, real June 2024
C70: =CRCP_y4 -> 2022-23 | D70: =IF(dms_RPT="financial",(VALUE(LEFT(C70,4)+1)&"-"&MID(C70,3,2)+2),VALUE(LEFT(C70,4)+1)) -> 2023-24 | E70: 2024-25 | F70: 2025-26 | G70: 2026-27 | H70: 2027-28 | I70: 2028-29 | J70: 2029-30 | K70: 2030-31 | L70: 2031-32 | M70: 2032-33 | N70: 2033-34 | O70: 2034-35 | P70: 2035-36 | Q70: 2036-37 | R70: 2037-38 | S70: 2038-39 | T70: 2039-40 | U70: 2040-41 | V70: 2041-42
B71: Import services opex | E71: 237912 | F71: 207328 | G71: 336724 | H71: 447842 | I71: 400495 | J71: 556890 | K71: 656284 | L71: 587232 | M71: 504225 | N71: 504225
B86: Total opex | C86: =SUM(C71:C85) -> 0 | D86: 0 | E86: 237912 | F86: 207328 | G86: 336724 | H86: 447842 | I86: 400495 | J86: 556890 | K86: 656284 | L86: 587232 | M86: 504225 | N86: 504225 | O86: 0 | P86: 0 | Q86: 0 | R86: 0 | S86: 0 | T86: 0 | U86: 0 | V86: 0
B88: 7.7.2.3 - SERIES C
C89: =CONCATENATE("Forecast ($0's, real ", dms_DollarReal) -> Forecast ($0's, real June 2024
C90: =CRCP_y4 -> 2022-23 | D90: =IF(dms_RPT="financial",(VALUE(LEFT(C90,4)+1)&"-"&MID(C90,3,2)+2),VALUE(LEFT(C90,4)+1)) -> 2023-24 | E90: 2024-25 | F90: 2025-26 | G90: 2026-27 | H90: 2027-28 | I90: 2028-29 | J90: 2029-30 | K90: 2030-31 | L90: 2031-32 | M90: 2032-33 | N90: 2033-34 | O90: 2034-35 | P90: 2035-36 | Q90: 2036-37 | R90: 2037-38 | S90: 2038-39 | T90: 2039-40 | U90: 2040-41 | V90: 2041-42
B91: Import services opex | E91: 37715 | F91: 28730 | G91: 65647 | H91: 105711 | I91: 91564 | J91: 140458 | K91: 172022 | L91: 143748 | M91: 121431 | N91: 121431
B106: Total opex | C106: =SUM(C91:C105) -> 0 | D106: 0 | E106: 37715 | F106: 28730 | G106: 65647 | H106: 105711 | I106: 91564 | J106: 140458 | K106: 172022 | L106: 143748 | M106: 121431 | N106: 121431 | O106: 0 | P106: 0 | Q106: 0 | R106: 0 | S106: 0 | T106: 0 | U106: 0 | V106: 0
B110: 7.7.3 - INPUTS TO LRMC CALCULATION - DEMAND
B111: 7.7.3.1 - SERIES A
C112: =CONCATENATE("Forecast ($0's, real ", dms_DollarReal) -> Forecast ($0's, real June 2024
C113: =CRCP_y4 -> 2022-23 | D113: =IF(dms_RPT="financial",(VALUE(LEFT(C113,4)+1)&"-"&MID(C113,3,2)+2),VALUE(LEFT(C113,4)+1)) -> 2023-24 | E113: 2024-25 | F113: 2025-26 | G113: 2026-27 | H113: 2027-28 | I113: 2028-29 | J113: 2029-30 | K113: 2030-31 | L113: 2031-32 | M113: 2032-33 | N113: 2033-34 | O113: 2034-35 | P113: 2035-36 | Q113: 2036-37 | R113: 2037-38 | S113: 2038-39 | T113: 2039-40 | U113: 2040-41 | V113: 2041-42
B114: Incremental demand | E114: 9710 | F114: 9093 | G114: 10613 | H114: 11129 | I114: 12016 | J114: 15102 | K114: 15030 | L114: 16727 | M114: 17228 | N114: 18946
B115: Incremental export capacity | E115: 26080 | F115: 22782 | G115: 25318 | H115: 15183 | I115: 15387 | J115: 15357 | K115: 13478 | L115: 15245 | M115: 28508 | N115: 23138
B124: Total demand | C124: =-SUM(C114:C123) -> 0 | D124: 0 | E124: -35790 | F124: -31875 | G124: -35931 | H124: -26312 | I124: -27403 | J124: -30459 | K124: -28508 | L124: -31972 | M124: -45736 | N124: -42084 | O124: 0 | P124: 0 | Q124: 0 | R124: 0 | S124: 0 | T124: 0 | U124: 0 | V124: 0
B126: 7.7.3.2 - SERIES B
C127: =CONCATENATE("Forecast ($0's, real ", dms_DollarReal) -> Forecast ($0's, real June 2024
C128: =CRCP_y4 -> 2022-23 | D128: =IF(dms_RPT="financial",(VALUE(LEFT(C128,4)+1)&"-"&MID(C128,3,2)+2),VALUE(LEFT(C128,4)+1)) -> 2023-24 | E128: 2024-25 | F128: 2025-26 | G128: 2026-27 | H128: 2027-28 | I128: 2028-29 | J128: 2029-30 | K128: 2030-31 | L128: 2031-32 | M128: 2032-33 | N128: 2033-34 | O128: 2034-35 | P128: 2035-36 | Q128: 2036-37 | R128: 2037-38 | S128: 2038-39 | T128: 2039-40 | U128: 2040-41 | V128: 2041-42
B129: Incremental demand | E129: 12847 | F129: 11120 | G129: 12098 | H129: 12416 | I129: 13920 | J129: 15839 | K129: 15899 | L129: 18224 | M129: 19301 | N129: 20862
B139: Total demand | C139: =-SUM(C129:C138) -> 0 | D139: 0 | E139: -12847 | F139: -11120 | G139: -12098 | H139: -12416 | I139: -13920 | J139: -15839 | K139: -15899 | L139: -18224 | M139: -19301 | N139: -20862 | O139: 0 | P139: 0 | Q139: 0 | R139: 0 | S139: 0 | T139: 0 | U139: 0 | V139: 0
B141: 7.7.3.3 - SERIES C
C142: =CONCATENATE("Forecast ($0's, real ", dms_DollarReal) -> Forecast ($0's, real June 2024
C143: =CRCP_y4 -> 2022-23 | D143: =IF(dms_RPT="financial",(VALUE(LEFT(C143,4)+1)&"-"&MID(C143,3,2)+2),VALUE(LEFT(C143,4)+1)) -> 2023-24 | E143: 2024-25 | F143: 2025-26 | G143: 2026-27 | H143: 2027-28 | I143: 2028-29 | J143: 2029-30 | K143: 2030-31 | L143: 2031-32 | M143: 2032-33 | N143: 2033-34 | O143: 2034-35 | P143: 2035-36 | Q143: 2036-37 | R143: 2037-38 | S143: 2038-39 | T143: 2039-40 | U143: 2040-41 | V143: 2041-42
B144: Incremental demand | E144: 3688 | F144: 3192 | G144: 3473 | H144: 3565 | I144: 3996 | J144: 4547 | K144: 4564 | L144: 5232 | M144: 5541 | N144: 5989
B154: Total demand | C154: =-SUM(C144:C153) -> 0 | D154: 0 | E154: -3688 | F154: -3192 | G154: -3473 | H154: -3565 | I154: -3996 | J154: -4547 | K154: -4564 | L154: -5232 | M154: -5541 | N154: -5989 | O154: 0 | P154: 0 | Q154: 0 | R154: 0 | S154: 0 | T154: 0 | U154: 0 | V154: 0

Sheet 7.8 Export Services
B1: =INDEX(dms_Worksheet_List,MATCH(dms_Model,dms_Model_List)) -> REGULATORY REPORTING STATEMENT
B2: =INDEX(dms_TradingNameFull_List,MATCH(dms_TradingName,dms_TradingName_List)) -> Evoenergy Distribution
B3: =CONCATENATE("REGULATORY PERIOD FROM ", FRCP_y1," TO ",dms_MultiYear_FinalYear_Result) -> REGULATORY PERIOD FROM 2024-25 TO 2028-29
B4: 7.8 EXPORT SERVICES
B6: Expenditure must only be related to DER integration, and must exclude amounts relating to DMIA
B8: Export service related overvoltage complaint management examples include but not limited to: complaint processing, analysis, transformer tapping
B10: 7.8.1 - OPEX FOR PROVISION OF EXPORT SERVICES
C11: =CONCATENATE("EXPENDITURE ($0's, real ",dms_DollarReal, ")") -> EXPENDITURE ($0's, real June 2024)
C12: =CRCP_y4 -> 2022-23 | D12: =CRCP_y5 -> 2023-24 | E12: =FRCP_y1 -> 2024-25 | F12: =FRCP_y2 -> 2025-26 | G12: =FRCP_y3 -> 2026-27 | H12: =FRCP_y4 -> 2027-28 | I12: =FRCP_y5 -> 2028-29
B13: Export service related overvoltage complaint management | C13: 2323267.033 | D13: 2391585.122 | E13: 4978827.712 | F13: 4599757.481 | G13: 4615479.514 | H13: 4682014.546 | I13: 4824312.117
B14: Other opex
B17: ICT capex examples include but not limited to: establishing systems for network visibility, hosting capacity assessments, generation of dynamic operating envelopes
B18: Network monitoring capex examples include but not limited to: implementing transformer monitors
B20: 7.8.2 - CAPEX FOR THE PROVISION OF EXPORT SERVICES
C21: =CONCATENATE("EXPENDITURE ($0's, real ",dms_DollarReal, ")") -> EXPENDITURE ($0's, real June 2024)
C22: =CRCP_y4 -> 2022-23 | D22: =CRCP_y5 -> 2023-24 | E22: =FRCP_y1 -> 2024-25 | F22: =FRCP_y2 -> 2025-26 | G22: =FRCP_y3 -> 2026-27 | H22: =FRCP_y4 -> 2027-28 | I22: =FRCP_y5 -> 2028-29
B23: ICT capex | C23: 0 | D23: 0 | E23: 2318597 | F23: 1512379 | G23: 1524300 | H23: 337918 | I23: 340162
B24: Network monitoring capex
B25: Other capex
B30: 7.8.3 - EXPORT VOLUMES - NET METERED VOLUME OF ENERGY EXPORTED
B31: A. BY FEEDER CLASSIFICATION
C32: VOLUMES MWh
C33: =CRCP_y4 -> 2022-23 | D33: =CRCP_y5 -> 2023-24 | E33: =FRCP_y1 -> 2024-25 | F33: =FRCP_y2 -> 2025-26 | G33: =FRCP_y3 -> 2026-27 | H33: =FRCP_y4 -> 2027-28 | I33: =FRCP_y5 -> 2028-29
B34: i. Beginning of period
B35: =INDEX(dms_FeederName_1,MATCH(dms_TradingName,dms_TradingName_List)) -> CBD
B36: =INDEX(dms_FeederName_2,MATCH(dms_TradingName,dms_TradingName_List)) -> Urban | C36: 122150 | D36: 132657 | E36: 142650 | F36: 151013 | G36: 158554 | H36: 167453 | I36: 174219
B37: =INDEX(dms_FeederName_3,MATCH(dms_TradingName,dms_TradingName_List)) -> Short rural | C37: 54879 | D37: 59599 | E37: 64089 | F37: 67847 | G37: 71234 | H37: 75233 | I37: 78273
B38: =INDEX(dms_FeederName_4,MATCH(dms_TradingName,dms_TradingName_List)) -> Long rural
B39: =IF(ISBLANK(INDEX(dms_FeederName_5,MATCH(dms_TradingName,dms_TradingName_List))),"",INDEX(dms_FeederName_5,MATCH(dms_TradingName,dms_TradingName_List))) ->  | D39: =IF(dms_TradingName="TasNetworks (D)",C45,"") -> 
B40: ii. End of period
B41: =INDEX(dms_FeederName_1,MATCH(dms_TradingName,dms_TradingName_List)) -> CBD
B42: =INDEX(dms_FeederName_2,MATCH(dms_TradingName,dms_TradingName_List)) -> Urban | C42: 132657 | D42: 142650 | E42: 151013 | F42: 158554 | G42: 167453 | H42: 174219 | I42: 178934
B43: =INDEX(dms_FeederName_3,MATCH(dms_TradingName,dms_TradingName_List)) -> Short rural | C43: 59599 | D43: 64089 | E43: 67847 | F43: 71234 | G43: 75233 | H43: 78273 | I43: 80391
B44: =INDEX(dms_FeederName_4,MATCH(dms_TradingName,dms_TradingName_List)) -> Long rural
B45: =IF(ISBLANK(INDEX(dms_FeederName_5,MATCH(dms_TradingName,dms_TradingName_List))),"",INDEX(dms_FeederName_5,MATCH(dms_TradingName,dms_TradingName_List))) -> 
B48: 7.8.4 EXPORT SERVICES - CUSTOMER NUMBERS
B49: A. BY FEEDER CLASSIFICATION
C50: CUSTOMER NUMBERS (0's)
C51: =CRCP_y4 -> 2022-23 | D51: =CRCP_y5 -> 2023-24 | E51: =FRCP_y1 -> 2024-25 | F51: =FRCP_y2 -> 2025-26 | G51: =FRCP_y3 -> 2026-27 | H51: =FRCP_y4 -> 2027-28 | I51: =FRCP_y5 -> 2028-29
B52: i. Beginning of period
B53: =INDEX(dms_FeederName_1,MATCH(dms_TradingName,dms_TradingName_List)) -> CBD
B54: =INDEX(dms_FeederName_2,MATCH(dms_TradingName,dms_TradingName_List)) -> Urban | C54: 26250 | D54: 29357 | E54: 32049 | F54: 34571 | G54: 36774 | H54: 39222 | I54: 40691
B55: =INDEX(dms_FeederName_3,MATCH(dms_TradingName,dms_TradingName_List)) -> Short rural | C55: 11794 | D55: 13190 | E55: 14399 | F55: 15532 | G55: 16522 | H55: 17622 | I55: 18281
B56: =INDEX(dms_FeederName_4,MATCH(dms_TradingName,dms_TradingName_List)) -> Long rural
B57: =IF(ISBLANK(INDEX(dms_FeederName_5,MATCH(dms_TradingName,dms_TradingName_List))),"",INDEX(dms_FeederName_5,MATCH(dms_TradingName,dms_TradingName_List))) ->  | D57: =IF(dms_TradingName="TasNetworks (D)",C63,"") -> 
B58: ii. End of period
B59: =INDEX(dms_FeederName_1,MATCH(dms_TradingName,dms_TradingName_List)) -> CBD
B60: =INDEX(dms_FeederName_2,MATCH(dms_TradingName,dms_TradingName_List)) -> Urban | C60: 29357 | D60: 32049 | E60: 34571 | F60: 36774 | G60: 39222 | H60: 40691 | I60: 42179
B61: =INDEX(dms_FeederName_3,MATCH(dms_TradingName,dms_TradingName_List)) -> Short rural | C61: 13190 | D61: 14399 | E61: 15532 | F61: 16522 | G61: 17622 | H61: 18281 | I61: 18950
B62: =INDEX(dms_FeederName_4,MATCH(dms_TradingName,dms_TradingName_List)) -> Long rural
B63: =IF(ISBLANK(INDEX(dms_FeederName_5,MATCH(dms_TradingName,dms_TradingName_List))),"",INDEX(dms_FeederName_5,MATCH(dms_TradingName,dms_TradingName_List))) -> 

Sheet AER Sheet Heading (hidden)
B1: =INDEX(dms_Worksheet_List,MATCH(dms_Model,dms_Model_List)) -> REGULATORY REPORTING STATEMENT
B2: =INDEX(dms_TradingNameFull_List,MATCH(dms_TradingName,dms_TradingName_List)) -> Evoenergy Distribution
B3: =dms_Header_Span -> 2022-23 to 2028-29
B4: XX
C11: EXPENDITURE
C12: =CONCATENATE("Forecast ($0's, real ",dms_DollarReal,")") -> Forecast ($0's, real June 2024)
C13: =dms_y1 -> 2022-23 | D13: =dms_y2 -> 2023-24 | E13: =dms_y3 -> 2024-25 | F13: =dms_y4 -> 2025-26 | G13: =dms_y5 -> 2026-27 | H13: =dms_y6 -> 2027-28 | I13: =dms_y7 -> 2028-29
C36: =SUM(C15:C35) -> 0 | D36: 0 | E36: 0 | F36: 0 | G36: 0 | H36: 0 | I36: 0
C37: =SUM(C15:C36) -> 0 | D37: 0 | E37: 0 | F37: 0 | G37: 0 | H37: 0 | I37: 0
C42: VOLUMES
C43: 0's
C44: =dms_y1 -> 2022-23 | D44: =dms_y2 -> 2023-24 | E44: =dms_y3 -> 2024-25 | F44: =dms_y4 -> 2025-26 | G44: =dms_y5 -> 2026-27 | H44: =dms_y6 -> 2027-28 | I44: =dms_y7 -> 2028-29
C67: =SUM(C46:C66) -> 0 | D67: 0 | E67: 0 | F67: 0 | G67: 0 | H67: 0 | I67: 0
C68: =SUM(C46:C67) -> 0 | D68: 0 | E68: 0 | F68: 0 | G68: 0 | H68: 0 | I68: 0

Sheet AER CF (hidden)
B1: AER CONDITIONAL FORMATTING
B3: CELLS FLAGED "Y" and greyed out will be greyed out in the worksheets.
B4: CONDITIONAL FORMATTING MAP
F5: =INDEX(dms_CF_3.6.1, MATCH(dms_TradingName,dms_CF_TradingName))="Y" | G5: =INDEX(dms_CF_3.6.5, MATCH(dms_TradingName,dms_CF_TradingName))="Y" | H5: =INDEX(dms_CF_3.6.6.1, MATCH(dms_TradingName,dms_CF_TradingName))="Y" | I5: =INDEX(dms_CF_3.6.6.2, MATCH(dms_TradingName,dms_CF_TradingName))="Y" | J5: =INDEX(dms_CF_3.6.6.3, MATCH(dms_TradingName,dms_CF_TradingName))="Y" | K5: =INDEX(dms_CF_3.6.7.1, MATCH(dms_TradingName,dms_CF_TradingName))="Y" | L5: =INDEX(dms_CF_3.6.7.2, MATCH(dms_TradingName,dms_CF_TradingName))="Y" | M5: =INDEX(dms_CF_3.6.7.3, MATCH(dms_TradingName,dms_CF_TradingName))="Y" | N5: =INDEX(dms_CF_3.6.7.4, MATCH(dms_TradingName,dms_CF_TradingName))="Y" | O5: =INDEX(dms_CF_3.6.8, MATCH(dms_TradingName,dms_CF_TradingName))="Y" | P5: =INDEX(dms_CF_4.1, MATCH(dms_TradingName,dms_CF_TradingName))="Y" | Q5: =INDEX(dms_CF_6.8, MATCH(dms_TradingName,dms_CF_TradingName))="Y" | R5: =INDEX(dms_CF_7.12, MATCH(dms_TradingName,dms_CF_TradingName))="Y" | S5: =INDEX(dms_CF_8.1_A, MATCH(dms_TradingName,dms_CF_TradingName))="Y" | T5: =INDEX(dms_CF_8.1_B, MATCH(dms_TradingName,dms_CF_TradingName))="Y" | U5: =INDEX(dms_CF_8.1_Neg, MATCH(dms_TradingName,dms_CF_TradingName))="Y" -> TRUE | V5: =INDEX(dms_CF_4.4.1_Neg, MATCH(dms_TradingName,dms_CF_TradingName))="Y" | Y5: =INDEX(dms_CF_F10, MATCH(dms_TradingName,dms_CF_TradingName))="Y"
B6: dms_CF_TradingName | C6: JurisdictionList | D6: Sector | E6: Segment | F6: dms_CF_3.6.1 | G6: dms_CF_3.6.5 | H6: dms_CF_3.6.6.1 | I6: dms_CF_3.6.6.2 | J6: dms_CF_3.6.6.3 | K6: dms_CF_3.6.7.1 | L6: dms_CF_3.6.7.2 | M6: dms_CF_3.6.7.3 | N6: dms_CF_3.6.7.4 | O6: dms_CF_3.6.8 | P6: dms_CF_4.1 | Q6: dms_CF_6.8 (set from dms_MAIFI_flag) | R6: dms_CF_7.12 | S6: dms_CF_8.1_A (and 8.4) | T6: dms_CF_8.1_B (and 8.4) | U6: dms_CF_8.1_Neg (and 8.4) | V6: dms_CF_4.4.1 | W6: dms_CF_MAIFI_flag (set from dms_MAIFI_flag) | X6: 9.5 TUOS (set from Jurisdiction) | Y6: dms_CF_F10
B7: Amadeus | C7: NT | D7: Gas | E7: Transmission | F7: - | G7: - | H7: - | I7: - | J7: - | K7: - | L7: - | M7: - | N7: - | O7: - | P7: - | Q7: - | R7: - | S7: - | T7: - | U7: - | V7: - | W7: - | X7: - | Y7: -
B8: APA GasNet | C8: Vic | D8: Gas | E8: Transmission | F8: - | G8: - | H8: - | I8: - | J8: - | K8: - | L8: - | M8: - | N8: - | O8: - | P8: - | Q8: - | R8: - | S8: - | T8: - | U8: - | V8: - | W8: - | X8: - | Y8: -
B9: Ausgrid | C9: NSW | D9: Electricity | E9: Distribution | G9: Y | H9: N | I9: N | J9: N | K9: N | L9: N | M9: N | N9: Y | O9: N | P9: N | Q9: =IFERROR(IF(_xlfn.SINGLE(dms_MAIFI_Flag)="Yes","N","Y"),"Y") -> Y | R9: Y | S9: N | T9: Y | U9: Y | V9: N | W9: =IFERROR(LEFT(_xlfn.SINGLE(dms_MAIFI_Flag)),"N") -> N | X9: =IF('AER CF'!$C7="Vic","Y","N") -> N
B10: Ausgrid (Tx Assets) | C10: NSW | D10: Electricity | E10: Distribution | G10: Y | H10: N | I10: N | J10: N | K10: N | L10: N | M10: N | N10: Y | O10: N | P10: N | Q10: Y | R10: Y | S10: N | T10: Y | U10: Y | V10: N | W10: N | X10: =IF('AER CF'!$C8="Vic","Y","N") -> Y
B11: AusNet (D) | C11: Vic | D11: Electricity | E11: Distribution | G11: N | H11: N | K11: N | L11: N | M11: N | N11: N | O11: N | P11: N | Q11: Y | R11: N | S11: N | T11: N | U11: Y | V11: N | W11: N | X11: =IF('AER CF'!$C9="Vic","Y","N") -> N
B12: AusNet (T) | C12: Vic | D12: Electricity | E12: Transmission | G12: N | K12: N | L12: N | M12: N | N12: N | O12: N | P12: Y | Q12: Y | R12: N | S12: N | T12: N | U12: Y | V12: N | W12: N | X12: =IF('AER CF'!$C10="Vic","Y","N") -> N
B13: Australian Distribution Co. | C13: NSW | D13: Electricity | E13: Distribution | F13: N | G13: N | H13: N | I13: N | K13: N | L13: N | M13: N | N13: N | O13: N | P13: N | Q13: Y | R13: N | S13: N | T13: N | U13: N | V13: N | W13: N | X13: =IF('AER CF'!$C13="Vic","Y","N") -> N
B14: Australian Distribution Co. (Vic) | C14: Vic | D14: Electricity | E14: Distribution | F14: N | G14: N | H14: N | I14: N | K14: N | L14: N | M14: N | N14: N | O14: N | P14: N | Q14: Y | R14: N | S14: N | T14: N | U14: N | V14: N | W14: N | X14: =IF('AER CF'!$C14="Vic","Y","N") -> Y
B15: CitiPower | C15: Vic | D15: Electricity | E15: Distribution | G15: N | H15: N | K15: N | L15: N | M15: N | N15: N | O15: N | P15: N | Q15: Y | R15: N | S15: N | T15: N | U15: Y | V15: N | W15: N | X15: =IF('AER CF'!$C15="Vic","Y","N") -> Y
B16: Directlink | C16: Qld | D16: Electricity | E16: Transmission | G16: N | K16: N | L16: N | M16: N | N16: N | O16: N | P16: - | Q16: Y | R16: N | S16: N | T16: Y | U16: Y | V16: N | W16: N | X16: =IF('AER CF'!$C16="Vic","Y","N") -> N
B17: ElectraNet | C17: SA | D17: Electricity | E17: Transmission | G17: N | K17: N | L17: N | M17: N | N17: N | O17: N | P17: - | Q17: Y | R17: N | S17: N | T17: Y | U17: Y | V17: N | W17: N | X17: =IF('AER CF'!$C17="Vic","Y","N") -> N
B18: Endeavour Energy | C18: NSW | D18: Electricity | E18: Distribution | G18: Y | H18: N | I18: Y | J18: Y | K18: N | L18: N | M18: N | N18: Y | O18: N | P18: N | Q18: Y | R18: Y | S18: N | T18: Y | U18: Y | V18: Y | W18: N | X18: =IF('AER CF'!$C18="Vic","Y","N") -> N
B19: Energex | C19: Qld | D19: Electricity | E19: Distribution | G19: Y | H19: N | K19: N | L19: N | M19: N | N19: N | O19: N | P19: N | Q19: Y | R19: Y | S19: N | T19: Y | U19: Y | V19: Y | W19: N | X19: =IF('AER CF'!$C19="Vic","Y","N") -> N
B20: Ergon Energy | C20: Qld | D20: Electricity | E20: Distribution | G20: Y | H20: N | I20: Y | J20: Y | K20: N | L20: N | M20: N | N20: N | O20: N | P20: N | Q20: Y | R20: Y | S20: N | T20: Y | U20: Y | V20: N | W20: N | X20: =IF('AER CF'!$C20="Vic","Y","N") -> N
B21: Essential Energy | C21: NSW | D21: Electricity | E21: Distribution | G21: Y | H21: N | I21: Y | J21: Y | K21: N | L21: N | M21: N | N21: Y | O21: N | P21: N | Q21: Y | R21: Y | S21: N | T21: Y | U21: Y | V21: N | W21: N | X21: =IF('AER CF'!$C21="Vic","Y","N") -> N
B22: Evoenergy Distribution | C22: ACT | D22: Electricity | E22: Distribution | G22: Y | H22: N | I22: Y | J22: Y | K22: Y | L22: Y | M22: N | N22: Y | O22: N | P22: Y | Q22: Y | R22: Y | S22: N | T22: Y | U22: Y | V22: N | W22: N | X22: =IF('AER CF'!$C22="Vic","Y","N") -> N
B23: Evoenergy Distribution (Tx Assets) | C23: ACT | D23: Electricity | E23: Distribution | G23: Y | H23: N | I23: Y | J23: Y | K23: Y | L23: Y | M23: N | N23: Y | O23: N | P23: Y | Q23: Y | R23: Y | S23: N | T23: Y | U23: Y | V23: N | W23: N | X23: =IF('AER CF'!$C23="Vic","Y","N") -> N
B24: Jemena Electricity | C24: Vic | D24: Electricity | E24: Distribution | G24: N | H24: N | K24: N | L24: N | M24: N | N24: N | O24: N | P24: N | Q24: Y | R24: N | S24: N | T24: N | U24: Y | V24: N | W24: N | X24: =IF('AER CF'!$C25="Vic","Y","N") -> Y
B25: JGN | C25: Vic | D25: Gas | E25: Distribution | F25: - | G25: - | H25: - | I25: - | J25: - | K25: - | L25: - | M25: - | N25: - | O25: - | P25: - | Q25: - | R25: - | S25: - | T25: - | U25: - | V25: - | W25: - | X25: - | Y25: -
B26: Murraylink | C26: SA | D26: Electricity | E26: Transmission | G26: N | K26: N | L26: N | M26: N | N26: N | O26: N | P26: - | Q26: =IFERROR(IF(_xlfn.SINGLE(dms_MAIFI_Flag)="Yes","N","Y"),"Y") -> Y | R26: N | S26: N | T26: Y | U26: Y | V26: N | W26: =IFERROR(LEFT(_xlfn.SINGLE(dms_MAIFI_Flag)),"N") -> N | X26: =IF('AER CF'!$C26="Vic","Y","N") -> N
B27: Power and Water | C27: NT | D27: Electricity | E27: Distribution | G27: N | H27: N | K27: N | L27: Y | M27: N | N27: N | O27: N | P27: Y | Q27: =IFERROR(IF(_xlfn.SINGLE(dms_MAIFI_Flag)="Yes","N","Y"),"Y") -> Y | R27: Y | S27: Y | T27: Y | U27: Y | V27: N | W27: =IFERROR(LEFT(_xlfn.SINGLE(dms_MAIFI_Flag)),"N") -> N | X27: =IF('AER CF'!$C27="Vic","Y","N") -> N
B28: Powercor Australia | C28: Vic | D28: Electricity | E28: Distribution | G28: N | H28: N | K28: N | L28: N | M28: N | N28: N | O28: N | P28: N | Q28: =IFERROR(IF(_xlfn.SINGLE(dms_MAIFI_Flag)="Yes","N","Y"),"Y") -> Y | R28: N | S28: N | T28: N | U28: Y | V28: N | W28: =IFERROR(LEFT(_xlfn.SINGLE(dms_MAIFI_Flag)),"N") -> N | X28: =IF('AER CF'!$C28="Vic","Y","N") -> Y
B29: Powerlink | C29: Qld | D29: Electricity | E29: Transmission | G29: N | K29: N | L29: N | M29: N | N29: N | O29: N | P29: - | Q29: =IFERROR(IF(_xlfn.SINGLE(dms_MAIFI_Flag)="Yes","N","Y"),"Y") -> Y | R29: N | S29: N | T29: Y | U29: Y | V29: N | W29: =IFERROR(LEFT(_xlfn.SINGLE(dms_MAIFI_Flag)),"N") -> N | X29: =IF('AER CF'!$C29="Vic","Y","N") -> N
B30: Roma to Brisbane Pipeline | C30: Qld | D30: Gas | E30: Transmission | F30: - | G30: - | H30: - | I30: - | J30: - | K30: - | L30: - | M30: - | N30: - | O30: - | P30: - | Q30: - | R30: - | S30: - | T30: - | U30: - | V30: - | W30: - | X30: - | Y30: -
B31: SA Power Networks | C31: SA | D31: Electricity | E31: Distribution | G31: Y | H31: N | K31: N | L31: N | M31: N | N31: N | O31: N | P31: N | Q31: =IFERROR(IF(_xlfn.SINGLE(dms_MAIFI_Flag)="Yes","N","Y"),"Y") -> Y | R31: Y | S31: N | T31: Y | U31: N | V31: N | W31: =IFERROR(LEFT(_xlfn.SINGLE(dms_MAIFI_Flag)),"N") -> N | X31: =IF('AER CF'!$C31="Vic","Y","N") -> N
B32: TasNetworks (D) | C32: Tas | D32: Electricity | E32: Distribution | G32: Y | H32: N | K32: N | L32: N | M32: N | N32: N | O32: N | P32: N | Q32: =IFERROR(IF(_xlfn.SINGLE(dms_MAIFI_Flag)="Yes","N","Y"),"Y") -> Y | R32: Y | S32: N | T32: Y | U32: Y | V32: N | W32: =IFERROR(LEFT(_xlfn.SINGLE(dms_MAIFI_Flag)),"N") -> N | X32: =IF('AER CF'!$C32="Vic","Y","N") -> N
B33: TasNetworks (T) | C33: Tas | D33: Electricity | E33: Transmission | G33: N | K33: N | L33: N | M33: N | N33: N | O33: N | P33: - | Q33: =IFERROR(IF(_xlfn.SINGLE(dms_MAIFI_Flag)="Yes","N","Y"),"Y") -> Y | R33: N | S33: N | T33: Y | U33: Y | V33: N | W33: =IFERROR(LEFT(_xlfn.SINGLE(dms_MAIFI_Flag)),"N") -> N | X33: =IF('AER CF'!$C33="Vic","Y","N") -> N
B34: TransGrid | C34: NSW | D34: Electricity | E34: Transmission | G34: N | K34: N | L34: N | M34: N | N34: N | O34: N | P34: - | Q34: =IFERROR(IF(_xlfn.SINGLE(dms_MAIFI_Flag)="Yes","N","Y"),"Y") -> Y | R34: N | S34: N | T34: Y | U34: Y | V34: N | W34: =IFERROR(LEFT(_xlfn.SINGLE(dms_MAIFI_Flag)),"N") -> N | X34: =IF('AER CF'!$C34="Vic","Y","N") -> N
B35: United Energy | C35: Vic | D35: Electricity | E35: Distribution | G35: N | H35: N | K35: N | L35: N | M35: N | N35: N | O35: N | P35: N | Q35: =IFERROR(IF(_xlfn.SINGLE(dms_MAIFI_Flag)="Yes","N","Y"),"Y") -> Y | R35: N | S35: N | T35: N | U35: Y | V35: N | W35: =IFERROR(LEFT(_xlfn.SINGLE(dms_MAIFI_Flag)),"N") -> N | X35: =IF('AER CF'!$C35="Vic","Y","N") -> Y
B38: Confidential
B39: Amended
B41: Worksheet 6.2 STPIS reliability
B42: Formula | F42: Applied to:
B44: =INDEX(dms_CBD_flag,MATCH(dms_TradingName,dms_TradingName_List))="NO" | F44: $D$11,$D$17,$D$23,$D$33,$D$39,$D$45,$D$55,$D$61,$D$67,$D$77,$D$83,$D$89
B45: =INDEX(dms_Urban_flag,MATCH(dms_TradingName,dms_TradingName_List))="NO" | F45: $D$12,$D$18,$D$24,$D$56,$D$62,$D$78,$D$68,$D$84
B46: =INDEX(dms_ShortRural_flag,MATCH(dms_TradingName,dms_TradingName_List))="NO" | F46: $D$13,$D$19,$D$25,$D$57,$D$63,$D$69,$D$79,$D$85
B47: =INDEX(dms_LongRural_flag,MATCH(dms_TradingName,dms_TradingName_List))="NO" | F47: $D$14,$D$20,$D$26,$D$58,$D$64,$D$65,$D$70,$D$71,$D$80,$D$86
B48: =INDEX(dms_FeederType_5_flag,MATCH(dms_TradingName,dms_TradingName_List))="NO" | F48: $D$87,$D$81,$D$71,$D$65,$D$59,$D$49,$D$43,$D$37,$D$21,$D$15
B49: =dms_MAIFI_Flag="No" | F49: $D$55:$D$72
B52: Business & other details
B53: =(INDEX(dms_Model_Span,MATCH(dms_Model,dms_Model_List))>1)
B54: =(INDEX(dms_Model_Span,MATCH(dms_Model,dms_Model_List))=1)
B57: STYLES IN USE | C57: dms_H2
B58: TOP HEADER | C58: dms_H1
B59: HEADING ONE | C59: dms_1
B60: HEADING TWO | C60: dms_2
B61: HEADING THREE | C61: dms_3
B62: HEADING FOUR | C62: dms_4
B63: HEADING FIVE | C63: dms_5
B64: 5.111 | C64: dms_NUM
B65: 0.0545 | C65: dms_NUM%
B66: 5.5555 | C66: dms_NUM3d
B67: Text description | C67: dms_Row_Locked
B68: Text description - not locked | C68: dms_Row1
B69: Text description | C69: dms_Row2
B70: Total | C70: dms_T1
B71: Total | C71: dms_T2
B72: EXPENSES | C72: dms_BH
B73: 2019 | C73: dms_BY1
B74: 2019 | C74: dms_BY2
B75: VOLUMES | C75: dms_GH
B76: 2019 | C76: dms_GY1
B77: 2019 | C77: dms_GY2

Sheet AER NRs (hidden)
B1: AER NAMED RANGES
B3: DROP DOWN SELECTORS USED IN WORKBOOKS
B5: COVER SHEET | C5: dms_DataQuality_List | D5: dms_Confid_status_List
C6: -- select -- | D6: -- select --
C7: Actual | D7: Public
C8: Estimate | D8: Confidential
C9: Consolidated
C12: For all files either AER or business needs to be able to specify the type of submission | D12: For PTRM & RFM templates we must provide a choice in case they change their form of control - otherwise it is drawn from the business specific lookup table above.
C13: dms_SourceList | D13: dms_FormControl_Choices
C14: -- select -- | D14: Revenue cap
C15: After appeal | D15: Revenue yield
C16: Draft decision | D16: Tariff cap
C17: Final decision | D17: Weighted average price cap
C18: PTRM update 1
C19: PTRM update 2
C20: PTRM update 3
C21: PTRM update 4
C22: PTRM update 5
C23: PTRM update 6
C24: PTRM update 7
C25: Reallocated
C26: Recast
C27: Regulatory proposal
C28: Reporting
C29: Revised regulatory proposal
K32: This is used to create an image to insert on 6.3 STPIS sheet - not for dropdown lists. | N32: GAS
B33: CA & RESET RINS DNSP | C33: dms_DNSP_020301_SubstationType | D33: dms_DNSP_020301_ProjectType | E33: dms_DNSP_020301_ProjectTrigger | F33: dms_DNSP_020302_ProjectType | G33: dms_DNSP_020302_ProjectTrigger | H33: dms_STPIS_Exclusion_List | I33: dms_Reason_Interruption | J33: dms_Reason_Interruption_Detailed | K33: Reason for interruption | N33: dms_N0205_AssetType
C34: Subtransmission substation | D34: New substation establishment | E34: Demand growth | F34: New line on new route - single circuit | G34: Demand growth | H34: Weather | I34: Animal | J34: Animal impact | K34: Animal | L34: Animal impact | N34: Cast Iron
C35: Zone substation | D35: Substation upgrade - capacity | E35: Voltage issues | F35: New line on new route - dual circuit | G35: Voltage issues | H35: Equipment failure | I35: Asset failure | J35: Animal nesting/burrowing, etc and other | L35: Animal nesting/burrowing, etc and other | N35: PVC
C36: Switching station | D36: Substation upgrade - voltage | E36: Reactive power issue | F36: New line on new route - other | G36: Reactive power issue | H36: Operational error | I36: Other | J36: Other | L36: Other | N36: Polyamide
C37: Other | D37: Other | E37: Fault level issues | F37: Line rebuild over existing route - single circuit | G37: Fault level issues | H37: Vegetation | I37: Overloads | J37: LV | K37: Asset failure | L37: LV | N37: High density polyethylene (80)
E38: Safety | F38: Line rebuild over existing route - dual circuit | G38: Net market benefit | H38: Animals | I38: Planned | J38: Distribution substation | L38: Distribution substation | N38: High density polyethylene (100)
E39: Environment | F39: Reconductor - Single circuit | G39: Safety | H39: Third party impacts | I39: Network business | J39: HV | L39: HV | N39: High density polyethylene (250)
E40: Other | F40: Reconductor - Dual circuit | G40: Environment | H40: Transmission failure | I40: Third party | J40: Zone substation | L40: Zone substation | N40: High density polyethylene (575)
F41: Reconductor - Other | G41: Other | H41: Load shedding | I41: Unknown | J41: Subtransmission | L41: Subtransmission | N41: Medium density polyethylene
F42: Line upgrade - raising/retensoring | H42: Inter-distributor connection failure | I42: Vegetation | J42: insert description of 'other' | K42: Other | L42: insert description of 'other' | N42: Unprotected steel
F43: Line upgrade - voltage upgrade | H43: Other | I43: Weather | J43: Network error | K43: Overloads | N43: Protected steel
F44: Line upgrade - capacity | I44: 2 - STPIS Exclusion (3.3)(a) | J44: Switching and protection error | K44: Planned | N44: Other
F45: String spare circuit | I45: 3 - STPIS Exclusion (3.3)(a) | J45: Fire | K45: Network business | L45: Network error
F46: Other | I46: 4 - STPIS Exclusion (3.3)(a) | J46: Other | L46: Switching and protection error
I47: 5 - STPIS Exclusion (3.3)(a) | J47: Dig-in | K47: Third party | L47: Fire
I48: 6 - STPIS Exclusion (3.3)(a) | J48: Unauthorised access | L48: Other
I49: 7 - STPIS Exclusion (3.3)(a) | J49: Vehicle impact | L49: Dig-in
J50: Unknown | L50: Unauthorised access
J51: Blow-in/Fall-in - NSP responsibility | L51: Vehicle impact
J52: Grow-in - NSP responsibility | K52: Unknown | L52: Unknown
J53: Blow-in/Fall-in - Other responsible party | K53: Vegetation | L53: Blow-in/Fall-in - NSP responsibility
J54: Grow-in - Other responsible party | L54: Grow-in - NSP responsibility
L55: Blow-in/Fall-in - Other responsible party
L56: Grow-in - Other responsible party
K57: Weather
K58: 2 - STPIS Exclusion (3.3)(a)
K59: 3 - STPIS Exclusion (3.3)(a)
K60: 4 - STPIS Exclusion (3.3)(a)
K61: 5 - STPIS Exclusion (3.3)(a)
K62: 6 - STPIS Exclusion (3.3)(a)
K63: 7 - STPIS Exclusion (3.3)(a)
B66: CA & RESET RINS TNSP | C66: dms_TNSP_0203_SubstationType | D66: dms_TNSP_020301_ProjectType | E66: dms_TNSP_020301_ProjectTrigger | F66: dms_TNSP_020302_ProjectType | G66: dms_TNSP_0203_ProjectTrigger
C67: Terminal station | D67: New substation establishment | E67: Demand growth | F67: New line on new route - single circuit | G67: Demand growth
C68: Switching station | D68: Capacity upgrade | E68: Voltage issues | F68: New line on new route - dual circuit | G68: Voltage issues
C69: Transmission substation | D69: Voltage upgrade | E69: Reactive power issue | F69: New line on new route - other | G69: Reactive power issue
C70: Other | D70: Other | E70: Fault level issues | F70: Line rebuild over existing route - single circuit | G70: Fault level issues
E71: Net market benefit | F71: Line rebuild over existing route - dual circuit | G71: Net market benefit
E72: Safety | F72: Reconductor - Single circuit | G72: Safety
E73: Environment | F73: Reconductor - Dual circuit | G73: Environment
E74: Other | F74: Reconductor - Other | G74: Other
F75: Line upgrade - raising/retensoring
F76: Line upgrade - voltage upgrade
F77: Line upgrade - capacity
F78: String spare circuit
F79: Other
B83: NAMED RANGES USED IN ETL PROCESS
M84: GAS ARR & RESET
B85: CA & RESET RINS DNSP ONLY | C85: dms_020303_01_UOM | D85: dms_020501_01_UOM | E85: dms_020501_02_UOM | F85: dms_020501_03_UOM | G85: dms_020501_04_UOM | H85: dms_020701_01_UOM | I85: dms_020701_02_UOM | J85: dms_020701_01_Rows | K85: dms_040102_01_UOM | L85: dms_040102_04_UOM | M85: dms_S140101_UOM | N85: dms_S140201_UOM | O85: dms_E050201_UOM | P85: dms_E050202_UOM
C86: Circuit line length in km | D86: 0's | E86: 0's | F86: 0's | G86: 0's | H86: km | I86: km | J86: Route line length within zone | K86: 0's | L86: days | M86: number | N86: number per km | O86: per metre per connection | P86: metres per connection
C87: Circuit line length in km | D87: 0's | E87: 0's | F87: 0's | G87: 0's | H87: 0's | I87: 0's | J87: Number of maintenance spans | K87: 0's | L87: 0's | M87: number | N87: number | O87: per service per connection | P87: number per connection
C88: Circuit line length in km | D88: MVA added | E88: MVA added | F88: MVA added | G88: MVA added | H88: km | I88: km | J88: Total length of maintenance spans | K88: 0's | L88: $0s | M88: number | N88: number | O88: number per connection | P88: number per connection
C89: Circuit line length in km | D89: 0's | E89: 0's | F89: 0's | G89: 0's | H89: km | I89: km | J89: Length of vegetation corridors | K89: $0s | L89: 0's | M89: km
C90: Number | D90: total spend $0s | E90: total spend $0s | F90: total spend $0s | G90: total spend $0s | H90: 0's | I90: 0's | J90: Average number of trees per maintenance span
C91: Number | D91: net circuit km added | E91: net circuit km added | F91: net circuit km added | G91: net circuit km added | H91: years | I91: years | J91: Average frequency of cutting cycle
C92: Number | D92: total spend $0s | E92: total spend $0s | F92: total spend $0s | G92: total spend $0s
D93: net circuit km added | E93: net circuit km added | F93: net circuit km added | G93: net circuit km added
D94: total spend $0s | E94: total spend $0s | F94: total spend $0s | G94: total spend $0s
D95: 0's | F95: $0s
D96: 0's
D97: 0's
D98: $0s
B101: CA & RESET RINS TNSP ONLY | C101: dms_020701_01_UOM
C102: km
C103: 0's
C104: km
C105: 0's
C106: km
C107: metres
C108: years
B111: CA & RESET RINS DNSP & TNSP | C111: dms_020603_01_UOM
C112: 0's
C113: 0's
C114: 0's
C115: 0's
C116: (per cent)
B119: EB & RESET RINS DNSP ONLY | C119: dms_030601_01_UOM | D119: dms_030601_02_UOM | E119: dms_030701_01_UOM | F119: dms_030702_01_UOM | G119: dms_030703_01_UOM
C120: minutes/customer | D120: minutes/customer | E120: Customer / km | F120: % | G120: km
C121: minutes/customer | D121: minutes/customer | E121: MWh/customer | F121: Number of spans
C122: interruptions/customer | D122: interruptions/customer | E122: kVA / customer | F122: Number of spans
C123: interruptions/customer | D123: interruptions/customer | F123: Number of spans
F124: Number of spans
F125: Years
F126: Years
F127: Trees
F128: Trees
F129: Defects
F130: Defects
F131: Spans
F132: km
F133: Spans
C135: WHEN INSERTING COVER SHEET INTO A TNSP FILE - APPLY THESE NAMED RANGES
B136: EB & RESET RINS TNSP ONLY | C136: dms_030601_01_UOM | E136: dms_030701_01_UOM | F136: dms_030702_01_UOM
C137: % | E137: Number of spans | F137: km
C138: number | E138: Years | F138: %
C139: number | E139: Trees | F139: km
C140: % | E140: Defects | F140: number
C141: number | E141: Number of spans
C142: number | E142: km
C143: % | E143: km
C144: number | E144: Number of spans
C145: number
C146: %
C147: number
C148: %
C149: number
C150: %
C151: number
B153: EB & RESET RINS DNSP & TNSP | C153: dms_EB_RAB_PIT
C154: Beginning of year
C155: End of year
C156: End of year
C157: End of year
C158: End of year
C159: End of year
B161: ARR DNSP ONLY | C161: dms_030605_UOM | D161: dms_03060703_UOM | E161: dms_E020202_UOM | F161: Spare
C162: number | D162: number | E162: Length of mains replaced
C163: number | D163: number | E163: Number of services replaced
C164: number | D164: number
C165: number | D165: number
C166: number | D166: (per cent)
C167: number
C168: number
C169: number
C170: number
C171: number
C172: number
C173: number
C174: (per cent)
C175: (per cent)
B177: RFM | C177: dms_Beg | D177: dms_Mid | E177: dms_End
C178: Beginning of year | D178: Mid year | E178: End of Year
B180: PTRM | C180: dms_PTRM_RAB_PIT | D180: dms_PTRM_TAB_PIT | E180: DMS_Xfactor
C181: Beginning of year | D181: Beginning of year | E181: x factors
C182: End of year | D182: End of year
C183: End of year | D183: End of year
C184: End of year | D184: End of year
C185: End of year
B188: STPIS & MIC NAMED RANGES
B190: These "row descriptions" are the column headings in the various templates but become row descriptions in the ETL process
B192: Table 6.3 sustained interruptions - row descriptions | C192: dms_060301_CustNo_Affected_Row | D192: dms_060301_Avg_Duration_Sustained_Int_Row | E192: dms_060301_Effect_unplanned_SAIDI_Row | F192: dms_060301_Effect_unplanned_SAIFI_Row
C193: Number of customers affected by the interruption | D193: Average duration of sustained customer interruption | E193: Effect on unplanned SAIDI | F193: Effect on unplanned SAIFI
B196: Table 6.1 telephone answering - row descriptions and start date | C196: dms_060101_Rows | D196: dms_060102_Rows | E196: dms_060101_StartDateTxt
C197: Total number of calls (after removing excluded events) | D197: Number of calls answered within 30 seconds (after excluding excluded events) | E197: =dms_060701_StartDateTxt -> 
B200: Table 6.8.1 - row descriptions | C200: dms_060801_01_Rows | D200: dms_060801_02_Rows | E200: dms_060801_03_Rows | F200: dms_060801_04_Rows
C201: Number of interruptions | D201: Duration of interruptions | E201: Total unplanned minutes off supply | F201: Effect on unplanned MAIFI
B204: Table 7.9.4 - market impact component - row descriptions | C204: dms_070904_01_Rows | D204: without exclusions | E204: with exclusions
B207: These headings (Lists) are determined from the INDEX/MATCH function on the NSP selected on the Business & other details sheet
B209: Table 6.7.1 - daily performance data - unplanned - MAIFI -- row descriptions and header named range values | C209: dms_060701_Feeder_Header_Lvl4 | D209: =INDEX(dms_FeederName_1,MATCH(dms_TradingName,dms_TradingName_List)) -> CBD | E209: =INDEX(dms_FeederName_1,MATCH(dms_TradingName,dms_TradingName_List)) -> CBD | F209: =INDEX(dms_FeederName_2,MATCH(dms_TradingName,dms_TradingName_List)) -> Urban | G209: =INDEX(dms_FeederName_2,MATCH(dms_TradingName,dms_TradingName_List)) -> Urban | H209: =INDEX(dms_FeederName_3,MATCH(dms_TradingName,dms_TradingName_List)) -> Short rural | I209: =INDEX(dms_FeederName_3,MATCH(dms_TradingName,dms_TradingName_List)) -> Short rural | J209: =INDEX(dms_FeederName_4,MATCH(dms_TradingName,dms_TradingName_List)) -> Long rural | K209: =INDEX(dms_FeederName_4,MATCH(dms_TradingName,dms_TradingName_List)) -> Long rural | L209: =IF((INDEX(dms_FeederName_5,MATCH(dms_TradingName,dms_TradingName_List))=0),"Network",(INDEX(dms_FeederName_5,MATCH(dms_TradingName,dms_TradingName_List)))) -> Network | M209: =IF((INDEX(dms_FeederName_5,MATCH(dms_TradingName,dms_TradingName_List))=0),"Network",(INDEX(dms_FeederName_5,MATCH(dms_TradingName,dms_TradingName_List)))) -> Network | N209: Network | O209: Network
C211: dms_060701_Rows | D211: All events | E211: After removing excluded events | F211: All events | G211: After removing excluded events | H211: All events | I211: After removing excluded events | J211: All events | K211: After removing excluded events | L211: All events | M211: After removing excluded events | N211: All events | O211: After removing excluded events
D212: the number of column headings changes from 10 to 12 depending on the number of feeder categories for the NSP
C214: dms_0603_FeederList | D214: =INDEX(dms_FeederName_1,MATCH(dms_TradingName,dms_TradingName_List)) -> CBD | E214: =INDEX(dms_FeederName_2,MATCH(dms_TradingName,dms_TradingName_List)) -> Urban | F214: =INDEX(dms_FeederName_3,MATCH(dms_TradingName,dms_TradingName_List)) -> Short rural | G214: =INDEX(dms_FeederName_4,MATCH(dms_TradingName,dms_TradingName_List)) -> Long rural
B217: Use these to add to specific worksheets in existing files | C217: Use these to add to specific worksheets in existing files
B220: ARRs 6.7 STPIS daily performance | C220: dms_060101_Values | D220: dms_060102_Values | E220: dms_060701_Values
C221: dms_LeapYear
B224: ARR's 6.8 STPIS exclusions | C224: dms_060801_Event_Date | D224: dms_060801_OutageID | E224: dms_060801_FeederID | F224: dms_060801_FeederClass | G224: dms_060801_CauseID | H224: dms_060801_01_Values | I224: dms_060801_02_Values | J224: dms_060801_03_Values | K224: dms_060801_Excl_Cat | L224: dms_060801_04_Values
C225: dms_060801_StartCell
B228: CA 6.3 sustained interruptions | C228: dms_060301_Event_Date | D228: dms_060301_Event_Time | E228: dms_060301_AssetID | F228: dms_060301_FeederClass | G228: dms_060301_Reason | H228: dms_060301_DetailedReason | I228: dms_060301_CustNo_Affected_Values | J228: dms_060301_Avg_Duration_Sustained_Int_Values | K228: dms_060301_Effect_unplanned_SAIDI_Values | L228: dms_060301_Effect_unplanned_SAIFI_Values | M228: dms_060301_MED
B232: PTRM input sheet | C232: DMS_50_01_01a | D232: DMS_50_01_01aa | E232: DMS_50_01_01b | F232: DMS_50_01_01bb | G232: DMS_50_01_01c | H232: DMS_50_01_01d | I232: DMS_50_01_01dd

Sheet AER lookups (hidden)
B1: AER LOOKUP TABLES
B3: Template number | C3: 5
Y5: FOR ELECTRICITY BUSINESSES ONLY
Y6: Feeder Types | AC6: TasNetworks (D) | AD6: Feeder Names
Y8: CBD | Z8: Urban | AA8: Short rural | AB8: long rural | AC8: EXTRA
B9: dms_TradingName_List | C9: dms_TradingNameFull_List | D9: dms_ABN_List | E9: dms_JurisdictionList | F9: dms_Sector_List | G9: dms_Segment_List | H9: dms_FormControl_List | I9: dms_RPT_List | J9: dms_RPTMonth_List | K9: dms_CRCPlength_List | L9: dms_FRCPlength_List | M9: dms_PRCPlength_List | N9: dms_663_List | O9: dms_Addr1_List | P9: dms_Addr2_List | Q9: dms_Suburb_List | R9: dms_State_List | S9: dms_PostCode_List | T9: dms_PAddr1_List | U9: dms_PAddr2_List | V9: dms_PSuburb_List | W9: dms_PState_List | X9: dms_PPostCode_List | Y9: dms_CBD_flag | Z9: dms_Urban_flag | AA9: dms_ShortRural_flag | AB9: dms_LongRural_flag | AC9: dms_FeederType_5_flag | AD9: dms_FeederName_1 | AE9: dms_FeederName_2 | AF9: dms_FeederName_3 | AG9: dms_FeederName_4 | AH9: dms_FeederName_5 | AI9: dms_MAIFI_flag_List | AJ9: dms_Public_Lighting_List | AK9: Name
B10: Ausgrid | C10: Ausgrid | D10: 67505337385 | E10: NSW | F10: Electricity | G10: Distribution | H10: Revenue cap | I10: Financial | J10: June | K10: 5 | L10: 5 | M10: 5 | N10: 5 | O10: 570 George St | Q10: SYDNEY | R10: NSW | S10: 2000 | T10: GPO Box 4009 | V10: SYDNEY | W10: NSW | X10: 2001 | Y10: YES | Z10: YES | AA10: YES | AB10: YES | AC10: NO | AD10: CBD | AE10: Urban | AF10: Short rural | AG10: Long rural | AI10: NO | AJ10: YES | AK10: =B10 -> Ausgrid
B11: Ausgrid (Tx Assets) | C11: Ausgrid (Tx Assets) | D11: 67505337385 | E11: NSW | F11: Electricity | G11: Distribution | H11: Revenue cap | I11: Financial | J11: June | K11: 5 | L11: 5 | M11: 5 | N11: 5 | O11: 570 George St | Q11: SYDNEY | R11: NSW | S11: 2000 | T11: GPO Box 4009 | V11: SYDNEY | W11: NSW | X11: 2001 | Y11: YES | Z11: YES | AA11: YES | AB11: YES | AC11: NO | AD11: CBD | AE11: Urban | AF11: Short rural | AG11: Long rural | AI11: NO | AJ11: NO | AK11: Ausgrid (Tx Assets)
B12: Australian Distribution Co. | C12: Australian Distribution Co. | D12: 11222333444 | E12: NSW | F12: Electricity | G12: Distribution | H12: Revenue cap | I12: Financial | J12: June | K12: 5 | L12: 5 | M12: 5 | N12: 2 | O12: 123 Straight Street | Q12: SYDNEY | R12: NSW | S12: 2000 | T12: PO Box 123 | V12: SYDNEY | W12: NSW | X12: 2000 | Y12: YES | Z12: YES | AA12: YES | AB12: YES | AC12: NO | AD12: CBD | AE12: Urban | AF12: Short rural | AG12: Long rural | AI12: NO | AJ12: YES | AK12: Australian Distribution Co.
B13: Endeavour Energy | C13: Endeavour Energy | D13: 11247365823 | E13: NSW | F13: Electricity | G13: Distribution | H13: Revenue cap | I13: Financial | J13: June | K13: 5 | L13: 5 | M13: 5 | N13: 5 | O13: 51 Huntingwood Drive | Q13: HUNTINGWOOD | R13: NSW | S13: 2148 | T13: PO Box 811 | V13: SEVEN HILLS | W13: NSW | X13: 1730 | Y13: NO | Z13: YES | AA13: YES | AB13: YES | AC13: NO | AD13: CBD | AE13: Urban | AF13: Short rural | AG13: Long rural | AI13: NO | AJ13: YES | AK13: Endeavour Energy
B14: Essential Energy | C14: Essential Energy | D14: 37428185226 | E14: NSW | F14: Electricity | G14: Distribution | H14: Revenue cap | I14: Financial | J14: June | K14: 5 | L14: 5 | M14: 5 | N14: 5 | O14: 8 Buller Street | Q14: PORT MACQUARIE | R14: NSW | S14: 2444 | T14: PO Box 5730 | V14: PORT MACQUARIE | W14: NSW | X14: 2444 | Y14: NO | Z14: YES | AA14: YES | AB14: YES | AC14: NO | AD14: CBD | AE14: Urban | AF14: Short rural | AG14: Long rural | AI14: NO | AJ14: YES | AK14: Essential Energy
B15: Evoenergy Distribution | C15: Evoenergy Distribution | D15: 76670568688 | E15: ACT | F15: Electricity | G15: Distribution | H15: Revenue cap | I15: Financial | J15: June | K15: 5 | L15: 5 | M15: 5 | N15: 5 | O15: 40 Bunda Street | Q15: CANBERRA | R15: ACT | S15: 2600 | T15: GPO BOX 366 | V15: CANBERRA | W15: ACT | X15: 2601 | Y15: NO | Z15: YES | AA15: YES | AB15: NO | AC15: NO | AD15: CBD | AE15: Urban | AF15: Short rural | AG15: Long rural | AI15: NO | AJ15: NO | AK15: Evoenergy Distribution
B16: Evoenergy Distribution (Tx Assets) | C16: Evoenergy Distribution (Tx Assets) | D16: 76670568688 | E16: ACT | F16: Electricity | G16: Distribution | H16: Revenue cap | I16: Financial | J16: June | K16: 5 | L16: 5 | M16: 5 | N16: 5 | O16: 40 Bunda Street | Q16: CANBERRA | R16: ACT | S16: 2600 | T16: GPO BOX 366 | V16: CANBERRA | W16: ACT | X16: 2601 | Y16: NO | Z16: YES | AA16: YES | AB16: NO | AC16: NO | AD16: CBD | AE16: Urban | AF16: Short rural | AG16: Long rural | AI16: NO | AJ16: NO | AK16: Evoenergy Distribution (Tx Assets)
B17: Power and Water | C17: Power and Water Corporation | D17: 15947352360 | E17: NT | F17: Electricity | G17: Distribution | H17: Revenue cap | I17: Financial | J17: June | K17: 5 | L17: 5 | M17: 5 | N17: x | O17: GPO Box 1921 | Q17: DARWIN | R17: NT | S17: 801 | T17: GPO Box 1921 | V17: DARWIN | W17: NT | X17: 801 | Y17: YES | Z17: YES | AA17: YES | AB17: YES | AC17: NO | AD17: CBD | AE17: Urban | AF17: Short rural | AG17: Long rural | AI17: NO | AJ17: NO | AK17: Power and Water
B18: TasNetworks (D) | C18: TasNetworks (D) | D18: 24167357299 | E18: Tas | F18: Electricity | G18: Distribution | H18: Revenue cap | I18: Financial | J18: June | K18: 5 | L18: 5 | M18: 5 | N18: 5 | O18: 1-7 Maria Street | Q18: LENAH VALLEY | R18: Tas | S18: 7008 | T18: PO Box 606 | V18: MOONAH | W18: Tas | X18: 7009 | Y18: YES | Z18: YES | AA18: YES | AB18: YES | AC18: YES | AD18: Critical Infrastructure | AE18: Urban | AF18: High density commercial | AG18: High density rural | AH18: Low density rural | AI18: NO | AJ18: YES | AK18: TasNetworks (D)
B23: The Reg Year Ending (dms_RYE) must be set to the last year of the regulatory period. For forecast data is is usually (FRCP_y5) for actual it is a single year (CRY). For historical actual data the RYE will need to be set manually in the business details sheet by setting the dms_Multiyear_flag to 1 and putting the correct value in 'dms_Specified_FinalYear. See cells C67:C68
B24: dms_Model_List | C24: dms_Model_Name_Format1 | D24: dms_Worksheet_List | E24: dms_Model_Span_List
B25: ARR | C25: Annual Reporting | D25: =IF(dms_MultiYear_ResponseFlag="yes","NEW HISTORICAL ANNUAL REPORTING","ANNUAL REPORTING") -> ANNUAL REPORTING | E25: 1
B26: CA | C26: Category Analysis | D26: =IF(dms_MultiYear_ResponseFlag="yes","NEW HISTORICAL CATEGORY ANALYSIS","CATEGORY ANALYSIS") -> CATEGORY ANALYSIS | E26: 1
B27: CESS | C27: Capitlal Expenditure | D27: CAPITLAL EXPENDITURE SHARING SCHEMING | E27: 5
B28: CPI | C28: CPI | D28: CPI | E28: 5
B29: EB | C29: Economic Benchmarking | D29: =IF(dms_MultiYear_ResponseFlag="yes","NEW HISTORICAL ECONOMIC BENCHMARKING","ECONOMIC BENCHMARKING") -> ECONOMIC BENCHMARKING | E29: 1
B30: EBSS | C30: Efficiency Benefit Sharing Scheme | D30: EFFICIENCY BENEFIT SHARING SCHEME | E30: 5
B31: Pricing | C31: Pricing Proposal | D31: PRICING PROPOSAL | E31: 5
B32: Profitability | C32: Profitability | D32: PROFITABILITY | E32: 5
B33: PTRM | C33: Post Tax Revenue Model | D33: POST TAX REVENUE MODEL | E33: 5
B34: Reset | C34: Regulatory Reporting (Reset) | D34: REGULATORY REPORTING STATEMENT | E34: 5
B35: RFM | C35: Roll Forward Model | D35: ROLL FORWARD MODEL | E35: 5
B36: WACC | C36: Weighted Average Cost of Capital | D36: WEIGHTED AVERAGE COST OF CAPITAL | E36: 1
B40: Financial | C40: Calendar | E40: PREVIOUS | G40: CURRENT | I40: FORTHCOMING
B41: 1987-88 | C41: 1988 | D41: PRCP_y1 | E41: =INDEX(INDIRECT(dms_RPT),dms_PRCP_start_row) -> 2014-15 | F41: CRCP_y1 | G41: =INDEX(INDIRECT(dms_RPT),dms_CRCP_start_row) -> 2019-20 | H41: =FRCP_y1 -> 2024-25 | I41: =INDEX(INDIRECT(dms_RPT),dms_FRCP_start_row) -> 2024-25
B42: 1988-89 | C42: 1989 | D42: PRCP_y2 | E42: =INDEX(INDIRECT(dms_RPT),dms_PRCP_start_row+1) -> 2015-16 | F42: CRCP_y2 | G42: =INDEX(INDIRECT(dms_RPT),dms_CRCP_start_row+1) -> 2020-21 | H42: FRCP_y2 | I42: =INDEX(INDIRECT(dms_RPT),dms_FRCP_start_row+1) -> 2025-26
B43: 1989-90 | C43: 1990 | D43: PRCP_y3 | E43: =INDEX(INDIRECT(dms_RPT),dms_PRCP_start_row+2) -> 2016-17 | F43: CRCP_y3 | G43: =INDEX(INDIRECT(dms_RPT),dms_CRCP_start_row+2) -> 2021-22 | H43: FRCP_y3 | I43: =INDEX(INDIRECT(dms_RPT),dms_FRCP_start_row+2) -> 2026-27
B44: 1990-91 | C44: 1991 | D44: PRCP_y4 | E44: =INDEX(INDIRECT(dms_RPT),dms_PRCP_start_row+3) -> 2017-18 | F44: CRCP_y4 | G44: =INDEX(INDIRECT(dms_RPT),dms_CRCP_start_row+3) -> 2022-23 | H44: FRCP_y4 | I44: =INDEX(INDIRECT(dms_RPT),dms_FRCP_start_row+3) -> 2027-28
B45: 1991-92 | C45: 1992 | D45: PRCP_y5 | E45: =INDEX(INDIRECT(dms_RPT),dms_PRCP_start_row+4) -> 2018-19 | F45: CRCP_y5 | G45: =INDEX(INDIRECT(dms_RPT),dms_CRCP_start_row+4) -> 2023-24 | H45: FRCP_y5 | I45: =INDEX(INDIRECT(dms_RPT),dms_FRCP_start_row+4) -> 2028-29
B46: 1992-93 | C46: 1993 | D46: PRCP_y6 | E46: =INDEX(INDIRECT(dms_RPT),dms_PRCP_start_row+5) -> 2019-20 | F46: CRCP_y6 | G46: =INDEX(INDIRECT(dms_RPT),dms_CRCP_start_row+5) -> 2024-25 | H46: FRCP_y6 | I46: =INDEX(INDIRECT(dms_RPT),dms_FRCP_start_row+5) -> 2029-30
B47: 1993-94 | C47: 1994 | D47: PRCP_y7 | E47: =INDEX(INDIRECT(dms_RPT),dms_PRCP_start_row+6) -> 2020-21 | F47: CRCP_y7 | G47: =INDEX(INDIRECT(dms_RPT),dms_CRCP_start_row+6) -> 2025-26 | H47: FRCP_y7 | I47: =INDEX(INDIRECT(dms_RPT),dms_FRCP_start_row+6) -> 2030-31
B48: 1994-95 | C48: 1995 | D48: PRCP_y8 | E48: =INDEX(INDIRECT(dms_RPT),dms_PRCP_start_row+7) -> 2021-22 | F48: CRCP_y8 | G48: =INDEX(INDIRECT(dms_RPT),dms_CRCP_start_row+7) -> 2026-27 | H48: FRCP_y8 | I48: =INDEX(INDIRECT(dms_RPT),dms_FRCP_start_row+7) -> 2031-32
B49: 1995-96 | C49: 1996 | D49: PRCP_y9 | E49: =INDEX(INDIRECT(dms_RPT),dms_PRCP_start_row+8) -> 2022-23 | F49: CRCP_y9 | G49: =INDEX(INDIRECT(dms_RPT),dms_CRCP_start_row+8) -> 2027-28 | H49: FRCP_y9 | I49: =INDEX(INDIRECT(dms_RPT),dms_FRCP_start_row+8) -> 2032-33
B50: 1996-97 | C50: 1997 | D50: PRCP_y10 | E50: =INDEX(INDIRECT(dms_RPT),dms_PRCP_start_row+9) -> 2023-24 | F50: CRCP_y10 | G50: =INDEX(INDIRECT(dms_RPT),dms_CRCP_start_row+9) -> 2028-29 | H50: FRCP_y10 | I50: =INDEX(INDIRECT(dms_RPT),dms_FRCP_start_row+9) -> 2033-34
B51: 1997-98 | C51: 1998 | D51: PRCP_y11 | E51: =INDEX(INDIRECT(dms_RPT),dms_PRCP_start_row+10) -> 2024-25 | F51: CRCP_y11 | G51: =INDEX(INDIRECT(dms_RPT),dms_CRCP_start_row+10) -> 2029-30 | H51: FRCP_y11 | I51: =INDEX(INDIRECT(dms_RPT),dms_FRCP_start_row+10) -> 2034-35
B52: 1998-99 | C52: 1999 | D52: PRCP_y12 | E52: =INDEX(INDIRECT(dms_RPT),dms_PRCP_start_row+11) -> 2025-26 | F52: CRCP_y12 | G52: =INDEX(INDIRECT(dms_RPT),dms_CRCP_start_row+11) -> 2030-31 | H52: FRCP_y12 | I52: =INDEX(INDIRECT(dms_RPT),dms_FRCP_start_row+11) -> 2035-36
B53: 1999-00 | C53: 2000 | D53: PRCP_y13 | E53: =INDEX(INDIRECT(dms_RPT),dms_PRCP_start_row+12) -> 2026-27 | F53: CRCP_y13 | G53: =INDEX(INDIRECT(dms_RPT),dms_CRCP_start_row+12) -> 2031-32 | H53: FRCP_y13 | I53: =INDEX(INDIRECT(dms_RPT),dms_FRCP_start_row+12) -> 2036-37
B54: 2000-01 | C54: 2001 | D54: PRCP_y14 | E54: =INDEX(INDIRECT(dms_RPT),dms_PRCP_start_row+13) -> 2027-28 | F54: CRCP_y14 | G54: =INDEX(INDIRECT(dms_RPT),dms_CRCP_start_row+13) -> 2032-33 | H54: FRCP_y14 | I54: =INDEX(INDIRECT(dms_RPT),dms_FRCP_start_row+13) -> 2037-38
B55: 2001-02 | C55: 2002 | D55: PRCP_y15 | E55: =INDEX(INDIRECT(dms_RPT),dms_PRCP_start_row+14) -> 2028-29 | F55: CRCP_y15 | G55: =INDEX(INDIRECT(dms_RPT),dms_CRCP_start_row+14) -> 2033-34 | H55: FRCP_y15 | I55: =INDEX(INDIRECT(dms_RPT),dms_FRCP_start_row+14) -> 2038-39
B56: 2002-03 | C56: 2003 | D56: PRCP_y16 | E56: =INDEX(INDIRECT(dms_RPT),dms_PRCP_start_row+15) -> 2029-30 | F56: CRCP_y16 | G56: =INDEX(INDIRECT(dms_RPT),dms_CRCP_start_row+15) -> 2034-35 | H56: FRCP_y16 | I56: =INDEX(INDIRECT(dms_RPT),dms_FRCP_start_row+15) -> 2039-40
B57: 2003-04 | C57: 2004 | D57: PRCP_y17 | E57: =INDEX(INDIRECT(dms_RPT),dms_PRCP_start_row+16) -> 2030-31 | F57: CRCP_y17 | G57: =INDEX(INDIRECT(dms_RPT),dms_CRCP_start_row+16) -> 2035-36 | H57: FRCP_y17 | I57: =INDEX(INDIRECT(dms_RPT),dms_FRCP_start_row+16) -> 2040-41
B58: 2004-05 | C58: 2005 | D58: PRCP_y18 | E58: =INDEX(INDIRECT(dms_RPT),dms_PRCP_start_row+17) -> 2031-32 | F58: CRCP_y18 | G58: =INDEX(INDIRECT(dms_RPT),dms_CRCP_start_row+17) -> 2036-37 | H58: FRCP_y18 | I58: =INDEX(INDIRECT(dms_RPT),dms_FRCP_start_row+17) -> 2041-42
B59: 2005-06 | C59: 2006 | D59: PRCP_y19 | E59: =INDEX(INDIRECT(dms_RPT),dms_PRCP_start_row+18) -> 2032-33 | F59: CRCP_y19 | G59: =INDEX(INDIRECT(dms_RPT),dms_CRCP_start_row+18) -> 2037-38 | H59: FRCP_y19 | I59: =INDEX(INDIRECT(dms_RPT),dms_FRCP_start_row+18) -> 2042-43
B60: 2006-07 | C60: 2007 | D60: PRCP_y20 | E60: =INDEX(INDIRECT(dms_RPT),dms_PRCP_start_row+19) -> 2033-34 | F60: CRCP_y20 | G60: =INDEX(INDIRECT(dms_RPT),dms_CRCP_start_row+19) -> 2038-39 | H60: FRCP_y20 | I60: =INDEX(INDIRECT(dms_RPT),dms_FRCP_start_row+19) -> 2043-44
B61: 2007-08 | C61: 2008 | D61: PRCP_y21 | E61: =INDEX(INDIRECT(dms_RPT),dms_PRCP_start_row+20) -> 2034-35 | F61: CRCP_y21 | G61: =INDEX(INDIRECT(dms_RPT),dms_CRCP_start_row+20) -> 2039-40 | H61: FRCP_y21 | I61: =INDEX(INDIRECT(dms_RPT),dms_FRCP_start_row+20) -> 2044-45
B62: 2008-09 | C62: 2009 | D62: PRCP_y22 | E62: =INDEX(INDIRECT(dms_RPT),dms_PRCP_start_row+21) -> 2035-36 | F62: CRCP_y22 | G62: =INDEX(INDIRECT(dms_RPT),dms_CRCP_start_row+21) -> 2040-41 | H62: FRCP_y22 | I62: =INDEX(INDIRECT(dms_RPT),dms_FRCP_start_row+21) -> 2045-46
B63: 2009-10 | C63: 2010 | D63: PRCP_y23 | E63: =INDEX(INDIRECT(dms_RPT),dms_PRCP_start_row+22) -> 2036-37 | F63: CRCP_y23 | G63: =INDEX(INDIRECT(dms_RPT),dms_CRCP_start_row+22) -> 2041-42 | H63: FRCP_y23 | I63: =INDEX(INDIRECT(dms_RPT),dms_FRCP_start_row+22) -> 2046-47
B64: 2010-11 | C64: 2011 | D64: PRCP_y24 | E64: =INDEX(INDIRECT(dms_RPT),dms_PRCP_start_row+23) -> 2037-38 | F64: CRCP_y24 | G64: =INDEX(INDIRECT(dms_RPT),dms_CRCP_start_row+23) -> 2042-43 | H64: FRCP_y24 | I64: =INDEX(INDIRECT(dms_RPT),dms_FRCP_start_row+23) -> 2047-48
B65: 2011-12 | C65: 2012 | D65: PRCP_y25 | E65: =INDEX(INDIRECT(dms_RPT),dms_PRCP_start_row+24) -> 2038-39 | F65: CRCP_y25 | G65: =INDEX(INDIRECT(dms_RPT),dms_CRCP_start_row+24) -> 2043-44 | H65: FRCP_y25 | I65: =INDEX(INDIRECT(dms_RPT),dms_FRCP_start_row+24) -> 
B66: 2012-13 | C66: 2013
B67: 2013-14 | C67: 2014
B68: 2014-15 | C68: 2015
B69: 2015-16 | C69: 2016
B70: 2016-17 | C70: 2017
B71: 2017-18 | C71: 2018
B72: 2018-19 | C72: 2019
B73: 2019-20 | C73: 2020
B74: 2020-21 | C74: 2021
B75: 2021-22 | C75: 2022 | E75: CRY - FRY
B76: 2022-23 | C76: 2023 | D76: dms_y1 | E76: =IFERROR(INDEX(INDIRECT(dms_RPT),dms_CRY_start_row),0) -> 2022-23
B77: 2023-24 | C77: 2024 | D77: dms_y2 | E77: =IFERROR(INDEX(INDIRECT(dms_RPT),dms_CRY_start_row+1),0) -> 2023-24
B78: 2024-25 | C78: 2025 | D78: dms_y3 | E78: =IFERROR(INDEX(INDIRECT(dms_RPT),dms_CRY_start_row+2),0) -> 2024-25
B79: 2025-26 | C79: 2026 | D79: dms_y4 | E79: =IFERROR(INDEX(INDIRECT(dms_RPT),dms_CRY_start_row+3),0) -> 2025-26
B80: 2026-27 | C80: 2027 | D80: dms_y5 | E80: =IFERROR(INDEX(INDIRECT(dms_RPT),dms_CRY_start_row+4),0) -> 2026-27
B81: 2027-28 | C81: 2028 | D81: dms_y6 | E81: =IFERROR(INDEX(INDIRECT(dms_RPT),dms_CRY_start_row+5),0) -> 2027-28
B82: 2028-29 | C82: 2029 | D82: dms_y7 | E82: =IFERROR(INDEX(INDIRECT(dms_RPT),dms_CRY_start_row+6),0) -> 2028-29
B83: 2029-30 | C83: 2030 | D83: dms_y8 | E83: =IFERROR(INDEX(INDIRECT(dms_RPT),dms_CRY_start_row+7),0) -> 2029-30
B84: 2030-31 | C84: 2031 | D84: dms_y9 | E84: =IFERROR(INDEX(INDIRECT(dms_RPT),dms_CRY_start_row+8),0) -> 2030-31
B85: 2031-32 | C85: 2032 | D85: dms_y10 | E85: =IFERROR(INDEX(INDIRECT(dms_RPT),dms_CRY_start_row+9),0) -> 2031-32
B86: 2032-33 | C86: 2033 | D86: dms_y11 | E86: =IFERROR(INDEX(INDIRECT(dms_RPT),dms_CRY_start_row+10),0) -> 2032-33
B87: 2033-34 | C87: 2034 | D87: dms_y12 | E87: =IFERROR(INDEX(INDIRECT(dms_RPT),dms_CRY_start_row+11),0) -> 2033-34
B88: 2034-35 | C88: 2035 | D88: dms_y13 | E88: =IFERROR(INDEX(INDIRECT(dms_RPT),dms_CRY_start_row+12),0) -> 2034-35
B89: 2035-36 | C89: 2036 | D89: dms_y14 | E89: =IFERROR(INDEX(INDIRECT(dms_RPT),dms_CRY_start_row+13),0) -> 2035-36
B90: 2036-37 | C90: 2037 | D90: dms_y15 | E90: =IFERROR(INDEX(INDIRECT(dms_RPT),dms_CRY_start_row+14),0) -> 2036-37
B91: 2037-38 | C91: 2038 | D91: dms_y16 | E91: =IFERROR(INDEX(INDIRECT(dms_RPT),dms_CRY_start_row+15),0) -> 2037-38
B92: 2038-39 | C92: 2039 | D92: dms_y17 | E92: =IFERROR(INDEX(INDIRECT(dms_RPT),dms_CRY_start_row+16),0) -> 2038-39
B93: 2039-40 | C93: 2040 | D93: dms_y18 | E93: =IFERROR(INDEX(INDIRECT(dms_RPT),dms_CRY_start_row+17),0) -> 2039-40
B94: 2040-41 | C94: 2041 | D94: dms_y19 | E94: =IFERROR(INDEX(INDIRECT(dms_RPT),dms_CRY_start_row+18),0) -> 2040-41
B95: 2041-42 | C95: 2042 | D95: dms_y20 | E95: =IFERROR(INDEX(INDIRECT(dms_RPT),dms_CRY_start_row+19),0) -> 2041-42
B96: 2042-43 | C96: 2043 | D96: dms_y21 | E96: =IFERROR(INDEX(INDIRECT(dms_RPT),dms_CRY_start_row+20),0) -> 2042-43
B97: 2043-44 | C97: 2044 | D97: dms_y22 | E97: =IFERROR(INDEX(INDIRECT(dms_RPT),dms_CRY_start_row+21),0) -> 2043-44
B98: 2044-45 | C98: 2045 | D98: dms_y23 | E98: =IFERROR(INDEX(INDIRECT(dms_RPT),dms_CRY_start_row+22),0) -> 2044-45
B99: 2045-46 | C99: 2046 | D99: dms_y24 | E99: =IFERROR(INDEX(INDIRECT(dms_RPT),dms_CRY_start_row+23),0) -> 2045-46
B100: 2046-47 | C100: 2047 | D100: dms_y25 | E100: =IFERROR(INDEX(INDIRECT(dms_RPT),dms_CRY_start_row+24),0) -> 2046-47
B101: 2047-48 | C101: 2048 | D101: dms_y26 | E101: =IFERROR(INDEX(INDIRECT(dms_RPT),dms_CRY_start_row+25),0) -> 2047-48

Sheet AER ETL (hidden)
B1: AER ETL INFORMATION
B3: USES NAMED RANGES FLAG | C3: yes | D3: dms_Defined_Names_Used
B5: IF THIS IS AN ABC RIN - make sure the the named range CRY is applied and the named range dms_dollar_nom_UOM is applied
B6: IF THIS IS A RESET RIN - make sure the named ranges CRY and dms_dollar_nom_UOM are NOT present in the workbook
B7: FOR ABC RINS THAT SPAN MULTIPLE YEARS - make sure MultiYear Flag is set and final year entered as required
B9: Full trading name | C9: =INDEX(dms_TradingNameFull_List,MATCH(dms_TradingName,dms_TradingName_List)) -> Evoenergy Distribution | E9: dms_TradingNameFull
B10: Trading name | C10: =dms_TradingName -> Evoenergy Distribution
A11: Selected here | B11: Model / RIN | C11: Reset | D11: dms_Model
A12: Read from Business & other details | B12: Source | C12: Regulatory proposal | D12: dms_Source | E12: =IF(dms_Model="Reset", "Make sure you have set Reg Proposal as source","") -> Make sure you have set Reg Proposal as source
B13: Data quality | C13: Consolidated | D13: For DB purposes this is always Consoldiated
B14: Data status | C14: Public | D14: For DB purposes this is always Public
B15: Amendment reason | C15: =dms_Amendment_Text -> 16 March 2023 - updates made by AER to table headings on 3.3 Asset values, to reflect data reported in $nominal terms. | F15: dms_AmendmentReason
B16: Submission date | C16: =dms_Typed_Submission_Date -> dd/mm/yy | D16: dms_SubmissionDate
A18: Redundant | B18: EBSS - First application of scheme in forthcoming period? | C18: No
A19: Pre-populated from lookup table | B19: Data ingestion data quality | C19: Consolidated | D19: dms_DataQuality | E19: Always Consolidated
B20: Sector | C20: =INDEX(dms_Sector_List,MATCH(dms_TradingName,dms_TradingName_List)) -> Electricity | D20: dms_Sector | E20: =INDEX(dms_Sector_List,MATCH(dms_TradingName,dms_TradingName_List))
B21: Segment | C21: =INDEX(dms_Segment_List,MATCH(dms_TradingName,dms_TradingName_List)) -> Distribution | D21: dms_Segment | E21: =INDEX(dms_Segment_List,MATCH(dms_TradingName,dms_TradingName_List))
B22: Regulatory Year Ending | C22: =IF(dms_MultiYear_Flag=1,LEFT(dms_Specified_FinalYear,2)&RIGHT(dms_Specified_FinalYear,2),dms_RYE_result) -> 2029 | D22: dms_RYE | E22: =IF(dms_MultiYear_Flag=1,LEFT(dms_Specified_FinalYear,2)&RIGHT(dms_Specified_FinalYear,2),dms_RYE_result)
B23: Reporting Period Type | C23: =INDEX(dms_RPT_List,MATCH(dms_TradingName,dms_TradingName_List)) -> Financial | D23: dms_RPT | E23: =INDEX(dms_RPT_List,MATCH(dms_TradingName,dms_TradingName_List))
B24: EB/CA Unit of Measure for Monetary Values | C24: $0s | D24: dms_dollar_nom_UOM | E24: =IF(dms_SingleYearModel="yes","This is set to an historical template (EB, CA or ARR), apply UOM Named Range to cell !","This is not an historical template, make sure UOM Named Range is not applied") -> This is not an historical template, make sure UOM Named Range is not applied | J24: =IFERROR(dms_dollar_nom_UOM, "NR not applied") -> NR not applied
B25: Security Classification | C25: Public | D25: dms_Classification | E25: Always Public
B26: Jurisdiction | C26: =INDEX(dms_JurisdictionList,MATCH(dms_TradingName,dms_TradingName_List)) -> ACT | D26: dms_Jurisdiction | E26: =INDEX(dms_JurisdictionList,MATCH(dms_TradingName,dms_TradingName_List))
A27: Relevant for PTRM, RFMs and Reset RINS | B27: $ REAL REFERENCES
B28: Does the named range CRY exist in this file? | C28: =IFERROR(CRY,"NO") -> 2022-23
B29: CRY-1 (last full calendar year before CRY) | C29: =IFERROR(IF(dms_RPT="calendar",CRY-1,LEFT(CRY,4)),"CRY not present") -> 2022 | D29: dms_Cal_Year_B4_CRY | E29: '=IF(dms_RPT="financial",VALUE(LEFT(dms_SingleYear_FinalYear_Result,4)),VALUE(LEFT(dms_SingleYear_FinalYear_Result,4)-1))
B30: Dollar $ real month | C30: =INDEX(dms_RPTMonth_List,MATCH(dms_TradingName,dms_TradingName_List)) -> June | D30: dms_RPTMonth | E30: =INDEX(dms_RPTMonth_List,MATCH(dms_TradingName,dms_TradingName_List))
B31: Dollar $ real (the last month before the FRCP_y1) | C31: =IF(dms_Model="RFM",dms_DollarReal_Prev, IF(dms_SingleYearModel="yes",CONCATENATE(dms_RPTMonth)&" "&VALUE((LEFT(dms_CRY_start_year,2)&RIGHT(dms_CRY_start_year,2))),CONCATENATE(dms_RPTMonth)&" "&dms_DollarReal_year)) -> June 2024 | D31: dms_DollarReal | E31: =IF(dms_Model="RFM",dms_DollarReal_Prev, IF(dms_SingleYearModel="yes",CONCATENATE(dms_RPTMonth)&" "&VALUE((LEFT(dms_CRY_start_year,2)&RIGHT(dms_CRY_start_year,2))),CONCATENATE(dms_RPTMonth)&" "&dms_DollarReal_year))
B32: Dollar $ real previous year (PRCP_y5) | C32: =CONCATENATE(dms_RPTMonth)&" "&dms_Previous_DollarReal_year -> June 2019 | D32: dms_DollarReal_Prev | E32: =IF(SUM(dms_SingleYear_Model)>0,CONCATENATE(dms_RPTMonth)&" "&VALUE(((LEFT(CRY,2))&RIGHT(CRY,2))-1),CONCATENATE(dms_RPTMonth)&" "&VALUE(((LEFT(dms_CRCP_FirstYear_Result,2)&RIGHT(dms_CRCP_FirstYear_Result,2))))-1)
B33: PTRM/ RFMs
B34: Form of control | C34: =INDEX(dms_FormControl_List,MATCH(dms_TradingName,dms_TradingName_List)) -> Revenue cap | D34: dms_FormControl | E34: =INDEX(dms_FormControl_List,MATCH(dms_TradingName,dms_TradingName_List))
A35: All potential values for Regulatory Years or RYEs as calculated | B35: This block works out the various RYE's for ALL RIN types and MODELS
B36: dms_start_year | C36: =FRCP_y1 -> 2024-25 | D36: =FRCP_y1 | E36: FRCP_y1 from cover sheet
B37: dms_CRY_start_year | C37: =IFERROR(CRY,CRCP_y4) -> 2022-23 | D37: =IFERROR(CRY,CRCP_y4)
B38: dms_CRY_start_row | C38: =IFERROR(MATCH(dms_CRY_start_year,INDIRECT(dms_RPT),0),0) -> 36 | D38: =IFERROR(MATCH(dms_CRY_start_year,INDIRECT(dms_RPT),0),0)
B39: dms_FRCP_start_row | C39: =MATCH(dms_start_year,INDIRECT(dms_RPT),0) -> 38 | D39: =MATCH(dms_start_year,INDIRECT(dms_RPT),0) | E39: Uses FRCP_y1 as a start reference
B40: dms_CRCP_start_row | C40: =dms_FRCP_start_row-dms_CRCPlength_Num -> 33 | D40: =dms_FRCP_start_row-dms_CRCPlength_Num | E40: Uses the value in dms_CRCPlength_Num
B41: dms_PRCP_start_row | C41: =dms_FRCP_start_row-dms_CRCPlength_Num-dms_PRCPlength_Num -> 28 | D41: =dms_FRCP_start_row-dms_CRCPlength_Num-dms_PRCPlength_Num | E41: Uses the value in dms_CRCPlength_Num and dms_PRCPlength_Num
B42: dms_RYE_start_row | C42: =dms_FRCP_start_row+(dms_FRCPlength_Num-1) -> 42 | D42: =dms_FRCP_start_row+(dms_FRCPlength_Num-1) | E42: Uses the value in dms_FRCPlength_Num-1
B43: FRCP_start_year | C43: =INDEX(INDIRECT(dms_RPT),dms_FRCP_start_row) -> 2024-25 | D43: =INDEX(INDIRECT(dms_RPT),dms_FRCP_start_row) | E43: Converts the FRCP start row to display the year
B44: CRCP_start_year | C44: =INDEX(INDIRECT(dms_RPT),dms_CRCP_start_row) -> 2019-20 | D44: =INDEX(INDIRECT(dms_RPT),dms_CRCP_start_row) | E44: Converts the CRCP start row to display the year
B45: PRCP_start_year | C45: =INDEX(INDIRECT(dms_RPT),dms_PRCP_start_row) -> 2014-15 | D45: =INDEX(INDIRECT(dms_RPT),dms_PRCP_start_row) | E45: Converts the PRCP start row to display the year
B46: FRCP_final_year | C46: =INDEX(INDIRECT(dms_RPT),dms_FRCP_start_row+dms_FRCPlength_Num-1) -> 2028-29 | D46: =INDEX(INDIRECT(dms_RPT),dms_FRCP_start_row+dms_FRCPlength_Num-1) | E46: Finds the FRCP final year
B47: CRCP_final_year | C47: =INDEX(INDIRECT(dms_RPT),dms_CRCP_start_row+dms_CRCPlength_Num-1) -> 2023-24 | D47: =INDEX(INDIRECT(dms_RPT),dms_CRCP_start_row+dms_CRCPlength_Num-1) | E47: Finds the CRCP final year
B48: PRCP_final_year | C48: =INDEX(INDIRECT(dms_RPT),dms_PRCP_start_row+dms_FRCPlength_Num-1) -> 2018-19 | D48: =INDEX(INDIRECT(dms_RPT),dms_PRCP_start_row+dms_FRCPlength_Num-1) | E48: Finds the PRCP final year
B49: dms_Reset_final_year | C49: =INDEX(INDIRECT(dms_RPT),dms_RYE_start_row) -> 2028-29 | D49: =INDEX(INDIRECT(dms_RPT),dms_RYE_start_row) | E49: For Resets and PTRM/RFMs (same as FRCP_final_year)
B50: dms_SpecifiedYear_final_year | C50: =FRY -> 2028-29 | D50: =FRY | E50: FRY from cover sheet
B51: dms_DollarReal_year | C51: =LEFT(CRCP_final_year,2)&RIGHT(CRCP_final_year,2) -> 2024 | D51: =LEFT(CRCP_final_year,2)&RIGHT(CRCP_final_year,2) | E51: Uses the value in CRCP_final_year
B52: dms_Previous_DollarReal_year | C52: =LEFT(PRCP_final_year,2)&RIGHT(PRCP_final_year,2) -> 2019 | D52: =LEFT(PRCP_final_year,2)&RIGHT(PRCP_final_year,2) | E52: Uses the value in PRCP_final_year
B53: dms_CRY_RYE | C53: =IFERROR(LEFT(CRY,2)&RIGHT(CRY,2),0) -> 2023 | D53: =IFERROR(LEFT(CRY,2)&RIGHT(CRY,2),0) | E53: For ABC single year RINS
B54: dms_Reset_RYE | C54: =IF(dms_Model_Span>1,IF(dms_Model="RFM",(LEFT(dms_DollarReal_year,2)&RIGHT(dms_DollarReal_year,2)),(LEFT(dms_Reset_final_year,2)&RIGHT(dms_Reset_final_year,2))),0) -> 2029 | D54: =IF(dms_Model_Span>1,IF(dms_Model="RFM",(LEFT(dms_DollarReal_year,2)&RIGHT(dms_DollarReal_year,2)),(LEFT(dms_Reset_final_year,2)&RIGHT(dms_Reset_final_year,2))),0) | E54: If model span > 1 then uses dms_Reset_RYE otherwise it's a multi year ABC and uses dms_Specified_RYE
B55: dms_Specified_RYE | C55: =IF(dms_MultiYear_ResponseFlag="Yes",(LEFT(dms_Specified_FinalYear,2)&RIGHT(dms_Specified_FinalYear,2)),0) -> 0 | D55: =IF(dms_MultiYear_ResponseFlag="Yes",(LEFT(dms_Specified_FinalYear,2)&RIGHT(dms_Specified_FinalYear,2)),0) | E55: If multi year ABC - uses dms_Specified_FinalYear
B56: dms_Model_Span | C56: =INDEX(dms_Model_Span_List,MATCH(dms_Model,dms_Model_List)) -> 5 | D56: =INDEX(dms_Model_Span_List,MATCH(dms_Model,dms_Model_List)) | E56: A result of 5 is used to signify that it is more than 1 year span
B57: dms_RYE_result | C57: =IF(dms_MultiYear_ResponseFlag="yes",dms_Specified_RYE,(IF(dms_Model_Span>1,dms_Reset_RYE,dms_CRY_RYE))) -> 2029 | D57: =IF(dms_MultiYear_ResponseFlag="yes",dms_Specified_RYE,(IF(dms_Model_Span>1,dms_Reset_RYE,dms_CRY_RYE))) | E57: Nested IF - feeds into dms_RYE
B58: dms_Reset_Span | C58: =IF(dms_Reset_RYE>0,CONCATENATE(FRCP_y1," to ",FRCP_final_year),0) -> 2024-25 to 2028-29 | D58: =IF(dms_Reset_RYE>0,CONCATENATE(FRCP_y1," to ",FRCP_final_year),0) | E58: Reset span of years as text
B59: dms_SpecifiedYear_Span | C59: =IF(dms_Specified_RYE>0,CONCATENATE(CRY," to ",dms_Specified_FinalYear),0) -> 0 | D59: =IF(dms_Specified_RYE>0,CONCATENATE(CRY," to ",dms_Specified_FinalYear),0) | E59: Multi year ABC span of years as text
B60: dms_Header_Span | C60: =IF(dms_MultiYear_Flag=1,dms_SpecifiedYear_Span,IF(dms_Model_Span>1,dms_y1&" to "&FRCP_final_year,CRY)) -> 2022-23 to 2028-29 | D60: =IF(dms_MultiYear_Flag=1,dms_SpecifiedYear_Span,IF(dms_Model_Span>1,dms_Reset_Span,CRY)) | E60: NESTED IF - for Sheet Headers
B61: ABC RINS THAT SPAN MULTIPLE YEARS
B62: This is a multi year ABC RIN? | C62: No
C63: =IF(dms_MultiYear_ResponseFlag="No",0,1) -> 0 | D63: dms_MultiYear_Flag | E63: This is set from the answer provided above
C64: =IF(dms_MultiYear_Flag=1,FRY,"not a Multiple year submission") -> not a Multiple year submission | D64: dms_Specified_FinalYear | E64: The result here is returned to dms_CRCP_FinalYear_Result if response to Q in C73 is "yes" and dms_MultiYear_Flag is set to 1
B65: Start year for 5.2 in Multi year ABC RINS | C65: =IFERROR(IF(dms_MultiYear_Flag=1,FRY,CRY),"not an ABC") -> 2022-23 | D65: dms_0502_Inst_Year | E65: =IF(dms_MultiYear_Flag=1,FRY,CRY) | G65: For single year RINS this is CRY - multi year RINS need to start a the end of the span of years (ie. FRY)
B66: WHAT IS THE RYE?
B67: Reg Period Lengths
B68: PRCP length in years | C68: =INDEX(dms_PRCPlength_List,MATCH(dms_TradingName,dms_TradingName_List)) -> 5 | D68: dms_PRCPlength_Num | E68: =INDEX(dms_PRCPlength_List,MATCH(dms_TradingName,dms_TradingName_List))
B69: CRCP length in years | C69: =INDEX(dms_CRCPlength_List,MATCH(dms_TradingName,dms_TradingName_List)) -> 5 | D69: dms_CRCPlength_Num | E69: =INDEX(dms_CRCPlength_List,MATCH(dms_TradingName,dms_TradingName_List))
B70: FRCP length in years | C70: =INDEX(dms_FRCPlength_List,MATCH(dms_TradingName,dms_TradingName_List)) -> 5 | D70: dms_FRCPlength_Num | E70: =INDEX(dms_FRCPlength_List,MATCH(dms_TradingName,dms_TradingName_List))
B71: Single year RIN?
B72: Single Year ABC RIN ? | C72: =IF(dms_Model="EB",1,0) -> 0 | D72: dms_EB
C73: =IF(dms_Model="CA",1,0) -> 0 | D73: dms_CA | E73: =dms_SingleYear_Model
C74: =IF(dms_Model="ARR",1,0) -> 0 | D74: dms_ARR
B75: Is this a single Year ABC RIN? | C75: =IF(SUM(dms_SingleYear_Model)=1,"yes","no") -> no | D75: dms_SingleYearModel | E75: =IF(SUM(dms_SingleYear_Model)=1,"yes","no")
B76: Single Year Final Year Result | C76: =IF(AND(dms_SingleYearModel="yes",dms_MultiYear_Flag=0),CRY,0) -> 0 | D76: dms_SingleYear_FinalYear_Result | E76: =IFERROR(IF(SUM(dms_SingleYear_Model)<>0,(INDIRECT(dms_SingleYear_FinalYear_Ref)),"not a single year RIN"),"CRY not present")
B77: Multi year RIN?
B79: Multi Year Reset/Model? | C79: =IF(dms_Model_Span>1,"yes","no") -> yes
B80: Final year result for Reset/Model | C80: =IF(dms_Model_Span>1,dms_Reset_final_year,0) -> 2028-29 | D80: dms_MultiYear_FinalYear_Result | E80: dms_CRCP_FinalYear_Result
B82: Multi Year ABC RIN? | C82: =IF(dms_MultiYear_Flag=1,"yes","no") -> no | D82: dms_MultiYear_ABC_RIN
B83: Final year result for ABC multi year | C83: =IF(dms_MultiYear_Flag=1,C50,0) -> 0
B85: EB RINS
B86: Calendar Year for table 3.6 data | C86: =IFERROR(IF(dms_Segment="Transmission",dms_Cal_Year_B4_CRY,CRY),"CRY not present") -> 2022-23 | D86: dms_0306_Year | E86: =IF(dms_Segment="Transmission",dms_Cal_Year_B4_CRY,CRY)
B87: CA RINS
B88: Find how many rows in tables 6.3 sustained interruptions? | E88: dms_060301_MaxRows only returns a valid value when cover sheet is attached to a CA file
C89: =IF(dms_Model<>"CA","not a CA","Is a CA") -> not a CA | E89: =IF(dms_Model<>"CA","not a CA","Is a CA")
B90: dms_060301_Avg_Duration_Sustained_Int_Values present? | C90: =IFERROR(IF(INDEX(dms_060301_Avg_Duration_Sustained_Int_Values,1,1)<>"","yes","no"),"no") -> no | D90: dms_060301_checkvalue | E90: =IFERROR(IF(INDEX(dms_060301_Avg_Duration_Sustained_Int_Values,1,1)<>"","yes","no"),"no")
C91: =IF(AND(dms_Model="CA",(dms_060301_checkvalue="no")),"error - NR not present","no errors") -> no errors | E91: =IF(AND(dms_Model="CA",(dms_060301_checkvalue="no")),"error - NR not present","no errors")
B92: Table 6.3.1 - last row reference | C92: =IFERROR(IF(dms_Model="CA",LOOKUP(2,1/(dms_060301_Avg_Duration_Sustained_Int_Values<>""),(ROW(dms_060301_Avg_Duration_Sustained_Int_Values))),"not a CA"),"6.3 not present") -> not a CA | D92: dms_060301_LastRow | E92: =IFERROR(IF(dms_Model="CA",LOOKUP(2,1/(dms_060301_Avg_Duration_Sustained_Int_Values<>""),(ROW(dms_060301_Avg_Duration_Sustained_Int_Values))),"not a CA"),"6.3 not present")
B93: Table 6.3.1 - max number rows | C93: =IFERROR(IF(dms_Model="CA",(dms_060301_LastRow-15),"not a CA"),"error") -> not a CA | D93: dms_060301_MaxRows | E93: =IFERROR(IF(dms_Model="CA",(dms_060301_LastRow-15),"not a CA"),"error")
B94: Table 6.6.3 - Public lighting repair - no. business days | C94: =INDEX(dms_663_List,MATCH(dms_TradingName,dms_TradingName_List)) -> 5 | D94: dms_663 | E94: =INDEX(dms_663_List,MATCH(dms_TradingName,dms_TradingName_List))
B95: ARR or RESET RINS
B96: How many rows in tables 6.1 or 6.7? (leap year?) | C96: insert dms_LeapYear NR if required | E96: 'dms_LeapYear is used to determine dms_060701_Max_Rows BUT it is only found on worksheet 6.1 or 6.7 and the date value in the cell is used to determine whether it is a leap year
B97: Is dms_LeapYear named range present? | C97: =IFERROR(IF(dms_LeapYear,"yes"),"no") -> no
B98: Table 6.7.1 - includes a leap year? | C98: =IFERROR(IF(MONTH(DATE(YEAR(dms_LeapYear),2,29))=2,"is a leap year","not a leap year"), "dms_LeapYear not present") -> dms_LeapYear not present | D98: dms_LeapYear_Result | E98: =IFERROR(IF(MONTH(DATE(YEAR(dms_LeapYear),2,29))=2,"is a leap year","not a leap year"),"dms_LeapYear not present")
B99: MaxRows if Reset and leap year | C99: =IF(dms_LeapYear_Result="is a leap year",1827,1826) -> 1826 | D99: dms_060701_Reset_MaxRows | E99: =IF(dms_LeapYear_Result="is a leap year",1827,1826) | H99: number of days present in Reset RIN table
B100: MaxRows if ARR and leap year | C100: =IF(dms_LeapYear_Result="is a leap year",366,365) -> 365 | D100: dms_060701_ARR_MaxRows | E100: =IF(dms_LeapYear_Result="is a leap year",366,365) | H100: number of days present in ARR RIN table
B101: Table 6.7.1 - Max Rows (leap year/ non leap year) | C101: =IF(dms_Model="ARR",dms_060701_ARR_MaxRows,IF(dms_Model="Reset",dms_060701_Reset_MaxRows,"not a relevant RIN type")) -> 1826 | D101: dms_060701_MaxRows | E101: =IF(dms_Model="ARR",dms_060701_ARR_MaxRows,IF(dms_Model="Reset",dms_060701_Reset_MaxRows,"not a relevant RIN type"))
B102: How many columns in 6.7? (4 or 5 feeder categories) | C102: =IF(dms_FifthFeeder_flag_NSP="NO","This NSP has only 4 feeder categories","This NSP has 5 feeder categories") -> This NSP has only 4 feeder categories
B103: Table 6.7.1 - Last column (# of feeder categories > 4) | C103: =IF(dms_FifthFeeder_flag_NSP="NO",10,12) -> 10 | D103: dms_060701_MaxCols | E103: =IF(dms_FifthFeeder_flag_NSP="NO",8,10)
B104: Table 6.7.1 - Number of offset rows | C104: =IF(dms_Model="ARR",15,9) -> 9 | D104: dms_060701_OffsetRows | E104: =IF(dms_Model="ARR",15,9)
B105: Start date for telephone answering in 6.1 or 6.7? | E105: Using 060101 as naming standard not 060701 for start dates
B106: Table 6.1.1 and 6.7.1 - Start Date as Text | C106: =IF(dms_SingleYearModel="yes",(CONCATENATE(IF(LEN(CRY)=4,"1-Jan-","1-Jul-"),LEFT(CRY,4))),(CONCATENATE(IF(LEN(PRCP_y4)=4,"1-Jan-","1-Jul-"),LEFT(PRCP_y4,4)))) -> 1-Jul-2017 | D106: dms_060101_StartDateTxt | E106: =IF(SUM(dms_SingleYear_Model)>1,(CONCATENATE(IF(LEN(CRY)=4,"1-Jan-","1-Jul-"),LEFT(CRY,4))),(CONCATENATE(IF(LEN(CRCP_y4)=4,"1-Jan-","1-Jul-"),LEFT(CRCP_y4,4))))
B107: Table 6.1.1 and 6.7.1 - Start Date as Date Value | C107: =DATEVALUE(dms_060101_StartDateTxt) -> 42917 | D107: dms_060101_StartDateVal | E107: =DATEVALUE(dms_060701_StartDateTxt)
B108: Does the NSP report MAIFI or MAIFIe | C108: =INDEX(dms_MAIFI_flag_List,MATCH(dms_TradingName,dms_TradingName_List)) -> NO | D108: dms_MAIFI_Flag
B109: ARRs
B110: How many rows in table 6.8? | C110: insert dms_060801_StartCell NR if required | E110: dms_060801_StartCell is only found on worksheet 6.8 and is used to determine the starting date for the date range
B111: Is dms_060801_StartCell named range present? | C111: yes | D111: Must be present for ARRs | E111: =IFERROR(IF((ROW(dms_060801_StartCell)-1)=1,"yes","yes"),"no")
B112: Table 6.8 - Number of offset rows | C112: 12 | D112: dms_0608_OffsetRows | E112: =IFERROR(IF(dms_Model="ARR",(ROW(dms_060801_StartCell)-1),"not an ARR"),"6.8 error")
B113: Table 6.8 - Last row | C113: 0 | D113: dms_0608_LastRow | E113: =IFERROR(IF(dms_060801_StartCell<>"",IF(dms_Model="ARR",(LOOKUP(2,1/(dms_060801_01_Values<>""),(ROW(dms_060801_01_Values)))),"not an ARR"),0),"0")
B114: Table 6.8 - MaxRows | C114: =IFERROR(IF(dms_Model="ARR",(MAX(0,dms_0608_LastRow-dms_0608_OffsetRows)),"not an ARR"),"0") -> not an ARR | D114: dms_060801_MaxRows | E114: =IFERROR(IF(dms_Model="ARR",(MAX(0,dms_0608_LastRow-dms_0608_OffsetRows)),"not an ARR"),"0")
B115: TNSP RESET RINS
B116: Table 7.9.4 only appears in TNSPs Reset RIN
B117: Table 7.9.4 - first year | C117: =LEFT(PRCP_y3,4) -> 2016 | D117: dms_070904_Start_Year | E117: =LEFT(PRCP_y3,4)
B119: MISC
B120: Public lighting NSP? | C120: =INDEX(dms_Public_Lighting_List,MATCH(dms_TradingName,dms_TradingName_List)) -> NO | D120: dms_Public_Lighting | E120: =INDEX(dms_Public_Lighting_List,MATCH(dms_TradingName,dms_TradingName_List))
B121: CBD Feeder for this business | C121: =INDEX(dms_CBD_flag,MATCH(dms_TradingName,dms_TradingName_List)) -> NO | D121: dms_CBD_flag_NSP
B122: Urban Feeder for this business | C122: =INDEX(dms_Urban_flag,MATCH(dms_TradingName,dms_TradingName_List)) -> YES | D122: dms_Urban_flag_NSP
B123: Short rural Feeder for this business | C123: =INDEX(dms_ShortRural_flag,MATCH(dms_TradingName,dms_TradingName_List)) -> YES | D123: dms_ShortRural_flag_NSP
B124: Long rural Feeder for this business | C124: =INDEX(dms_LongRural_flag,MATCH(dms_TradingName,dms_TradingName_List)) -> NO | D124: dms_LongRural_flag_NSP
B125: Fifth Feeder Category (eg. TasNetworks (D)) | C125: =INDEX(dms_FeederType_5_flag,MATCH(dms_TradingName,dms_TradingName_List)) -> NO | D125: dms_FifthFeeder_flag_NSP | E125: =INDEX(dms_FeederType_5_flag,MATCH(dms_TradingName,dms_TradingName_List))
B127: DISCARD FILES
B128: discard this record? | C128: NO | D128: dms_DISCARD | E128: If record is to be discarded from DB set this flag to YES
B130: SUBSET FILES
B131: Is this Submission File a Subset File | C131: NO | D131: dms_Partial
B134: REGULATORY YEARS FOR MULTI RYE SUBMISSIONS
B135: Multiple RYE flag | C135: NO | D135: dms_Multi_RYE_flag
C136: Manually specify RYE | D136: Named ranges to apply
C137: 2013 | D137: dms_RYE_01
C138: 2014 | D138: dms_RYE_02
C139: 2015 | D139: dms_RYE_03
C140: 2016 | D140: dms_RYE_04
C141: 2017 | D141: dms_RYE_05
C142: 2018 | D142: dms_RYE_06
C143: 2019 | D143: dms_RYE_07
C144: 2020 | D144: dms_RYE_08
C145: 2021 | D145: dms_RYE_09
